VENDOR NAME,EXPENSE CATEGORY,PAYMENT AMOUNT,PAYMENT DATE
CUMMINS INC.,MAINTENANCE & REPAIRS,9872.72,1/8/2019
PACE SUBURBAN BUS SERVICE,DIRECT PURCHASES,2720.00,1/24/2019
"HIGH PSI, LTD.",MAINTENANCE & REPAIRS,2165.66,2/26/2019
*J.P. SIMONS & COMPANY,DIRECT PURCHASES,18143.42,3/20/2019
"VERIZON WIRELESS, INC.",UTILITIES EXPENSE,460406.28,3/8/2019
"ZIPCAR, INC.",EQUIPMENT RENTAL,1384.29,3/25/2019
"MANSFIELD OIL COMPANY OF GAINESVILLE, INC.",FUEL EXPENSE,122116.16,4/17/2019
"SAFETY KLEEN SYSTEMS, INC.",MAINTENANCE & REPAIRS,18415.11,5/3/2019
"ATLAS FIRST ACCESS MATERIAL HANDLING, INC.",MAINTENANCE & REPAIRS,15921.80,5/10/2019
GENUINE PARTS COMPANY (NAPA),DIRECT PURCHASES,8413.39,5/9/2019
JOSHUA WEST,LEGAL COSTS,25.00,4/25/2019
HOLLAND LP,CONTRACTUAL SERVICES,230100.00,6/12/2019
"GREENLINE ENVIRONMENTAL SOLUTIONS, LLC",MAINTENANCE & REPAIRS,4445.00,5/28/2019
"COMET MESSENGER SERVICE, INC.",CONTRACTUAL SERVICES,49.75,8/2/2019
"WISCO, INC.",MAINTENANCE & REPAIRS,166.15,9/19/2019
"GREENLINE ENVIRONMENTAL SOLUTIONS, LLC",MAINTENANCE & REPAIRS,7107.50,9/13/2019
CINTAS CORPORATION,DIRECT PURCHASES,1165.32,9/6/2019
ANJUM F KOREISHI M.D.,ADMINISTRATION & HR,300.00,10/16/2019
ZIONS BANK,GENERAL EXPENSES,98406.43,10/30/2019
JACKSON LEWIS PC,LEGAL COSTS,2968.00,11/7/2019
GENUINE PARTS COMPANY (NAPA),DIRECT PURCHASES,6743.79,12/31/2019
"OCCUPATIONAL HEALTH CENTERS OF THE SOUTHWEST, PA. d/b/a CONCENTRA MEDICAL CENTERS",ADMINISTRATION & HR,49648.50,12/27/2019
"GREENLINE ENVIRONMENTAL SOLUTIONS, LLC",MAINTENANCE & REPAIRS,3895.00,1/11/2019
MASSACHUSETTS INSTITUTE OF TECHNOLOGY,CONTRACTUAL SERVICES,48348.77,1/15/2019
"GENFARE, A DIVISION OF SPX CORPORATION",DIRECT PURCHASES,2868.60,2/8/2019
"AMERICAN BUILDING SERVICES, LLC (M-D BUILDING MATERIALS)",DIRECT PURCHASES,19159.68,5/24/2019
GRANT LAW LLC,LEGAL COSTS,37467.50,5/21/2019
"HASTINGS AIR-ENERGY CONTROL,INC.",MAINTENANCE & REPAIRS,450.50,6/17/2019
ACCOUNTING PRINCIPALS INC,CONTRACTUAL SERVICES,2227.52,6/7/2019
NORTHERN ILLINOIS UNIVERSITY,TRAVEL & MEETING EXPENSE,850.00,9/6/2019
TALX CORPORATION,CONTRACTUAL SERVICES,450.00,10/1/2019
"OER SERVICES, LLC",EQUIPMENT RENTAL,4620.00,10/15/2019
AMERIMEX SALES & SERVICE,MAINTENANCE & REPAIRS,4637.00,10/22/2019
"OER SERVICES, LLC",MAINTENANCE & REPAIRS,2492.00,10/23/2019
"QUEST DIAGNOSTICS, INC,",ADMINISTRATION & HR,102187.35,11/13/2019
SPECIALTY'S CAFE & BAKERY,TRAVEL & MEETING EXPENSE,199.57,11/19/2019
AGAE / PRO FENCE JOINT VENTURE,MAINTENANCE & REPAIRS,940.00,1/10/2019
"GENFARE, A DIVISION OF SPX CORPORATION",DIRECT PURCHASES,40150.00,2/15/2019
"QUEST DIAGNOSTICS, INC,",ADMINISTRATION & HR,84213.25,2/26/2019
JAMES DWORKIN,LEGAL COSTS,750.00,4/16/2019
RASAURA FERNANDEZ M.D.,ADMINISTRATION & HR,250.00,4/26/2019
"MCCORKLE LITIGATION SERVICES, INC",GENERAL EXPENSES,307.68,5/22/2019
"INTERSTATE POWER SYSTEMS, INC.",MAINTENANCE & REPAIRS,351.50,9/13/2019
"*MIDWAY OVERHEAD DOOR, INC.",MAINTENANCE & REPAIRS,860.00,8/7/2019
SAFETY VISION LLC,FINANCIAL & TREAS SVCS,26085.00,8/12/2019
"ATLAS FIRST ACCESS MATERIAL HANDLING, INC.",MAINTENANCE & REPAIRS,20509.69,9/4/2019
ERIC THOMAS,LEGAL COSTS,75.00,8/27/2019
"COMET MESSENGER SERVICE, INC.",CONTRACTUAL SERVICES,69.15,9/17/2019
*INSPIRED CATERING & EVENTS,GENERAL EXPENSES,2202.50,9/24/2019
"COMET MESSENGER SERVICE, INC.",CONTRACTUAL SERVICES,19.50,10/11/2019
CUMMINS INC.,MAINTENANCE & REPAIRS,563.38,10/8/2019
SPEAK UP,TRAVEL & MEETING EXPENSE,2400.00,10/16/2019
"ALLIED WASTE TRANSPORTATION, INC. d/b/a REPUBLIC SERVICES OF CHICAGO",MAINTENANCE & REPAIRS,77628.43,11/27/2019
"INSIGHT DIRECT USA, INC.",MAINTENANCE & REPAIRS,54051.64,11/26/2019
"MANSFIELD OIL COMPANY OF GAINESVILLE, INC.",FUEL EXPENSE,98729.79,12/16/2019
"PROMPT ELECTRIC, INC.",MAINTENANCE & REPAIRS,1283.31,12/24/2019
"CRANE 1 SERVICES, INC.",MAINTENANCE & REPAIRS,1817.00,1/14/2019
"*DIGBY'S DETECTIVE & SECURITY AGENCY, INC.",PURCHASE OF SECURITY SERVICES,100011.50,1/15/2019
CITY OF BURBANK,GENERAL EXPENSES,100.00,3/19/2019
ZIONS BANK,GENERAL EXPENSES,40784.66,4/26/2019
COOK COUNTY SHERIFF DEPARTMENT,LEGAL COSTS,40.00,6/19/2019
"*ALLPOINTS SECURITY AND DETECTIVE, INC.",PURCHASE OF SECURITY SERVICES,19365.11,7/5/2019
SOCIETY FOR HUMAN RESOURCE MGMT,GENERAL EXPENSES,209.00,7/23/2019
"JULIAN, BETLEY & ASSOCIATES",LEGAL COSTS,308.75,8/8/2019
ACCOUNTING PRINCIPALS INC,CONSULTING,1371.66,8/16/2019
"*ABC HUMANE WILDLIFE CONTROL & PREVENTION, INC.",MAINTENANCE & REPAIRS,5683.20,8/22/2019
"COY PUGH AND ASSOCIATES, LLC",CONTRACTUAL SERVICES,6000.00,9/12/2019
"MARK ANDY, INC.",MAINTENANCE & REPAIRS,211.24,12/3/2019
NURSE VALUE INC,ADMINISTRATION & HR,1250.00,11/21/2019
ROSEMONT PUBLIC WORKS,UTILITIES EXPENSE,29.10,2/12/2019
TOMPKINS PRINTING EQUIPMENT CO.,MAINTENANCE & REPAIRS,948.99,4/5/2019
"GMI, LLC",DIRECT PURCHASES,43700.00,5/23/2019
"LAW BULLETIN PUBLISHING CO, INC.",FINANCIAL & TREAS SVCS,3000.00,7/29/2019
"MCCORKLE LITIGATION SERVICES, INC",LEGAL COSTS,453.27,7/29/2019
NATIONAL SAFETY COUNCIL,CONTRACTUAL SERVICES,1109.53,9/20/2019
"OER SERVICES, LLC",EQUIPMENT RENTAL,376.32,10/9/2019
ACCOUNTEMPS/DIV. ROBERT HALF,LEGAL COSTS,3660.00,11/13/2019
"HIRERIGHT SOLUTIONS, INC.",ADMINISTRATION & HR,4661.25,12/26/2019
STEPHEN L HAYFORD J.D.,LEGAL COSTS,3612.50,2/21/2019
AMERICAN CONCRETE INSTITUTE,GENERAL EXPENSES,249.00,4/18/2019
NATIONAL ELECTRIC GATE CO.,DIRECT PURCHASES,12780.00,7/11/2019
L.K LEWIS,CREDITS,20.00,8/16/2019
"WINKLER'S TREE SERVICE, INC.",MAINTENANCE & REPAIRS,10500.00,11/7/2019
"HINSHAW & CULBERTSON, LLP",LEGAL COSTS,19413.50,12/27/2019
"IMPERIAL CRANE SERVICES, INC.",EQUIPMENT RENTAL,1760.00,4/4/2019
MCPTR,TRAVEL & MEETING EXPENSE,840.00,5/29/2019
*CityEscape Garden & Design,MAINTENANCE & REPAIRS,764.00,10/17/2019
IMAGE EXCHANGE,ADVERTISING & PROMOTION,2767.83,12/31/2019
IEEE OPERATIONS CENTER,GENERAL EXPENSES,167.50,3/27/2019
"JONES LANG LaSALLE, INCORPORATED",CONSULTING,6270.04,4/12/2019
CHICAGO METRO CONSTRUCTION D/B/A ARLINGTON GLASS & MIRROR CO.,CONTRACTUAL SERVICES,83825.00,5/8/2019
PayFactors Group LLC,CONSULTING,12000.00,7/26/2019
AMERICAN PUBLIC TRANSPORTATION ASSOCIATION,GENERAL EXPENSES,250.00,11/27/2019
VILLAGE OF WILMETTE,UTILITIES EXPENSE,2246.20,12/3/2019
GREENBERG TRAURIG LLP,LEGAL COSTS,2212.50,12/26/2019
"MANSFIELD OIL COMPANY OF GAINESVILLE, INC.",FUEL EXPENSE,697883.10,1/10/2019
*GREAT LAKES METALS CORPORATION,DIRECT PURCHASES,5432.95,1/31/2019
"*WILEY'S LAWN CARE, LLC",MAINTENANCE & REPAIRS,4815.00,1/10/2019
UNIVERSITY OF ILL OUTPT - OHSI,CONTRACTUAL SERVICES,5500.00,2/6/2019
"PROTANIC, INC.",MAINTENANCE & REPAIRS,4250.00,2/7/2019
"ALLIED WASTE TRANSPORTATION, INC. d/b/a REPUBLIC SERVICES OF CHICAGO",MAINTENANCE & REPAIRS,66032.86,2/8/2019
CHICAGO METRO CONSTRUCTION D/B/A ARLINGTON GLASS & MIRROR CO.,MAINTENANCE & REPAIRS,8644.60,3/6/2019
CUMMINS INC.,MAINTENANCE & REPAIRS,5018.02,2/12/2019
GENUINE PARTS COMPANY (NAPA),DIRECT PURCHASES,50988.42,3/12/2019
GENUINE PARTS COMPANY (NAPA),DIRECT PURCHASES,8667.08,3/28/2019
*J.P. SIMONS & COMPANY,DIRECT PURCHASES,11317.14,4/2/2019
PROGRESS RAIL SERVICES CORPORATION,DIRECT PURCHASES,3577.83,5/9/2019
GENUINE PARTS COMPANY (NAPA),DIRECT PURCHASES,55443.95,5/3/2019
"MANSFIELD OIL COMPANY OF GAINESVILLE, INC.",FUEL EXPENSE,433370.95,4/22/2019
IAP CONSTRUCTION INC.,MAINTENANCE & REPAIRS,15383.00,5/1/2019
"ALLIED WASTE TRANSPORTATION, INC. d/b/a REPUBLIC SERVICES OF CHICAGO",MAINTENANCE & REPAIRS,69552.31,5/1/2019
SCHINDLER ELEVATOR CORP.,DIRECT PURCHASES,2829.00,6/13/2019
"COY PUGH AND ASSOCIATES, LLC",CONTRACTUAL SERVICES,6000.00,5/9/2019
"*ABC HUMANE WILDLIFE CONTROL & PREVENTION, INC.",MAINTENANCE & REPAIRS,12319.92,5/28/2019
"HIGH PSI, LTD.",MAINTENANCE & REPAIRS,1730.53,6/7/2019
"ALLIED WASTE TRANSPORTATION, INC. d/b/a REPUBLIC SERVICES OF CHICAGO",MAINTENANCE & REPAIRS,74163.42,5/29/2019
MICOMP COMPUTER CENTER,DIRECT PURCHASES,538.22,6/13/2019
"*ATLAS & ASSOCIATES, INC.",DIRECT PURCHASES,15015.06,5/30/2019
INTERTEK USA INC.,CONTRACTUAL SERVICES,7928.00,6/28/2019
JOHNSON PIPE & SUPPLY CO.,DIRECT PURCHASES,156.66,8/1/2019
"GREENLINE ENVIRONMENTAL SOLUTIONS, LLC",MAINTENANCE & REPAIRS,16925.00,7/10/2019
"JULIAN, BETLEY & ASSOCIATES",LEGAL COSTS,159.90,7/9/2019
RECORD REPRODUCTION SERVICES,ADMINISTRATION & HR,57.53,8/6/2019
*GRISKO LLC (PREVIOUSLY CAROLYN GRISKO & ASSOCIATES),CONSULTING,1365.56,9/18/2019
TRADEBE TREATMENT & RECYCLING LLC,MAINTENANCE & REPAIRS,1640.00,10/25/2019
JOHNSON PIPE & SUPPLY CO.,DIRECT PURCHASES,4639.24,10/18/2019
CITIZEN NEWSPAPER GROUP,GENERAL EXPENSES,934.00,10/29/2019
"CONSTELLATION NEW ENERGY GAS DIVISION, LLC",UTILITIES EXPENSE,6324.70,11/5/2019
"*ALLPOINTS SECURITY AND DETECTIVE, INC.",PURCHASE OF SECURITY SERVICES,8978.88,11/18/2019
PEOPLES GAS,UTILITIES EXPENSE,6804.97,12/10/2019
"MYERS SERVICE, INC.",LEGAL COSTS,209.00,1/22/2019
"ATLAS FIRST ACCESS MATERIAL HANDLING, INC.",MAINTENANCE & REPAIRS,2065.39,2/20/2019
APOLLO VIDEO TECHNOLOGY,FINANCIAL & TREAS SVCS,78128.90,2/13/2019
"DATA WEIGHING SYSTEMS, INC.",MAINTENANCE & REPAIRS,300.00,3/19/2019
CENTER OF BRAIN & SPINE SURGERY,ADMINISTRATION & HR,1200.00,2/22/2019
COZEN O'CONNOR,LEGAL COSTS,295.00,3/19/2019
"HIGH PSI, LTD.",MAINTENANCE & REPAIRS,476.25,4/9/2019
CITY OF CHICAGO-DEPT OF WATER,UTILITIES EXPENSE,69672.36,6/11/2019
"OER SERVICES, LLC",EQUIPMENT RENTAL,4620.00,6/24/2019
"JULIAN, BETLEY & ASSOCIATES",LEGAL COSTS,120.25,10/8/2019
"LANER, MUCHIN, DOMBROW, BECKER,",CONTRACTUAL SERVICES,1657.40,11/7/2019
AMERICAN PUBLIC TRANSPORTATION ASSOCIATION,TRAVEL & MEETING EXPENSE,625.00,11/26/2019
TKG & ASSOCIATES L.L.C,CONSULTING,10000.00,1/9/2019
"Legalink, Inc. d/b/a Epiq Court Reporting",GENERAL EXPENSES,661.25,2/12/2019
VICTORIA RODRIGUEZ,LEGAL COSTS,21.00,3/12/2019
"UNLIMITED SYSTEMS CORP.,INC",DIRECT PURCHASES,2920.00,3/26/2019
"*ALLPOINTS SECURITY AND DETECTIVE, INC.",PURCHASE OF SECURITY SERVICES,20902.78,4/26/2019
CITY OF CHICAGO DEPT.OF REVENUE-RED LIGHT,GENERAL EXPENSES,400.00,5/16/2019
VERITEXT CHICAGO REPORTING CO.,LEGAL COSTS,1016.60,5/24/2019
AGAE / PRO FENCE JOINT VENTURE,MAINTENANCE & REPAIRS,7164.60,6/21/2019
NORTHERN ILLINOIS GAS,UTILITIES EXPENSE,4082.41,7/19/2019
"MCCORKLE LITIGATION SERVICES, INC",GENERAL EXPENSES,227.47,8/9/2019
UNIVERSITY OF ILL OUTPT - OHSI,CONTRACTUAL SERVICES,1000.00,8/9/2019
ARC IMAGING RESOURCES,MAINTENANCE & REPAIRS,5473.96,10/8/2019
"*BOYE JANITORIAL SERVICE, INC.",MAINTENANCE & REPAIRS,18375.00,11/27/2019
MICHAEL KORNBLATT MD,ADMINISTRATION & HR,1000.00,11/20/2019
"*ANCHOR STAFFING, INC.",TECHNOLOGY SERVICES,1273.36,12/13/2019
REGIONAL TRANSPORTATION AUTHORITY,TECHNOLOGY SERVICES,18583.92,1/8/2019
"*NSN EMPLOYER SERVICES, INC.",CONTRACTUAL SERVICES,15.00,1/8/2019
"MIDWEST TIME RECORDER, INC.",MAINTENANCE & REPAIRS,180.00,5/30/2019
MCPTR,TRAVEL & MEETING EXPENSE,520.00,6/6/2019
"WISCO, INC.",MAINTENANCE & REPAIRS,106.10,6/27/2019
SERVICE SANITATION INC,MAINTENANCE & REPAIRS,295.00,8/6/2019
US BANK,FINANCIAL & TREAS SVCS,1500.00,9/13/2019
SHARPHEELS,TRAVEL & MEETING EXPENSE,690.00,10/29/2019
G & O THERMAL SUPPLY COMPANY,DIRECT PURCHASES,161.50,12/6/2019
THOMSON REUTERS-WEST,GENERAL EXPENSES,324.90,11/20/2019
"COMET MESSENGER SERVICE, INC.",CONTRACTUAL SERVICES,146.60,12/27/2019
BENJAMIN BRUCE M.D.,ADMINISTRATION & HR,750.00,1/18/2019
"HASTINGS AIR-ENERGY CONTROL,INC.",DIRECT PURCHASES,235.99,2/12/2019
"U.S. LEGAL SUPPORT, INCORPORATED",LEGAL COSTS,140.40,4/2/2019
UNITED EXPERT HOLDINGS LLC,CONSULTING,10293.75,4/26/2019
MCGILL CONSTRUCTION CO LLC,MAINTENANCE & REPAIRS,1650.00,4/30/2019
"HIGH PSI, LTD.",MAINTENANCE & REPAIRS,893.66,6/6/2019
PERSONAL STRENGTHS PUBLISHING INC,TRAVEL & MEETING EXPENSE,7980.00,6/27/2019
"JONES LANG LaSALLE, INCORPORATED",CONSULTING,45067.26,7/16/2019
*J.P. SIMONS & COMPANY,MAINTENANCE & REPAIRS,799.75,8/22/2019
"HIRERIGHT SOLUTIONS, INC.",ADMINISTRATION & HR,14638.14,8/30/2019
TAB SERVICE COMPANY,GENERAL EXPENSES,1129.91,10/17/2019
ZIONS BANK,GENERAL EXPENSES,33434.51,10/30/2019
"Pest Management Services, Inc.",MAINTENANCE & REPAIRS,4903.00,12/18/2019
JACKSON LEWIS PC,LEGAL COSTS,3248.00,12/27/2019
SHARED USE MOBILITY CENTER,TRAVEL & MEETING EXPENSE,950.00,1/25/2019
"CUBIC TRANSPORTATION SYSTEMS, INC.",DIRECT PURCHASES,385577.71,3/21/2019
TINA TAYLOR,LEGAL COSTS,25.00,3/13/2019
CORPORATE CONCEPTS INC,MAINTENANCE & REPAIRS,1890.00,3/26/2019
"INDUSTRIAL ENGINE SERVICE, INC.",DIRECT PURCHASES,625.15,3/25/2019
*SHAMROCK CATERING INC.,GENERAL EXPENSES,451.90,3/29/2019
JACKSON LEWIS PC,LEGAL COSTS,1568.00,5/21/2019
FOX VALLEY FIRE & SAFETY COMPANY,MAINTENANCE & REPAIRS,8416.25,6/13/2019
"*ANZY SUPPLY, INC.",MAINTENANCE & REPAIRS,385.71,8/2/2019
RUSSELL R. ROGERS,CONTRACTUAL SERVICES,11250.00,10/30/2019
"COMET MESSENGER SERVICE, INC.",CONTRACTUAL SERVICES,57.20,11/14/2019
TOWN OF CICERO,UTILITIES EXPENSE,5257.56,3/14/2019
DeFRANCE EILAND,LEGAL COSTS,150.00,4/25/2019
FOX VALLEY FIRE & SAFETY COMPANY,MAINTENANCE & REPAIRS,8710.00,6/12/2019
JOHNSON PIPE & SUPPLY CO.,DIRECT PURCHASES,63.30,7/24/2019
PEOPLES GAS,UTILITIES EXPENSE,15658.00,1/25/2019
"COMET MESSENGER SERVICE, INC.",GENERAL EXPENSES,31.14,3/22/2019
"THOMAS J. WALSH CONSULTING, LLC",CONTRACTUAL SERVICES,6000.00,3/13/2019
"*ANCHOR STAFFING, INC.",TECHNOLOGY SERVICES,1152.36,5/17/2019
NICHOLAS CARL FRISCH M.D.,ADMINISTRATION & HR,187.50,6/20/2019
ILLINOIS SECRETARY OF STATE,GENERAL EXPENSES,50.00,6/20/2019
"CAPRICORN COMMUNICATIONS, LLC",CONTRACTUAL SERVICES,6000.00,8/2/2019
"WEST PUBLISHING CORPORATION d/b/a THOMSON WEST, WEST GROUP OR WEST",GENERAL EXPENSES,3105.89,10/8/2019
YOURMEMBERSHIP.COM INC,ADVERTISING & PROMOTION,179.00,11/22/2019
"*ALLPOINTS SECURITY AND DETECTIVE, INC.",PURCHASE OF SECURITY SERVICES,20334.18,2/1/2019
CLAREMONT LLC,CONTRACTUAL SERVICES,2268.00,1/31/2019
"ATLAS FIRST ACCESS MATERIAL HANDLING, INC.",MAINTENANCE & REPAIRS,2758.09,2/6/2019
RENEE M LaPORTA,LEGAL COSTS,55.25,3/20/2019
GENUINE PARTS COMPANY (NAPA),DIRECT PURCHASES,10706.42,7/19/2019
UNITED PARCEL SERVICE,GENERAL EXPENSES,99.32,5/22/2019
JOHNSON PIPE & SUPPLY CO.,DIRECT PURCHASES,3623.15,7/2/2019
GENUINE PARTS COMPANY (NAPA),DIRECT PURCHASES,36715.69,7/12/2019
"MANSFIELD OIL COMPANY OF GAINESVILLE, INC.",FUEL EXPENSE,407904.22,8/2/2019
LORCHEM TECHNOLOGIES INC,MAINTENANCE & REPAIRS,3125.14,8/27/2019
"SAFETY KLEEN SYSTEMS, INC.",MAINTENANCE & REPAIRS,1467.38,9/11/2019
"BHFX, LLC",MAINTENANCE & REPAIRS,945.00,8/29/2019
SAMM GROUP,ADMINISTRATION & HR,750.00,9/25/2019
"COMET MESSENGER SERVICE, INC.",CONTRACTUAL SERVICES,45.50,10/18/2019
ANDERSON ELEVATOR CO.,MAINTENANCE & REPAIRS,93155.00,11/8/2019
"SAFETY KLEEN SYSTEMS, INC.",MAINTENANCE & REPAIRS,924.02,12/18/2019
ACCOUNTEMPS/DIV. ROBERT HALF,LEGAL COSTS,3660.00,12/24/2019
"WISCO, INC.",MAINTENANCE & REPAIRS,753.00,12/27/2019
"CRANE 1 SERVICES, INC.",MAINTENANCE & REPAIRS,7435.00,1/10/2019
"EWERT, INC. DBA MIDWEST GROUP DISTRIBUTION AND SERVICES",DIRECT PURCHASES,60.00,1/22/2019
EVERGREEN PARK RED LIGHT,GENERAL EXPENSES,100.00,2/19/2019
"WISCO, INC.",MAINTENANCE & REPAIRS,1220.14,4/2/2019
BEBON OFFICE MACHINES CO.,MAINTENANCE & REPAIRS,285.00,5/2/2019
CITY OF CHICAGO DEPT.OF REVENUE-RED LIGHT,GENERAL EXPENSES,800.00,8/6/2019
"MOBILE MINI, INC",EQUIPMENT RENTAL,1320.00,8/29/2019
ACCOUNTING PRINCIPALS INC,CONTRACTUAL SERVICES,845.40,10/4/2019
COMPUTER AID INC,TECHNOLOGY SERVICES,511293.95,9/27/2019
GENUINE PARTS COMPANY (NAPA),ADVERTISING & PROMOTION,15676.01,10/17/2019
"MCCORKLE LITIGATION SERVICES, INC",LEGAL COSTS,697.20,10/17/2019
"*FIRECO, INC.",MAINTENANCE & REPAIRS,1785.87,12/3/2019
CINTAS CORPORATION,DIRECT PURCHASES,482.16,11/21/2019
ANN S. KENIS,LEGAL COSTS,3000.00,12/5/2019
"MYERS SERVICE, INC.",LEGAL COSTS,384.00,12/11/2019
COMPUTER AID INC,TECHNOLOGY SERVICES,43801.60,2/5/2019
METROPOLITAN WATER RECLAMATION.,EQUIPMENT RENTAL,101624.90,2/12/2019
"*DIGBY'S DETECTIVE & SECURITY AGENCY, INC.",PURCHASE OF SECURITY SERVICES,47673.79,2/28/2019
VILLAGE OF OAK PARK UTILITIES,UTILITIES EXPENSE,1153.60,3/14/2019
"HIGH PSI, LTD.",MAINTENANCE & REPAIRS,749.63,4/18/2019
"PROTANIC, INC.",MAINTENANCE & REPAIRS,392.53,4/18/2019
"HIRERIGHT SOLUTIONS, INC.",ADMINISTRATION & HR,7669.00,5/29/2019
SEFTON REPORTING SERVICE LTD,LEGAL COSTS,339.10,6/11/2019
ILLINOIS SECRETARY OF STATE,GENERAL EXPENSES,50.00,6/20/2019
"THE MCS GROUP, INC.",ADMINISTRATION & HR,997.29,8/15/2019
UNIVERSITY OF ILLINOIS (UIC),CONTRACTUAL SERVICES,4640.00,10/8/2019
PEOPLES GAS,UTILITIES EXPENSE,55678.23,10/10/2019
GENUINE PARTS COMPANY (NAPA),MAINTENANCE & REPAIRS,100.80,11/21/2019
"COMCAST OF CHICAGO, IL",EQUIPMENT RENTAL,41.59,1/29/2019
CONTINENTAL LANGUAGES LLC,CONTRACTUAL SERVICES,480.00,1/31/2019
AT & T CORP,UTILITIES EXPENSE,164.15,3/26/2019
NEUROPSYCHOLOGICAL SERVICES PC,ADMINISTRATION & HR,6154.50,5/28/2019
"*VEI SOLUTIONS, INC.",MAINTENANCE & REPAIRS,4126.45,6/19/2019
LATHROP GAGE LLP,LEGAL COSTS,500.00,8/2/2019
"CHICAGO SUN-TIMES, INCORPORATED dba Sun-Times Media Productions, LLC",ADVERTISING & PROMOTION,818.44,9/26/2019
JAMES B DWORKIN,LEGAL COSTS,1500.00,10/8/2019
"LANER, MUCHIN, DOMBROW, BECKER,",EQUIPMENT RENTAL,130.48,11/7/2019
ROOT BROTHERS MFG. & SUPPLY CO.,DIRECT PURCHASES,3657.15,12/3/2019
JACKSON LEWIS PC,LEGAL COSTS,3080.00,12/6/2019
"PROTANIC, INC.",MAINTENANCE & REPAIRS,283.49,3/6/2019
SCARABAEUS LLC,CONTRACTUAL SERVICES,6000.00,3/13/2019
*SHAMROCK CATERING INC.,GENERAL EXPENSES,253.50,3/14/2019
JACKSON LEWIS PC,LEGAL COSTS,7532.00,3/18/2019
"RAILROAD MANAGEMENT COMPANY III, LLC",EQUIPMENT RENTAL,235.41,6/18/2019
"BUREAU VERITAS NORTH AMERICA, INC.",DIRECT PURCHASES,6143.80,10/29/2019
JACKSON LEWIS PC,LEGAL COSTS,2744.00,11/7/2019
89TH ST PROPERTIES LLC,FACILITY RENTAL,27968.92,11/8/2019
ESQUIRE DEPOSITION SERVICES,LEGAL COSTS,317.20,11/21/2019
GENUINE PARTS COMPANY (NAPA),MAINTENANCE & REPAIRS,220.37,12/11/2019
AGAE / PRO FENCE JOINT VENTURE,MAINTENANCE & REPAIRS,21843.20,12/10/2019
AMERICAN TOWERS LLC,EQUIPMENT RENTAL,8724.62,12/18/2019
ACCOUNTING PRINCIPALS INC,CONSULTING,1324.00,5/31/2019
PEOPLES GAS,UTILITIES EXPENSE,9942.60,7/25/2019
"GREENLINE ENVIRONMENTAL SOLUTIONS, LLC",MAINTENANCE & REPAIRS,909.00,7/23/2019
"RADICOM, INC.",MAINTENANCE & REPAIRS,15675.00,8/21/2019
"MARK ANDY, INC.",MAINTENANCE & REPAIRS,97.00,9/3/2019
"ATLAS FIRST ACCESS MATERIAL HANDLING, INC.",MAINTENANCE & REPAIRS,2023.17,9/26/2019
"*URLAUB, BOWEN & ASSOCIATES, INC.",LEGAL COSTS,38.36,11/21/2019
"VERIZON WIRELESS, INC.",UTILITIES EXPENSE,293487.55,12/3/2019
CHICAGO METRO CONSTRUCTION D/B/A ARLINGTON GLASS & MIRROR CO.,MAINTENANCE & REPAIRS,903.84,1/4/2019
"JULIAN, BETLEY & ASSOCIATES",LEGAL COSTS,120.00,4/16/2019
"COMET MESSENGER SERVICE, INC.",CONTRACTUAL SERVICES,6.50,7/2/2019
ACCOUNTEMPS/DIV. ROBERT HALF,LEGAL COSTS,4428.84,9/9/2019
ACCOUNTING PRINCIPALS INC,CONTRACTUAL SERVICES,848.06,11/1/2019
PITNEY BOWES GLOBAL MAILING SYSTEMS,MAINTENANCE & REPAIRS,315.60,11/6/2019
"OER SERVICES, LLC",EQUIPMENT RENTAL,1540.00,12/11/2019
NAPERVILLE EAR NOSE AND THROAT,ADMINISTRATION & HR,750.00,12/10/2019
CSC,MAINTENANCE & REPAIRS,4268.00,3/25/2019
CITY OF BURBANK,GENERAL EXPENSES,100.00,6/7/2019
"COMET MESSENGER SERVICE, INC.",GENERAL EXPENSES,58.38,6/21/2019
TOMPKINS PRINTING EQUIPMENT CO.,MAINTENANCE & REPAIRS,2207.11,6/28/2019
89TH ST PROPERTIES LLC,FACILITY RENTAL,27968.92,7/2/2019
"OFFICE DEPOT, INCORPORATED",DIRECT PURCHASES,160.45,7/29/2019
GENUINE PARTS COMPANY (NAPA),MAINTENANCE & REPAIRS,1020.60,12/6/2019
"WISCO, INC.",MAINTENANCE & REPAIRS,1739.90,1/8/2019
"PROTANIC, INC.",MAINTENANCE & REPAIRS,8110.38,1/15/2019
"QUEST DIAGNOSTICS, INC,",ADMINISTRATION & HR,63694.25,1/15/2019
HARSCO RAIL,DIRECT PURCHASES,1122.20,2/5/2019
"OER SERVICES, LLC",EQUIPMENT RENTAL,32948.71,3/8/2019
"ATLAS FIRST ACCESS MATERIAL HANDLING, INC.",MAINTENANCE & REPAIRS,11182.88,3/26/2019
"INTERSTATE POWER SYSTEMS, INC.",MAINTENANCE & REPAIRS,321.50,4/9/2019
GENUINE PARTS COMPANY (NAPA),DIRECT PURCHASES,48528.04,4/5/2019
"*MOTR GRAFX, LLC",CONTRACTUAL SERVICES,210.00,4/24/2019
CHICAGO METRO CONSTRUCTION D/B/A ARLINGTON GLASS & MIRROR CO.,MAINTENANCE & REPAIRS,418.08,4/26/2019
VERITEXT CHICAGO REPORTING CO.,LEGAL COSTS,559.50,4/30/2019
CHICAGO URBAN LEAGUE,CONTRACTUAL SERVICES,15000.00,4/30/2019
GENUINE PARTS COMPANY (NAPA),DIRECT PURCHASES,45237.48,6/14/2019
"MCCORKLE LITIGATION SERVICES, INC",LEGAL COSTS,701.65,5/31/2019
CUMMINS INC.,MAINTENANCE & REPAIRS,1467.76,6/18/2019
JOHNSON PIPE & SUPPLY CO.,DIRECT PURCHASES,528.17,7/3/2019
"MANSFIELD OIL COMPANY OF GAINESVILLE, INC.",FUEL EXPENSE,217363.12,7/3/2019
JOHNSON CONTROLS FIRE PROTECTION LP,MAINTENANCE & REPAIRS,55.50,7/8/2019
"ATLAS FIRST ACCESS MATERIAL HANDLING, INC.",MAINTENANCE & REPAIRS,15590.17,7/29/2019
GENUINE PARTS COMPANY (NAPA),DIRECT PURCHASES,16151.88,9/16/2019
BARBARA CARDINE,CREDITS,20.00,8/16/2019
"WISCO, INC.",MAINTENANCE & REPAIRS,1050.40,8/20/2019
"ATLAS FIRST ACCESS MATERIAL HANDLING, INC.",MAINTENANCE & REPAIRS,478.50,9/17/2019
"ORACLE AMERICA, INC.",MAINTENANCE & REPAIRS,77499.99,9/27/2019
BRE RIVER NORTH POINT OWNER,FACILITY RENTAL,52250.27,10/1/2019
HOTEL EDISON,TRAVEL & MEETING EXPENSE,949.27,10/1/2019
"GREENLINE ENVIRONMENTAL SOLUTIONS, LLC",MAINTENANCE & REPAIRS,16257.58,10/23/2019
"JOHNSON CONTROLS, INC.",MAINTENANCE & REPAIRS,5256.00,10/25/2019
GENUINE PARTS COMPANY (NAPA),TRAVEL & MEETING EXPENSE,28211.33,11/20/2019
MAGGIANO'S LITTLE ITALY,TRAVEL & MEETING EXPENSE,3886.20,11/13/2019
BUILDERS CHICAGO CORPORATION,MAINTENANCE & REPAIRS,1401.40,12/27/2019
UNITEC PARTS CO.,DIRECT PURCHASES,11229.28,2/14/2019
PNC BANK,GENERAL EXPENSES,20.99,2/20/2019
"SAF-T-GARD INTERNATIONAL, INC.",CONTRACTUAL SERVICES,451.20,3/19/2019
MINE SAFETY APPLIANCES CO. (MSA),GENERAL EXPENSES,6060.00,3/14/2019
"OER SERVICES, LLC",MAINTENANCE & REPAIRS,1840.00,4/10/2019
"MANSFIELD OIL COMPANY OF GAINESVILLE, INC.",DIRECT PURCHASES,1091.55,4/8/2019
COMPUTER AID INC,TECHNOLOGY SERVICES,509344.52,6/7/2019
LOEWS MINNEAPOLIS HOTEL,TRAVEL & MEETING EXPENSE,1025.16,6/7/2019
NORTHERN ILLINOIS GAS,UTILITIES EXPENSE,1158.41,6/26/2019
DYNEGY ENERGY SERVICES,UTILITIES EXPENSE,386903.01,8/9/2019
PACER SERVICE CENTER,GENERAL EXPENSES,269.60,7/18/2019
"SPRINT SOLUTIONS, INC.",UTILITIES EXPENSE,33410.42,7/18/2019
GENUINE PARTS COMPANY (NAPA),DIRECT PURCHASES,12150.98,8/16/2019
"AUTOMATIC FIRE CONTROLS, INC.",MAINTENANCE & REPAIRS,3000.00,10/31/2019
G & O THERMAL SUPPLY COMPANY,DIRECT PURCHASES,3198.45,11/8/2019
YOURMEMBERSHIP.COM INC,ADVERTISING & PROMOTION,220.00,11/22/2019
ANITA M. ROWE,LEGAL COSTS,1200.00,1/18/2019
"GREENLINE ENVIRONMENTAL SOLUTIONS, LLC",MAINTENANCE & REPAIRS,1000.00,2/15/2019
"PROTANIC, INC.",MAINTENANCE & REPAIRS,4211.30,1/29/2019
"Powell Electrical Systems, Inc.",CONTRACTUAL SERVICES,269.76,2/14/2019
"COMET MESSENGER SERVICE, INC.",CONTRACTUAL SERVICES,6.50,4/30/2019
CALIBER PACKAGING LLC,MAINTENANCE & REPAIRS,911.35,5/1/2019
"*ALLPOINTS SECURITY AND DETECTIVE, INC.",PURCHASE OF SECURITY SERVICES,22006.38,6/25/2019
CHICAGO ORTHOPEDIC SPORTS MEDICINE,ADMINISTRATION & HR,750.00,7/16/2019
"HITACHI RAIL STS USA, INC.",DIRECT PURCHASES,3380.00,9/20/2019
RUSSELL R. ROGERS,CONTRACTUAL SERVICES,11250.00,9/6/2019
A.G.A.D PEST CONTROL INC,MAINTENANCE & REPAIRS,1600.00,10/16/2019
EVERGREEN PARK RED LIGHT,GENERAL EXPENSES,100.00,10/31/2019
"*ANCHOR STAFFING, INC.",TECHNOLOGY SERVICES,1185.11,11/8/2019
"AMERESCO, INC.",CONSULTING,14730.00,4/30/2019
UNITED PARCEL SERVICE,TRAVEL & MEETING EXPENSE,1040.10,4/18/2019
US BANK,FINANCIAL & TREAS SVCS,500.00,5/23/2019
TAFT STETTINIUS & HOLLISTER LLP,CONTRACTUAL SERVICES,10.00,12/12/2019
BLAZEN ILLUMINATIONS LLC,CONTRACTUAL SERVICES,500.00,12/31/2019
"LAICON, INC.",CONSULTING,2410.00,3/12/2019
STEVEN M BIERIG,LEGAL COSTS,320.00,2/26/2019
RECORD COPY SERVICES CO.,ADMINISTRATION & HR,39.75,5/7/2019
IAP CONSTRUCTION INC.,MAINTENANCE & REPAIRS,5900.00,5/29/2019
"INTERSTATE POWER SYSTEMS, INC.",MAINTENANCE & REPAIRS,119.95,6/14/2019
"MARATHON SPORTSWEAR, INC.",ADVERTISING & PROMOTION,941.50,7/30/2019
ILLINOIS DEPARTMENT OF HUMAN RIGHTS,GENERAL EXPENSES,15.00,8/13/2019
COMPUTER AID INC,TECHNOLOGY SERVICES,21209.50,10/4/2019
IEEE OPERATIONS CENTER,GENERAL EXPENSES,263.00,11/8/2019
UNITEC PARTS CO.,DIRECT PURCHASES,4082.22,2/15/2019
"MCCORKLE LITIGATION SERVICES, INC",LEGAL COSTS,268.27,2/6/2019
"MWM CONSULTING GROUP, INC.",CONSULTING,17000.00,4/24/2019
"THOMAS J. WALSH CONSULTING, LLC",CONTRACTUAL SERVICES,6000.00,6/25/2019
GENUINE PARTS COMPANY (NAPA),CONSULTING,140578.08,7/10/2019
"*VEI SOLUTIONS, INC.",MAINTENANCE & REPAIRS,2128.32,11/22/2019
MICHAEL BEST & FRIEDRICH-CHGO,CONSULTING,1287.69,1/15/2019
CITY OF BURBANK,GENERAL EXPENSES,100.00,4/16/2019
KENNETH HOSKINS,LEGAL COSTS,75.00,6/26/2019
TOWN OF CICERO,UTILITIES EXPENSE,310.63,9/5/2019
JC Rivera Inc,CONTRACTUAL SERVICES,1000.00,4/23/2019
"MCCORKLE LITIGATION SERVICES, INC",LEGAL COSTS,261.84,8/12/2019
"ATLAS FIRST ACCESS MATERIAL HANDLING, INC.",MAINTENANCE & REPAIRS,6267.43,1/17/2019
AGAE / PRO FENCE JOINT VENTURE,MAINTENANCE & REPAIRS,3091.80,1/16/2019
ROMAY CORP.,LEGAL COSTS,942.10,1/18/2019
"*ANDERSON & SHAH ROOFING, INC.",MAINTENANCE & REPAIRS,15992.10,2/12/2019
"Legalink, Inc. d/b/a Epiq Court Reporting",LEGAL COSTS,1282.40,1/22/2019
"PROTANIC, INC.",MAINTENANCE & REPAIRS,6100.00,2/13/2019
"GUARDIAN INDUSTRIAL SUPPLY, LLC",DIRECT PURCHASES,2486.18,3/12/2019
"SAFETY KLEEN SYSTEMS, INC.",MAINTENANCE & REPAIRS,14725.58,3/6/2019
"OER SERVICES, LLC",EQUIPMENT RENTAL,46433.78,3/20/2019
JAMES DWORKIN,LEGAL COSTS,750.00,2/26/2019
"INTERSTATE POWER SYSTEMS, INC.",MAINTENANCE & REPAIRS,2267.25,3/22/2019
NOTARY PUBLIC ASSOCIATION,GENERAL EXPENSES,54.00,3/12/2019
"MARK ANDY, INC.",MAINTENANCE & REPAIRS,125.00,3/27/2019
TAFT STETTINIUS & HOLLISTER LLP,LEGAL COSTS,139374.42,3/19/2019
"MANSFIELD OIL COMPANY OF GAINESVILLE, INC.",FUEL EXPENSE,81433.00,4/2/2019
"AMERICAN BUILDING SERVICES, LLC (M-D BUILDING MATERIALS)",DIRECT PURCHASES,1630.38,5/3/2019
"WISCO, INC.",MAINTENANCE & REPAIRS,695.10,4/30/2019
CHICAGO METRO CONSTRUCTION D/B/A ARLINGTON GLASS & MIRROR CO.,MAINTENANCE & REPAIRS,3706.68,5/31/2019
CITY OF CHICAGO DEPT.OF REVENUE-RED LIGHT,GENERAL EXPENSES,200.00,6/7/2019
TXO SYSTEMS INC,DIRECT PURCHASES,5800.00,6/20/2019
"Legalink, Inc. d/b/a Epiq Court Reporting",LEGAL COSTS,2310.50,6/21/2019
*J.P. SIMONS & COMPANY,DIRECT PURCHASES,5732.66,7/25/2019
"MANSFIELD OIL COMPANY OF GAINESVILLE, INC.",FUEL EXPENSE,247831.03,8/1/2019
GENUINE PARTS COMPANY (NAPA),ADVERTISING & PROMOTION,3685.05,9/6/2019
"THOMAS J. WALSH CONSULTING, LLC",CONTRACTUAL SERVICES,6000.00,9/12/2019
PETER R. MEYERS,LEGAL COSTS,6007.93,9/19/2019
MEDIAAGILITY INC,TECHNOLOGY SERVICES,2228.10,9/24/2019
GRANT LAW LLC,LEGAL COSTS,37591.00,9/24/2019
"WISCO, INC.",MAINTENANCE & REPAIRS,845.20,11/6/2019
ZIONS BANK,GENERAL EXPENSES,102089.57,11/15/2019
KONE SPARES,DIRECT PURCHASES,3057.00,12/24/2019
"ARAMARK UNIFORM SERVICES, INC.",CONTRACTUAL SERVICES,297.32,12/18/2019
GRANT LAW LLC,LEGAL COSTS,4639.00,12/20/2019
"PROMPT ELECTRIC, INC.",MAINTENANCE & REPAIRS,3041.76,1/24/2019
FOREST PARK POLICE DEPT.,PURCHASE OF SECURITY SERVICES,6799.11,1/31/2019
"*THE BLUEPRINT SHOPPE, INC.",MAINTENANCE & REPAIRS,1301.95,3/26/2019
NOETIX CORPORATION,MAINTENANCE & REPAIRS,105.45,3/14/2019
FLOATING MUSEUM,CONTRACTUAL SERVICES,5000.00,4/9/2019
DENIS WILLIAMS LLC,ADMINISTRATION & HR,1500.00,4/30/2019
"ACTION K-9 SECURITY, INC.",PURCHASE OF SECURITY SERVICES,372831.26,5/10/2019
CDW GOVERNMENT LLC,DIRECT PURCHASES,42.00,6/4/2019
*J.P. SIMONS & COMPANY,DIRECT PURCHASES,2858.80,7/5/2019
"AUTOMATIC FIRE CONTROLS, INC.",MAINTENANCE & REPAIRS,5000.00,9/12/2019
UNITED PARCEL SERVICE,GENERAL EXPENSES,84.48,9/24/2019
"GREENLINE ENVIRONMENTAL SOLUTIONS, LLC",MAINTENANCE & REPAIRS,4624.00,10/10/2019
"JOHNSON CONTROLS, INC.",MAINTENANCE & REPAIRS,2350.00,11/14/2019
MURRAY & TRETTEL INC,GENERAL EXPENSES,416.25,10/25/2019
NORTHERN ILLINOIS GAS,UTILITIES EXPENSE,162.69,11/5/2019
PNC BANK,TRAVEL & MEETING EXPENSE,1398.32,12/16/2019
"RTB, S.C.",ADMINISTRATION & HR,300.00,2/8/2019
CHICAGO METRO CONSTRUCTION D/B/A ARLINGTON GLASS & MIRROR CO.,MAINTENANCE & REPAIRS,8488.28,3/15/2019
SERVICE SANITATION INC,MAINTENANCE & REPAIRS,1207.00,4/26/2019
ILLINOIS SECRETARY OF STATE,GENERAL EXPENSES,50.00,6/20/2019
"OER SERVICES, LLC",EQUIPMENT RENTAL,2240.00,6/28/2019
CDW GOVERNMENT LLC,MAINTENANCE & REPAIRS,11850.00,8/15/2019
*J.P. SIMONS & COMPANY,DIRECT PURCHASES,517.04,10/4/2019
NIKKI HALE CONSULTING INC,CONTRACTUAL SERVICES,1500.00,9/17/2019
JOHNSON PIPE & SUPPLY CO.,DIRECT PURCHASES,1888.25,10/28/2019
AN EXECUTIVE DECISION,ADVERTISING & PROMOTION,1063.58,10/29/2019
ACCOUNTING PRINCIPALS INC,CONTRACTUAL SERVICES,1061.60,11/22/2019
"STANTON MECHANICAL, INC.",MAINTENANCE & REPAIRS,23058.19,12/27/2019
VERITEXT CHICAGO REPORTING CO.,LEGAL COSTS,410.95,1/9/2019
EHC CANADA INC. d/b/a EHC GLOBAL,DIRECT PURCHASES,1850.00,2/19/2019
"HIRERIGHT SOLUTIONS, INC.",ADMINISTRATION & HR,14531.24,3/13/2019
GREENBERG TRAURIG LLP,LEGAL COSTS,12336.00,3/19/2019
MASSACHUSETTS INSTITUTE OF TECHNOLOGY,CONTRACTUAL SERVICES,49248.27,4/17/2019
"CANON BUSINESS SOLUTIONS, INC.",MAINTENANCE & REPAIRS,8629.60,5/10/2019
JACKSON LEWIS PC,LEGAL COSTS,1904.00,5/21/2019
"CANON BUSINESS SOLUTIONS, INC.",MAINTENANCE & REPAIRS,9684.85,6/12/2019
ELIAS VALDOVINO,LEGAL COSTS,75.00,6/12/2019
TYRONE FELIX,LEGAL COSTS,25.00,6/20/2019
"*ANCHOR STAFFING, INC.",TECHNOLOGY SERVICES,721.68,7/22/2019
"WISCO, INC.",CONTRACTUAL SERVICES,336.54,8/27/2019
"MCCORKLE LITIGATION SERVICES, INC",GENERAL EXPENSES,513.25,9/18/2019
ARC IMAGING RESOURCES,MAINTENANCE & REPAIRS,120.18,10/15/2019
"AT&T MOBILITY NATIONAL ACCOUNTS, LLC",UTILITIES EXPENSE,505.58,10/22/2019
"*THE BLUEPRINT SHOPPE, INC.",MAINTENANCE & REPAIRS,329.37,10/31/2019
INTERNAL REVENUE SERVICE,GENERAL EXPENSES,234406.75,11/13/2019
CONTINENTAL LANGUAGES LLC,CONTRACTUAL SERVICES,727.50,11/29/2019
"*MULTILINGUAL CONNECTIONS, LLC",ADVERTISING & PROMOTION,55.00,5/10/2019
CORPORATE CONCEPTS INC,MAINTENANCE & REPAIRS,5920.00,5/30/2019
"MYERS SERVICE, INC.",LEGAL COSTS,184.00,9/10/2019
SPECIALTY'S CAFE & BAKERY,TRAVEL & MEETING EXPENSE,208.57,10/3/2019
CINTAS CORPORATION,MAINTENANCE & REPAIRS,36.76,1/14/2019
"*ALLPOINTS SECURITY AND DETECTIVE, INC.",PURCHASE OF SECURITY SERVICES,20978.56,2/15/2019
ENTERPRISE LEASING COMPANY OF CHICAGO,EQUIPMENT RENTAL,124593.94,2/12/2019
CHICAGO METRO CONSTRUCTION D/B/A ARLINGTON GLASS & MIRROR CO.,MAINTENANCE & REPAIRS,8288.23,3/22/2019
"CUBIC TRANSPORTATION SYSTEMS, INC.",DIRECT PURCHASES,354366.57,3/20/2019
TAFT STETTINIUS & HOLLISTER LLP,LEGAL COSTS,855.50,7/10/2019
EVERGREEN PARK RED LIGHT,GENERAL EXPENSES,100.00,7/18/2019
ERIC THOMAS,LEGAL COSTS,75.00,8/27/2019
"OER SERVICES, LLC",MAINTENANCE & REPAIRS,1792.00,10/4/2019
NOTARY PUBLIC ASSOCIATION,GENERAL EXPENSES,54.00,1/15/2019
"FRASCO, INC.",LEGAL COSTS,175.00,2/20/2019
DIGICERT INC,DIRECT PURCHASES,396.00,4/4/2019
"DATA WEIGHING SYSTEMS, INC.",MAINTENANCE & REPAIRS,330.00,4/25/2019
MASSACHUSETTS INSTITUTE OF TECHNOLOGY,CONTRACTUAL SERVICES,100483.34,4/17/2019
"CAPRICORN COMMUNICATIONS, LLC",CONTRACTUAL SERVICES,6000.00,5/3/2019
*INSPIRED CATERING & EVENTS,GENERAL EXPENSES,266.00,6/27/2019
ZIONS BANK,GENERAL EXPENSES,43590.31,9/4/2019
"LAW BULLETIN PUBLISHING CO, INC.",FINANCIAL & TREAS SVCS,5563.00,10/2/2019
"INTERSTATE POWER SYSTEMS, INC.",MAINTENANCE & REPAIRS,419.85,11/27/2019
COOK COUNTY SHERIFF DEPARTMENT,LEGAL COSTS,40.00,1/29/2019
"*DIGBY'S DETECTIVE & SECURITY AGENCY, INC.",PURCHASE OF SECURITY SERVICES,46854.36,3/14/2019
JACKSON LEWIS PC,LEGAL COSTS,9632.00,5/21/2019
JOEL R ANDERSON PC,ADMINISTRATION & HR,1000.00,11/27/2019
JACKSON LEWIS PC,LEGAL COSTS,980.00,12/4/2019
PITNEY BOWES GLOBAL MAILING SYSTEMS,MAINTENANCE & REPAIRS,264.60,1/11/2019
"PROTANIC, INC.",MAINTENANCE & REPAIRS,1100.00,1/28/2019
"GREENLINE ENVIRONMENTAL SOLUTIONS, LLC",MAINTENANCE & REPAIRS,6390.00,2/21/2019
"ACTION K-9 SECURITY, INC.",PURCHASE OF SECURITY SERVICES,520967.73,2/19/2019
"WISCO, INC.",MAINTENANCE & REPAIRS,415.40,3/14/2019
"HADADY MACHINING CO., INC.",DIRECT PURCHASES,14419.75,3/6/2019
"CLEVER DEVICES, LTD",MAINTENANCE & REPAIRS,387649.39,3/21/2019
ACCOUNTING PRINCIPALS INC,CONTRACTUAL SERVICES,3857.28,3/19/2019
STAPLES ADVANTAGE,DIRECT PURCHASES,34580.86,3/29/2019
PNC BANK,GENERAL EXPENSES,94.19,3/18/2019
"GREENLINE ENVIRONMENTAL SOLUTIONS, LLC",MAINTENANCE & REPAIRS,3350.00,4/5/2019
AGAE / PRO FENCE JOINT VENTURE,MAINTENANCE & REPAIRS,8953.60,4/11/2019
GENUINE PARTS COMPANY (NAPA),MAINTENANCE & REPAIRS,817.06,5/7/2019
UNITED PARCEL SERVICE,GENERAL EXPENSES,207.59,4/30/2019
STAPLES ADVANTAGE,DIRECT PURCHASES,1118.63,4/29/2019
ENTERPRISE FLEET SERVICES,EQUIPMENT RENTAL,124253.01,5/31/2019
GENUINE PARTS COMPANY (NAPA),DIRECT PURCHASES,45435.61,6/6/2019
CINTAS CORPORATION,DIRECT PURCHASES,2872.08,5/28/2019
JAMES Q BRENNWALD,LEGAL COSTS,600.00,6/11/2019
ESSEX BROWNELL,DIRECT PURCHASES,4581.83,8/23/2019
PROGRESS RAIL SERVICES CORPORATION,DIRECT PURCHASES,3358.51,4/12/2019
GENUINE PARTS COMPANY (NAPA),DIRECT PURCHASES,23691.46,7/3/2019
AGAE / PRO FENCE JOINT VENTURE,MAINTENANCE & REPAIRS,29682.00,6/25/2019
GENUINE PARTS COMPANY (NAPA),DIRECT PURCHASES,13688.23,7/16/2019
"GUARDIAN INDUSTRIAL SUPPLY, LLC",DIRECT PURCHASES,1132.00,7/23/2019
"CRANE 1 SERVICES, INC.",MAINTENANCE & REPAIRS,1542.24,8/8/2019
"THE MCS GROUP, INC.",ADMINISTRATION & HR,3157.72,7/26/2019
GENUINE PARTS COMPANY (NAPA),CONTRACTUAL SERVICES,1475.04,9/24/2019
"WISCO, INC.",MAINTENANCE & REPAIRS,120.56,9/13/2019
"LANER, MUCHIN, DOMBROW, BECKER,",LEGAL COSTS,624.00,9/24/2019
*J.P. SIMONS & COMPANY,DIRECT PURCHASES,2645.12,10/30/2019
CUMMINS INC.,MAINTENANCE & REPAIRS,711.63,10/22/2019
"VERITEXT, LLC",LEGAL COSTS,8157.90,10/16/2019
"MANSFIELD OIL COMPANY OF GAINESVILLE, INC.",FUEL EXPENSE,141485.13,10/28/2019
GENUINE PARTS COMPANY (NAPA),GENERAL EXPENSES,379.43,11/27/2019
GENUINE PARTS COMPANY (NAPA),DIRECT PURCHASES,18564.12,11/21/2019
GENUINE PARTS COMPANY (NAPA),TRAVEL & MEETING EXPENSE,7353.47,11/22/2019
ARC IMAGING RESOURCES,MAINTENANCE & REPAIRS,144.00,12/10/2019
SAFETY VISION LLC,FINANCIAL & TREAS SVCS,28564.25,12/31/2019
TOMPKINS PRINTING EQUIPMENT CO.,MAINTENANCE & REPAIRS,1288.99,2/13/2019
"CHICAGO UNITED INDUSTRIES, LTD.",DIRECT PURCHASES,138.59,3/12/2019
"*ABC HUMANE WILDLIFE CONTROL & PREVENTION, INC.",MAINTENANCE & REPAIRS,424.50,3/1/2019
"SAMUEL CHMELL, M.D.",ADMINISTRATION & HR,3250.00,2/26/2019
"ZIPCAR, INC.",EQUIPMENT RENTAL,596.15,4/10/2019
CUMMINS INC.,MAINTENANCE & REPAIRS,2939.21,4/5/2019
ARC IMAGING RESOURCES,MAINTENANCE & REPAIRS,5490.61,4/26/2019
TAFT STETTINIUS & HOLLISTER LLP,LEGAL COSTS,79933.54,4/30/2019
FOX VALLEY FIRE & SAFETY COMPANY,MAINTENANCE & REPAIRS,26406.50,5/28/2019
CINTAS CORPORATION,MAINTENANCE & REPAIRS,2209.48,10/25/2019
"WISCO, INC.",DIRECT PURCHASES,17.80,1/15/2019
"MIDWEST COMPUTER PRODUCTS, INC.",DIRECT PURCHASES,800.00,3/1/2019
CAIRS,GENERAL EXPENSES,367.25,2/26/2019
"ATLAS FIRST ACCESS MATERIAL HANDLING, INC.",MAINTENANCE & REPAIRS,1338.17,4/9/2019
TOMPKINS PRINTING EQUIPMENT CO.,MAINTENANCE & REPAIRS,535.00,5/31/2019
"GREENLINE ENVIRONMENTAL SOLUTIONS, LLC",MAINTENANCE & REPAIRS,430.00,8/9/2019
"J2 CLOUD SERVICES, LLC.",CONTRACTUAL SERVICES,151.80,9/26/2019
ZIONS BANK,GENERAL EXPENSES,1225916.67,11/22/2019
"JONES LANG LaSALLE, INCORPORATED",MAINTENANCE & REPAIRS,406251.56,12/18/2019
"COMET MESSENGER SERVICE, INC.",CONTRACTUAL SERVICES,87.13,1/4/2019
ENTERPRISE LEASING COMPANY OF CHICAGO,EQUIPMENT RENTAL,89464.94,1/8/2019
POSTAL PARTNERS,GENERAL EXPENSES,94.37,1/10/2019
COOK COUNTY SHERIFF DEPARTMENT,LEGAL COSTS,80.00,1/16/2019
India Martin,CONTRACTUAL SERVICES,1000.00,4/16/2019
CITY OF CHICAGO DEPT.OF REVENUE-RED LIGHT,GENERAL EXPENSES,500.00,4/25/2019
"HERITAGE-CRYSTAL CLEAN, LLC",DIRECT PURCHASES,2240.00,7/12/2019
CITY OF HOMETOWN,GENERAL EXPENSES,100.00,7/30/2019
"VULCAN CONSTRUCTION MATERIALS, LLC",DIRECT PURCHASES,4919.22,11/5/2019
COZEN O'CONNOR,LEGAL COSTS,16461.00,11/27/2019
NORTHERN ILLINOIS UNIVERSITY,TRAVEL & MEETING EXPENSE,850.00,11/14/2019
"*WILEY'S LAWN CARE, LLC",MAINTENANCE & REPAIRS,4865.00,11/19/2019
"INSPE ASSOCIATES,LTD.",ADMINISTRATION & HR,6990.00,12/18/2019
"108 NORTH STATE ST. (CHICAGO) OWNER,LLC",FACILITY RENTAL,32200.00,3/14/2019
ACCOUNTING PRINCIPALS INC,CONTRACTUAL SERVICES,1377.60,3/22/2019
APOLLO VIDEO TECHNOLOGY,FINANCIAL & TREAS SVCS,431.00,4/26/2019
RECORD COPY SERVICES CO.,ADMINISTRATION & HR,417.85,4/26/2019
CUMMINS INC.,MAINTENANCE & REPAIRS,304.90,5/24/2019
BUILDERS CHICAGO CORPORATION,MAINTENANCE & REPAIRS,740.00,8/16/2019
CITY OF EVANSTON,UTILITIES EXPENSE,714.19,10/2/2019
CAMERON BLOUNT,LEGAL COSTS,75.00,11/12/2019
G.A.G. INDUSTRIES CORP.,MAINTENANCE & REPAIRS,52755.89,11/19/2019
"MCCORKLE LITIGATION SERVICES, INC",GENERAL EXPENSES,162.48,1/30/2019
CORPORATE CONCEPTS INC,DIRECT PURCHASES,3095.00,3/19/2019
LYNN ANN KOENIG,LEGAL COSTS,124.00,1/31/2019
NATIONAL ELECTRIC GATE CO.,DIRECT PURCHASES,3200.00,3/14/2019
DONALD MOORE,LEGAL COSTS,75.00,2/28/2019
GENUINE PARTS COMPANY (NAPA),DIRECT PURCHASES,24030.00,4/10/2019
CITY OF CHICAGO-DEPT OF WATER,UTILITIES EXPENSE,23312.24,5/29/2019
"VULCAN CONSTRUCTION MATERIALS, LLC",DIRECT PURCHASES,6098.42,7/25/2019
*SHAMROCK CATERING INC.,TRAVEL & MEETING EXPENSE,367.50,7/17/2019
SANGAMON COUNTY SHERIFF,LEGAL COSTS,50.00,8/9/2019
CENTER OF BRAIN & SPINE SURGERY,ADMINISTRATION & HR,1200.00,10/25/2019
JACKSON LEWIS PC,LEGAL COSTS,2044.00,5/21/2019
"CHICAGO SUN-TIMES, INCORPORATED dba Sun-Times Media Productions, LLC",ADVERTISING & PROMOTION,1272.80,8/28/2019
PEOPLES GAS,UTILITIES EXPENSE,6319.15,9/6/2019
CLEAN! CLEAN! DRY CLEANERS,DIRECT PURCHASES,269.50,11/19/2019
JACKSON LEWIS PC,LEGAL COSTS,3528.00,2/6/2019
"MANSFIELD OIL COMPANY OF GAINESVILLE, INC.",FUEL EXPENSE,337374.43,1/16/2019
G & O THERMAL SUPPLY COMPANY,DIRECT PURCHASES,603.50,3/8/2019
"MCCORKLE LITIGATION SERVICES, INC",LEGAL COSTS,4017.49,2/22/2019
MELAN LUCAS,LEGAL COSTS,75.00,2/22/2019
GENUINE PARTS COMPANY (NAPA),DIRECT PURCHASES,16698.58,3/14/2019
CENTURION STORE SUPPLIES,DIRECT PURCHASES,201.44,3/13/2019
*J.P. SIMONS & COMPANY,DIRECT PURCHASES,12486.55,3/28/2019
"INDUSTRIAL ENGINE SERVICE, INC.",DIRECT PURCHASES,2979.56,3/29/2019
INTERTEK USA INC.,CONTRACTUAL SERVICES,7344.00,3/29/2019
"LAW BULLETIN PUBLISHING CO, INC.",FINANCIAL & TREAS SVCS,3000.00,3/29/2019
GENUINE PARTS COMPANY (NAPA),DIRECT PURCHASES,17117.55,4/11/2019
"GREENLINE ENVIRONMENTAL SOLUTIONS, LLC",MAINTENANCE & REPAIRS,4285.00,4/9/2019
CHICAGO METRO CONSTRUCTION D/B/A ARLINGTON GLASS & MIRROR CO.,MAINTENANCE & REPAIRS,733.46,5/17/2019
"LANER, MUCHIN, DOMBROW, BECKER,",LEGAL COSTS,3671.56,4/29/2019
LUBY LAW P.C,CONSULTING,1000.00,5/21/2019
"ATLAS FIRST ACCESS MATERIAL HANDLING, INC.",MAINTENANCE & REPAIRS,643.00,6/20/2019
"INTERSTATE POWER SYSTEMS, INC.",MAINTENANCE & REPAIRS,1704.60,7/17/2019
"THE MCS GROUP, INC.",ADMINISTRATION & HR,5218.51,6/25/2019
"SAFETY KLEEN SYSTEMS, INC.",MAINTENANCE & REPAIRS,4665.83,7/10/2019
"PROTANIC, INC.",MAINTENANCE & REPAIRS,2945.00,7/15/2019
SCARABAEUS LLC,CONTRACTUAL SERVICES,6000.00,7/30/2019
XEROX CORPORATION /XEROX CTR,MAINTENANCE & REPAIRS,11622.99,7/18/2019
"*DIGBY'S DETECTIVE & SECURITY AGENCY, INC.",PURCHASE OF SECURITY SERVICES,95427.34,8/14/2019
"WISCO, INC.",DIRECT PURCHASES,321.50,9/25/2019
"OER SERVICES, LLC",MAINTENANCE & REPAIRS,2880.00,9/17/2019
PNC BANK,LEGAL COSTS,92.61,9/17/2019
GENUINE PARTS COMPANY (NAPA),DIRECT PURCHASES,11714.86,11/8/2019
"WISCO, INC.",DIRECT PURCHASES,337.09,11/14/2019
"MANSFIELD OIL COMPANY OF GAINESVILLE, INC.",FUEL EXPENSE,432157.13,11/18/2019
GENUINE PARTS COMPANY (NAPA),DIRECT PURCHASES,33119.24,12/27/2019
"CANON BUSINESS SOLUTIONS, INC.",MAINTENANCE & REPAIRS,8608.16,12/9/2019
"OCCUPATIONAL HEALTH CENTERS OF THE SOUTHWEST, PA. d/b/a CONCENTRA MEDICAL CENTERS",ADMINISTRATION & HR,61364.50,12/11/2019
"MANSFIELD OIL COMPANY OF GAINESVILLE, INC.",FUEL EXPENSE,57710.94,12/18/2019
"*ALLPOINTS SECURITY AND DETECTIVE, INC.",PURCHASE OF SECURITY SERVICES,21549.73,12/20/2019
"ZF SERVICES NORTH AMERICA, LLC",MATERIAL LOAD/ADJ,9625.00,3/1/2019
ADVOCATE COURT REPORTERS LLC,LEGAL COSTS,127.70,2/14/2019
CHICAGO METRO CONSTRUCTION D/B/A ARLINGTON GLASS & MIRROR CO.,MAINTENANCE & REPAIRS,1505.32,2/8/2019
"THE MCS GROUP, INC.",ADMINISTRATION & HR,1757.10,2/1/2019
"ATLAS FIRST ACCESS MATERIAL HANDLING, INC.",MAINTENANCE & REPAIRS,3426.54,4/3/2019
JAMES Q BRENNWALD,LEGAL COSTS,900.00,3/20/2019
"THOMAS J. WALSH CONSULTING, LLC",CONTRACTUAL SERVICES,6000.00,4/11/2019
MICOMP COMPUTER CENTER,DIRECT PURCHASES,10448.60,5/23/2019
"ATLAS FIRST ACCESS MATERIAL HANDLING, INC.",MAINTENANCE & REPAIRS,7165.91,7/22/2019
LORCHEM TECHNOLOGIES INC,MAINTENANCE & REPAIRS,1752.82,7/30/2019
TOMPKINS PRINTING EQUIPMENT CO.,MAINTENANCE & REPAIRS,138.07,7/26/2019
"TVEYES, INC.",CONTRACTUAL SERVICES,3650.00,7/30/2019
"Pest Management Services, Inc.",MAINTENANCE & REPAIRS,1950.00,8/14/2019
AMERICAN RAILWAY ENGINEERING AND MAINTENANCE OF WAY ASSOCIATION,TRAVEL & MEETING EXPENSE,1940.00,8/15/2019
"RADICOM, INC.",MAINTENANCE & REPAIRS,10950.00,9/12/2019
"JONES ENVIRONMENTAL CONTROL, INC.",MAINTENANCE & REPAIRS,3646.45,10/8/2019
LANGUAGE SERVICES ASSOCIATES,CONTRACTUAL SERVICES,280.14,10/29/2019
"WISCO, INC.",MAINTENANCE & REPAIRS,78.30,10/29/2019
HOLLAND LP,CONTRACTUAL SERVICES,88500.00,11/19/2019
ACCOUNTING PRINCIPALS INC,CONTRACTUAL SERVICES,6201.35,12/20/2019
"*DIGBY'S DETECTIVE & SECURITY AGENCY, INC.",PURCHASE OF SECURITY SERVICES,337082.05,12/18/2019
"WAREHOUSE DIRECT, INC.",MAINTENANCE & REPAIRS,96.41,12/19/2019
TKOS II LLC,GENERAL EXPENSES,11042.09,12/19/2019
"COMET MESSENGER SERVICE, INC.",CONTRACTUAL SERVICES,377.13,12/24/2019
"AMAZON WEB SERVICES, INC.",CONTRACTUAL SERVICES,523.32,4/1/2019
"*MIDWAY OVERHEAD DOOR, INC.",MAINTENANCE & REPAIRS,23115.00,3/20/2019
ACCOUNTING PRINCIPALS INC,CONTRACTUAL SERVICES,1102.08,7/2/2019
STEPHANIE MONDANE,LEGAL COSTS,75.00,8/15/2019
LATASHA BARKER,LEGAL COSTS,75.00,9/18/2019
"ARAMARK UNIFORM SERVICES, INC.",CONTRACTUAL SERVICES,89.78,9/25/2019
RECRUITMILITARY LLC,ADVERTISING & PROMOTION,4000.00,10/16/2019
"JONES LANG LaSALLE, INCORPORATED",MAINTENANCE & REPAIRS,152340.15,9/25/2019
"IL. DIGITAL CITY GRAPHICS, INC.",ADVERTISING & PROMOTION,5865.00,10/3/2019
JOHNSON PIPE & SUPPLY CO.,DIRECT PURCHASES,486.63,10/23/2019
GENUINE PARTS COMPANY (NAPA),DIRECT PURCHASES,5100.79,11/18/2019
"*ABC HUMANE WILDLIFE CONTROL & PREVENTION, INC.",MAINTENANCE & REPAIRS,441.00,10/31/2019
TOWN OF CICERO,UTILITIES EXPENSE,5884.27,11/14/2019
SKILLPATH SEMINARS,TRAVEL & MEETING EXPENSE,199.99,2/21/2019
"JONES ENVIRONMENTAL CONTROL, INC.",MAINTENANCE & REPAIRS,1280.00,4/3/2019
AMERICAN TOWERS LLC,EQUIPMENT RENTAL,8597.56,6/21/2019
CDW GOVERNMENT LLC,DIRECT PURCHASES,15043.30,11/27/2019
*HIGHWAY SAFETY CORPORATON,EQUIPMENT RENTAL,798.50,12/2/2019
"INTERSTATE POWER SYSTEMS, INC.",MAINTENANCE & REPAIRS,3381.02,2/6/2019
ENTERPRISE LEASING COMPANY OF CHICAGO,EQUIPMENT RENTAL,125668.73,3/6/2019
"ANCHOR MECHANICAL, INC.",MAINTENANCE & REPAIRS,40907.00,5/16/2019
CINTAS CORPORATION,DIRECT PURCHASES,1256.68,4/26/2019
RUNCO OFFICE SUPPLIES EQUIPMENT COMPANY,CONTRACTUAL SERVICES,302.40,9/12/2019
G & O THERMAL SUPPLY COMPANY,MAINTENANCE & REPAIRS,803.28,1/2/2019
"WISCO, INC.",MAINTENANCE & REPAIRS,166.15,3/26/2019
"CRANE 1 SERVICES, INC.",MAINTENANCE & REPAIRS,206.50,8/30/2019
"*ANCHOR STAFFING, INC.",TECHNOLOGY SERVICES,1047.60,4/19/2019
SAMUEL J CHMELL,ADMINISTRATION & HR,1000.00,4/26/2019
ESQUIRE DEPOSITION SOLUTIONS,LEGAL COSTS,235.00,5/2/2019
"LAW BULLETIN PUBLISHING CO, INC.",FINANCIAL & TREAS SVCS,3000.00,5/29/2019
IBM CORPORATION,MAINTENANCE & REPAIRS,338.49,9/18/2019
"MANSFIELD OIL COMPANY OF GAINESVILLE, INC.",FUEL EXPENSE,6962.13,1/29/2019
"TEXTMARKS, INC.",CONTRACTUAL SERVICES,18767.85,3/5/2019
RAFAT SHONEYE,ADMINISTRATION & HR,62.50,6/4/2019
COOK COUNTY SHERIFF DEPARTMENT,LEGAL COSTS,40.00,6/19/2019
"WAREHOUSE DIRECT, INC.",MAINTENANCE & REPAIRS,140.40,6/27/2019
"CRANE 1 SERVICES, INC.",MAINTENANCE & REPAIRS,324.50,7/23/2019
COMPUTER AID INC,TECHNOLOGY SERVICES,16958.40,1/24/2019
FERRANDINO REPORTING,LEGAL COSTS,557.00,1/31/2019
BHIS,GENERAL EXPENSES,465.00,10/30/2019
"J2 CLOUD SERVICES, LLC.",CONTRACTUAL SERVICES,232.60,12/17/2019
CTG CORP,DIRECT PURCHASES,1000.00,1/22/2019
GENUINE PARTS COMPANY (NAPA),DIRECT PURCHASES,4450.23,2/13/2019
EHC CANADA INC. d/b/a EHC GLOBAL,DIRECT PURCHASES,1950.39,2/15/2019
JOHNSON PIPE & SUPPLY CO.,DIRECT PURCHASES,1938.18,3/15/2019
"CARD IMAGING, INC.",DIRECT PURCHASES,272.00,3/18/2019
ILLINOIS ENVIRONMENTAL PROTECTION AGENCY,CONTRACTUAL SERVICES,3090.00,4/2/2019
"WISCO, INC.",MAINTENANCE & REPAIRS,154.60,4/17/2019
CUMMINS INC.,MAINTENANCE & REPAIRS,1003.62,6/17/2019
"PROTANIC, INC.",MAINTENANCE & REPAIRS,4500.00,4/23/2019
"GREENLINE ENVIRONMENTAL SOLUTIONS, LLC",MAINTENANCE & REPAIRS,15480.00,5/13/2019
"MANSFIELD OIL COMPANY OF GAINESVILLE, INC.",FUEL EXPENSE,343626.92,6/10/2019
GENUINE PARTS COMPANY (NAPA),DIRECT PURCHASES,19687.75,7/25/2019
G & O THERMAL SUPPLY COMPANY,DIRECT PURCHASES,586.30,7/26/2019
AGAE / PRO FENCE JOINT VENTURE,MAINTENANCE & REPAIRS,5716.20,7/5/2019
"THE MCS GROUP, INC.",ADMINISTRATION & HR,352.37,7/18/2019
"THE MCS GROUP, INC.",ADMINISTRATION & HR,269.10,7/17/2019
JOHNSON PIPE & SUPPLY CO.,DIRECT PURCHASES,1331.98,8/21/2019
"MANSFIELD OIL COMPANY OF GAINESVILLE, INC.",FUEL EXPENSE,179287.42,8/12/2019
DYNEGY ENERGY SERVICES,UTILITIES EXPENSE,34050.46,8/27/2019
GENUINE PARTS COMPANY (NAPA),TRAVEL & MEETING EXPENSE,853.17,10/9/2019
LUIS CRUZ,LEGAL COSTS,75.00,10/31/2019
UNITED PARCEL SERVICE,GENERAL EXPENSES,353.26,11/5/2019
SERVICE SANITATION INC,MAINTENANCE & REPAIRS,17582.68,11/12/2019
"THE MCS GROUP, INC.",ADMINISTRATION & HR,3171.46,12/13/2019
EVERGREEN PARK RED LIGHT,GENERAL EXPENSES,100.00,12/17/2019
CUMMINS INC.,MAINTENANCE & REPAIRS,6538.06,12/17/2019
TAB SERVICE COMPANY,CONTRACTUAL SERVICES,262.85,12/24/2019
CITY OF CHICAGO-DEPT OF FLEET AND FACILITY  MGMT,DIRECT PURCHASES,14373.61,1/24/2019
"MANSFIELD OIL COMPANY OF GAINESVILLE, INC.",FUEL EXPENSE,45391.98,2/19/2019
CINTAS CORPORATION,CONTRACTUAL SERVICES,361.78,2/22/2019
GENUINE PARTS COMPANY (NAPA),DIRECT PURCHASES,5160.44,4/19/2019
CINTAS CORPORATION,MAINTENANCE & REPAIRS,4956.57,7/1/2019
BRE RIVER NORTH POINT OWNER,FACILITY RENTAL,52250.27,7/2/2019
"SAFETY KLEEN SYSTEMS, INC.",MAINTENANCE & REPAIRS,1012.80,7/19/2019
ORR SAFETY CORPORATION,DIRECT PURCHASES,1101.90,9/4/2019
"THOMPSON COBURN, LLC",LEGAL COSTS,15959.50,7/31/2019
*J.P. SIMONS & COMPANY,DIRECT PURCHASES,1231.85,9/4/2019
"MIDWEST COMPUTER PRODUCTS, INC.",DIRECT PURCHASES,281.25,8/22/2019
FOX VALLEY FIRE & SAFETY COMPANY,MAINTENANCE & REPAIRS,8416.25,10/18/2019
"OER SERVICES, LLC",EQUIPMENT RENTAL,7308.00,11/19/2019
"CUBIC TRANSPORTATION SYSTEMS, INC.",CONTRACTUAL SERVICES,529200.00,11/22/2019
"HERITAGE-CRYSTAL CLEAN, LLC",DIRECT PURCHASES,3200.00,12/31/2019
CONTINENTAL LANGUAGES LLC,CONTRACTUAL SERVICES,375.00,12/17/2019
CITATION BOX & PAPER CO.,DIRECT PURCHASES,1883.60,12/18/2019
"CRANE 1 SERVICES, INC.",MAINTENANCE & REPAIRS,1135.75,4/2/2019
"GREENLINE ENVIRONMENTAL SOLUTIONS, LLC",MAINTENANCE & REPAIRS,3458.00,3/5/2019
"ATLAS FIRST ACCESS MATERIAL HANDLING, INC.",MAINTENANCE & REPAIRS,488.22,5/23/2019
OAK PARK POLICE DEPT,PURCHASE OF SECURITY SERVICES,9670.51,5/28/2019
AMERICAN INSURANCE SERVICES GROUP,CONTRACTUAL SERVICES,334.95,10/1/2019
"HIRERIGHT SOLUTIONS, INC.",ADMINISTRATION & HR,13870.69,10/7/2019
PEOPLES GAS,UTILITIES EXPENSE,5273.07,10/8/2019
TRANSPORTATION SAFETY INSTITUTE,TRAVEL & MEETING EXPENSE,780.00,10/16/2019
"*ANCHOR STAFFING, INC.",TECHNOLOGY SERVICES,1328.00,10/18/2019
"J.E. MANZI & ASSOCIATES, INC.",CONTRACTUAL SERVICES,4500.00,11/27/2019
TIMOTHY POWELL.,LEGAL COSTS,75.00,12/10/2019
"*FIRECO, INC.",MAINTENANCE & REPAIRS,6680.00,1/23/2019
REVERE ELECTRIC SUPPLY COMPANY,MAINTENANCE & REPAIRS,30.28,1/8/2019
BLAIDA AND ASSOCIATES LLC,CONTRACTUAL SERVICES,6000.00,3/1/2019
"*SENRYO, INC.",GENERAL EXPENSES,16770.00,4/4/2019
COOK COUNTY GOVERNMENT,ADMINISTRATION & HR,750.00,4/23/2019
"MANSFIELD OIL COMPANY OF GAINESVILLE, INC.",DIRECT PURCHASES,8275.14,4/25/2019
PITNEY BOWES GLOBAL MAILING SYSTEMS,MAINTENANCE & REPAIRS,51.00,5/24/2019
"PROMPT ELECTRIC, INC.",DIRECT PURCHASES,4951.68,10/25/2019
G&T ORTHOPAEDICS,ADMINISTRATION & HR,750.00,2/19/2019
TRISTAN & CERVANTES LLC,LEGAL COSTS,891.00,3/26/2019
AMALGAMATED BANK OF CHICAGO.,FINANCIAL & TREAS SVCS,10000.00,5/23/2019
*J.P. SIMONS & COMPANY,DIRECT PURCHASES,3423.54,7/18/2019
"MOBILE MINI, INC",EQUIPMENT RENTAL,330.00,10/1/2019
DUPAGE MEDICAL GROUP,ADMINISTRATION & HR,800.00,11/6/2019
AT & T CORP,UTILITIES EXPENSE,160960.42,12/10/2019
"J.E. MANZI & ASSOCIATES, INC.",CONTRACTUAL SERVICES,1000.00,12/26/2019
ADVOCATE COURT REPORTERS LLC,LEGAL COSTS,497.40,1/18/2019
MICHAEL BEST & FRIEDRICH-CHGO,ADMINISTRATION & HR,80.96,3/19/2019
MARTIN J LUBY LLC,CONSULTING,16875.00,4/11/2019
CUMMINS INC.,MAINTENANCE & REPAIRS,311.34,7/3/2019
STEVEN M BIERIG,LEGAL COSTS,800.00,8/9/2019
DEPAUL UNIVERSITY,GENERAL EXPENSES,33403.00,10/29/2019
"KATHLEEN A SULLIVAN, CSR",LEGAL COSTS,302.50,12/17/2019
M & J WILKOW PROPERTIES LLC,GENERAL EXPENSES,3666.71,2/19/2019
"ATLAS FIRST ACCESS MATERIAL HANDLING, INC.",MAINTENANCE & REPAIRS,424.81,7/16/2019
"*ALLPOINTS SECURITY AND DETECTIVE, INC.",PURCHASE OF SECURITY SERVICES,22183.98,7/22/2019
"COY PUGH AND ASSOCIATES, LLC",CONTRACTUAL SERVICES,6000.00,7/18/2019
CITY OF CHICAGO-DEPT OF WATER,UTILITIES EXPENSE,60703.59,9/10/2019
SUZANNE PHAM M.D.,ADMINISTRATION & HR,1000.00,10/25/2019
"ARAMARK UNIFORM SERVICES, INC.",GENERAL EXPENSES,52.80,11/22/2019
"ATLAS FIRST ACCESS MATERIAL HANDLING, INC.",MAINTENANCE & REPAIRS,217.50,12/3/2019
"J2 CLOUD SERVICES, LLC.",CONTRACTUAL SERVICES,150.50,12/6/2019
CDW GOVERNMENT LLC,CONTRACTUAL SERVICES,1852.60,2/26/2019
"LISA A. KOTRBA & ASSOCIATES, LTD",LEGAL COSTS,296.60,4/9/2019
"BOARD OF EDUCATION, CITY OF CHICAGO",FACILITY RENTAL,125.00,4/12/2019
STEVEN M BIERIG,LEGAL COSTS,1280.00,5/24/2019
"ORRINGTON TT, LLC",EQUIPMENT RENTAL,921.30,6/4/2019
JOHNSON PIPE & SUPPLY CO.,DIRECT PURCHASES,951.33,6/20/2019
"OER SERVICES, LLC",EQUIPMENT RENTAL,9240.00,7/18/2019
AN EXECUTIVE DECISION,ADVERTISING & PROMOTION,1052.19,10/10/2019
CHICAGO POLICE DEPARTMENT,PURCHASE OF SECURITY SERVICES,536729.40,11/27/2019
CUMMINS INC.,MAINTENANCE & REPAIRS,1537.17,1/4/2019
GENUINE PARTS COMPANY (NAPA),ADVERTISING & PROMOTION,2256.97,1/8/2019
"*ALLPOINTS SECURITY AND DETECTIVE, INC.",PURCHASE OF SECURITY SERVICES,12226.50,1/31/2019
CITY OF CHICAGO DEPT.OF REVENUE-RED LIGHT,GENERAL EXPENSES,435.00,2/27/2019
"MANSFIELD OIL COMPANY OF GAINESVILLE, INC.",FUEL EXPENSE,42721.59,3/1/2019
AMERIMEX SALES & SERVICE,MAINTENANCE & REPAIRS,8919.16,3/5/2019
CHICAGO METRO CONSTRUCTION D/B/A ARLINGTON GLASS & MIRROR CO.,MAINTENANCE & REPAIRS,16267.64,3/29/2019
"THE MCS GROUP, INC.",ADMINISTRATION & HR,1266.70,3/6/2019
TOMPKINS PRINTING EQUIPMENT CO.,MAINTENANCE & REPAIRS,1028.31,4/3/2019
"COMET MESSENGER SERVICE, INC.",CONTRACTUAL SERVICES,165.62,4/5/2019
IAP CONSTRUCTION INC.,MAINTENANCE & REPAIRS,9591.00,4/4/2019
BUILDERS CHICAGO CORPORATION,MAINTENANCE & REPAIRS,17685.25,4/29/2019
"SAFETY KLEEN SYSTEMS, INC.",MAINTENANCE & REPAIRS,13025.99,6/10/2019
"THE MCS GROUP, INC.",ADMINISTRATION & HR,1547.27,5/30/2019
APOLLO VIDEO TECHNOLOGY,FINANCIAL & TREAS SVCS,76182.77,7/10/2019
PACE SUBURBAN BUS SERVICE,DIRECT PURCHASES,7098.00,7/2/2019
"MYERS SERVICE, INC.",LEGAL COSTS,990.00,7/11/2019
MASSACHUSETTS INSTITUTE OF TECHNOLOGY,CONTRACTUAL SERVICES,48159.48,7/12/2019
"MCCORKLE LITIGATION SERVICES, INC",LEGAL COSTS,6491.85,7/19/2019
CINTAS CORPORATION,CONTRACTUAL SERVICES,7494.05,7/26/2019
"MANSFIELD OIL COMPANY OF GAINESVILLE, INC.",FUEL EXPENSE,177435.68,8/8/2019
"CUBIC TRANSPORTATION SYSTEMS, INC.",CONTRACTUAL SERVICES,2601112.07,8/19/2019
CUMMINS INC.,MAINTENANCE & REPAIRS,10858.66,9/24/2019
AMERICAN CONCRETE INSTITUTE,TRAVEL & MEETING EXPENSE,99.00,10/9/2019
MEDIAAGILITY INC,TECHNOLOGY SERVICES,2618.65,10/29/2019
"GREENLINE ENVIRONMENTAL SOLUTIONS, LLC",MAINTENANCE & REPAIRS,4135.00,10/24/2019
"TEXTMARKS, INC.",CONTRACTUAL SERVICES,19637.23,11/13/2019
*J.P. SIMONS & COMPANY,DIRECT PURCHASES,11353.18,12/6/2019
"OFFICE DEPOT, INCORPORATED",DIRECT PURCHASES,376.87,12/30/2019
"PROMPT ELECTRIC, INC.",MAINTENANCE & REPAIRS,760.44,2/1/2019
"TRAPEZE SOFTWARE GROUP, INC",MAINTENANCE & REPAIRS,71642.44,2/26/2019
"*DIGBY'S DETECTIVE & SECURITY AGENCY, INC.",PURCHASE OF SECURITY SERVICES,49532.39,2/27/2019
"GREENLINE ENVIRONMENTAL SOLUTIONS, LLC",MAINTENANCE & REPAIRS,3945.00,3/13/2019
"GARDA CL GREAT LAKES, INC.",FINANCIAL & TREAS SVCS,39684.21,4/5/2019
VILLAGE OF FOREST PARK (WATER ACCOUNT),UTILITIES EXPENSE,2211.84,4/18/2019
"MCCORKLE LITIGATION SERVICES, INC",LEGAL COSTS,3761.40,5/3/2019
"ARAMARK UNIFORM SERVICES, INC.",CONTRACTUAL SERVICES,71.85,5/22/2019
"AT&T MOBILITY NATIONAL ACCOUNTS, LLC",UTILITIES EXPENSE,189539.20,7/3/2019
"OER SERVICES, LLC",EQUIPMENT RENTAL,20020.00,7/17/2019
XEROX CORPORATION /XEROX CTR,MAINTENANCE & REPAIRS,585.00,7/30/2019
CITY OF CHICAGO DEPT.OF REVENUE-RED LIGHT,GENERAL EXPENSES,1275.00,7/24/2019
"PREMIER STAFFING SOURCE, INC.",GENERAL EXPENSES,5279.29,11/13/2019
SUN-TIMES MEDIA,ADVERTISING & PROMOTION,581.40,12/10/2019
CUMMINS INC.,MAINTENANCE & REPAIRS,5411.98,12/18/2019
"QUEST DIAGNOSTICS, INC,",ADMINISTRATION & HR,94813.10,12/31/2019
"GENFARE, A DIVISION OF SPX CORPORATION",DIRECT PURCHASES,1375.00,2/26/2019
"THOMPSON COBURN, LLC",LEGAL COSTS,13422.50,3/26/2019
"*ATLAS & ASSOCIATES, INC.",DIRECT PURCHASES,20303.13,4/9/2019
"AMERICAN BUILDING SERVICES, LLC (M-D BUILDING MATERIALS)",DIRECT PURCHASES,1840.80,6/5/2019
ARC IMAGING RESOURCES,MAINTENANCE & REPAIRS,5283.17,7/12/2019
"HASTINGS AIR-ENERGY CONTROL,INC.",MAINTENANCE & REPAIRS,164.80,8/22/2019
LORCHEM TECHNOLOGIES INC,MAINTENANCE & REPAIRS,890.15,9/10/2019
"MANSFIELD OIL COMPANY OF GAINESVILLE, INC.",FUEL EXPENSE,125660.05,9/3/2019
JOHNSON PIPE & SUPPLY CO.,DIRECT PURCHASES,773.43,9/13/2019
LEWIS UNIVERSITY      (2),ADVERTISING & PROMOTION,100.00,10/1/2019
RICHARD SOWA,LEGAL COSTS,75.00,10/2/2019
YOURMEMBERSHIP.COM INC,ADVERTISING & PROMOTION,220.00,11/22/2019
METROPOLITAN WATER RECLAMATION.,FACILITY RENTAL,10500.00,12/11/2019
"ARAMARK UNIFORM SERVICES, INC.",CONTRACTUAL SERVICES,89.78,12/17/2019
"U.S. LEGAL SUPPORT, INCORPORATED",LEGAL COSTS,887.60,12/26/2019
"COMCAST OF CHICAGO, IL",EQUIPMENT RENTAL,440.07,12/27/2019
"JUST ELEVATOR INSPECTION SERVICE, INC.",MAINTENANCE & REPAIRS,9727.50,1/10/2019
RECORD COPY SERVICES CO.,ADMINISTRATION & HR,213.15,1/31/2019
"PROTANIC, INC.",MAINTENANCE & REPAIRS,4500.00,3/4/2019
CHICAGO METRO CONSTRUCTION D/B/A ARLINGTON GLASS & MIRROR CO.,MAINTENANCE & REPAIRS,7757.22,4/15/2019
"STANTON MECHANICAL, INC.",MAINTENANCE & REPAIRS,128.75,6/4/2019
"WISCO, INC.",DIRECT PURCHASES,188.00,8/1/2019
EVERGREEN PARK RED LIGHT,GENERAL EXPENSES,100.00,8/27/2019
"JERRY BAUER, M.D.",ADMINISTRATION & HR,1800.00,9/20/2019
"ANCHOR STAFFING, INC.",TECHNOLOGY SERVICES,884.64,3/22/2019
ILLINOIS STATE POLICE 1,LEGAL COSTS,5.00,4/16/2019
TAFT STETTINIUS & HOLLISTER LLP,LEGAL COSTS,67590.15,5/21/2019
MAGNA LEGAL SERVICES,LEGAL COSTS,653.25,7/24/2019
*MARTIN-BRAACK PARTNERS,CONTRACTUAL SERVICES,3840.00,8/29/2019
"HERITAGE-CRYSTAL CLEAN, LLC",DIRECT PURCHASES,3200.00,8/20/2019
TOWN OF CICERO,UTILITIES EXPENSE,2355.04,12/26/2019
RILEY SAFER HOLMES & CANCILA LLP,LEGAL COSTS,147.50,3/28/2019
"ARAMARK UNIFORM SERVICES, INC.",CONTRACTUAL SERVICES,86.32,4/24/2019
JACKSON LEWIS PC,LEGAL COSTS,9072.00,4/29/2019
AT & T CORP,UTILITIES EXPENSE,7394.70,7/3/2019
RICHARD SOWA,LEGAL COSTS,75.00,7/23/2019
"HERITAGE-CRYSTAL CLEAN, LLC",DIRECT PURCHASES,1600.00,7/25/2019
PILAR SANCHEZ,CREDITS,20.00,8/16/2019
"*ABC HUMANE WILDLIFE CONTROL & PREVENTION, INC.",MAINTENANCE & REPAIRS,123.20,8/21/2019
CHICAGO POLICE DEPARTMENT,PURCHASE OF SECURITY SERVICES,434330.84,9/18/2019
COOK COUNTY SHERIFF DEPARTMENT,LEGAL COSTS,40.00,10/29/2019
GRAND HYATT SAN ANTONIO,TRAVEL & MEETING EXPENSE,377.58,11/15/2019
"PROTANIC, INC.",MAINTENANCE & REPAIRS,550.00,12/18/2019
HOLLAND & KNIGHT LLP,LEGAL COSTS,3360.00,1/2/2019
"U.S. LEGAL SUPPORT, INCORPORATED",LEGAL COSTS,513.25,2/5/2019
89TH ST PROPERTIES LLC,FACILITY RENTAL,27968.92,2/1/2019
SOCIETY FOR HUMAN RESOURCE MGMT,GENERAL EXPENSES,209.00,3/19/2019
INSTITUTE OF INTERNAL AUDITORS (2),GENERAL EXPENSES,330.00,4/17/2019
CHICAGO POLICE DEPARTMENT,PURCHASE OF SECURITY SERVICES,511926.43,11/5/2019
CITY OF HOMETOWN,GENERAL EXPENSES,100.00,12/17/2019
LOEVY & LOEVY,CONTRACTUAL SERVICES,7500.00,2/6/2019
ILLINOIS SECRETARY OF STATE,GENERAL EXPENSES,50.00,3/21/2019
ZIONS BANK,GENERAL EXPENSES,188732.21,5/20/2019
CUMMINS INC.,MAINTENANCE & REPAIRS,533.72,7/10/2019
"OER SERVICES, LLC",MAINTENANCE & REPAIRS,280.00,7/11/2019
"THE MCS GROUP, INC.",ADMINISTRATION & HR,1055.34,9/11/2019
CITY OF CHICAGO-DEPT OF FLEET AND FACILITY  MGMT,MAINTENANCE & REPAIRS,159324.49,11/1/2019
VCLOUD TECH INC.,TECHNOLOGY SERVICES,1663.30,11/13/2019
"TEXTMARKS, INC.",CONTRACTUAL SERVICES,19774.49,12/10/2019
"WISCO, INC.",MAINTENANCE & REPAIRS,1130.44,1/2/2019
"GREENLINE ENVIRONMENTAL SOLUTIONS, LLC",MAINTENANCE & REPAIRS,4135.00,1/25/2019
STAPLES ADVANTAGE,DIRECT PURCHASES,39540.32,1/29/2019
"ACTION K-9 SECURITY, INC.",PURCHASE OF SECURITY SERVICES,195561.84,1/31/2019
"THE MCS GROUP, INC.",ADMINISTRATION & HR,60.00,2/6/2019
CITY OF CHICAGO DEPT.OF REVENUE-RED LIGHT,GENERAL EXPENSES,300.00,2/12/2019
TOMPKINS PRINTING EQUIPMENT CO.,MAINTENANCE & REPAIRS,948.99,3/6/2019
CITY OF BURBANK,GENERAL EXPENSES,100.00,2/19/2019
"WISCO, INC.",DIRECT PURCHASES,298.18,3/7/2019
CSC,MAINTENANCE & REPAIRS,8503.00,2/27/2019
CHARLES J JORDAN MD.,ADMINISTRATION & HR,750.00,3/12/2019
JACKSON LEWIS PC,LEGAL COSTS,24752.00,3/26/2019
*J.P. SIMONS & COMPANY,DIRECT PURCHASES,12847.88,4/17/2019
JOHNSON PIPE & SUPPLY CO.,DIRECT PURCHASES,3608.63,4/30/2019
XEROX CORPORATION /XEROX CTR,MAINTENANCE & REPAIRS,12207.99,5/9/2019
APOLLO VIDEO TECHNOLOGY,FINANCIAL & TREAS SVCS,1224.00,5/31/2019
"*ANZY SUPPLY, INC.",DIRECT PURCHASES,1049.02,6/12/2019
"OER SERVICES, LLC",MAINTENANCE & REPAIRS,3584.00,6/14/2019
CUMMINS INC.,MAINTENANCE & REPAIRS,385.48,6/26/2019
"JULIAN, BETLEY & ASSOCIATES",LEGAL COSTS,294.25,6/27/2019
MID-WEST SIGN SUPPLY CO,MAINTENANCE & REPAIRS,6118.90,8/9/2019
UNITED PARCEL SERVICE,GENERAL EXPENSES,424.25,9/5/2019
*J.P. SIMONS & COMPANY,DIRECT PURCHASES,20301.99,10/10/2019
LANGUAGE SERVICES ASSOCIATES,CONTRACTUAL SERVICES,232.53,9/26/2019
"ZIPCAR, INC.",EQUIPMENT RENTAL,816.25,9/24/2019
"CUBIC TRANSPORTATION SYSTEMS, INC.",CONTRACTUAL SERVICES,14960.40,10/4/2019
TERESA BOYLE ROGERS CONSULTING,CONSULTING,2356.35,10/24/2019
LANGUAGE SERVICES ASSOCIATES,CONTRACTUAL SERVICES,195.96,11/27/2019
"VERITEXT, LLC",LEGAL COSTS,5432.72,11/14/2019
"INTERSTATE POWER SYSTEMS, INC.",MAINTENANCE & REPAIRS,258.00,12/30/2019
"ATLAS FIRST ACCESS MATERIAL HANDLING, INC.",MAINTENANCE & REPAIRS,3059.14,12/13/2019
"COMCAST OF CHICAGO, IL",EQUIPMENT RENTAL,216.55,11/27/2019
"COMET MESSENGER SERVICE, INC.",GENERAL EXPENSES,241.09,12/13/2019
COMPUTER AID INC,TECHNOLOGY SERVICES,514475.39,1/25/2019
"CUBIC TRANSPORTATION SYSTEMS, INC.",DIRECT PURCHASES,526468.54,3/1/2019
GENUINE PARTS COMPANY (NAPA),DIRECT PURCHASES,7225.79,3/5/2019
POWER SOLUTIONS LLC,DIRECT PURCHASES,18686.24,3/22/2019
JOHNSON PIPE & SUPPLY CO.,DIRECT PURCHASES,758.59,5/2/2019
"IMPERIAL CRANE SERVICES, INC.",EQUIPMENT RENTAL,5400.00,5/16/2019
GREENBERG TRAURIG LLP,LEGAL COSTS,11321.50,5/21/2019
TERESA BOYLE ROGERS CONSULTING,CONSULTING,2540.76,5/30/2019
"WISCO, INC.",DIRECT PURCHASES,401.80,6/6/2019
DYNEGY ENERGY SERVICES,UTILITIES EXPENSE,41098.71,7/29/2019
"ZIPCAR, INC.",EQUIPMENT RENTAL,1098.86,7/18/2019
*J.P. SIMONS & COMPANY,DIRECT PURCHASES,5484.96,8/20/2019
VILLAGE OF SKOKIE.,UTILITIES EXPENSE,154.90,9/12/2019
DAVID FISHMAN,LEGAL COSTS,168.00,10/11/2019
"ATLAS FIRST ACCESS MATERIAL HANDLING, INC.",MAINTENANCE & REPAIRS,4852.47,11/19/2019
COOK COUNTY CLERK,GENERAL EXPENSES,10.00,12/3/2019
"BUREAU OF NATIONAL AFFAIRS, INC., THE",FINANCIAL & TREAS SVCS,13431.00,12/13/2019
"PREMIER STAFFING SOURCE, INC.",CONTRACTUAL SERVICES,4611.71,12/31/2019
"*DIGBY'S DETECTIVE & SECURITY AGENCY, INC.",PURCHASE OF SECURITY SERVICES,99917.23,1/24/2019
"THOMPSON COBURN, LLC",LEGAL COSTS,14873.40,2/5/2019
"EMSL Analytical, Inc.",CONSULTING,215.22,3/13/2019
"MCCORKLE LITIGATION SERVICES, INC",LEGAL COSTS,2167.60,3/29/2019
HISPANIC ALLIANCE FOR CAREER ENHANCEMENT,TRAVEL & MEETING EXPENSE,450.00,4/18/2019
JEANNE M VONHOF,LEGAL COSTS,800.00,4/25/2019
ASHRAE LEARNING INSTITUTE,GENERAL EXPENSES,220.00,7/3/2019
JACKSON LEWIS PC,LEGAL COSTS,784.00,7/8/2019
SOCIETY FOR HUMAN RESOURCE MGMT,GENERAL EXPENSES,209.00,7/23/2019
*SOUTH SUBURBAN PEST CONTROL,MAINTENANCE & REPAIRS,8032.00,10/8/2019
POST TENSIONING INSTITUTE,GENERAL EXPENSES,90.00,10/16/2019
GRANT LAW LLC,LEGAL COSTS,14201.00,11/7/2019
GENUINE PARTS COMPANY (NAPA),MAINTENANCE & REPAIRS,9673.16,11/27/2019
"ULTRA-TECH ENTERPRISES, INC.",MAINTENANCE & REPAIRS,201.37,12/5/2019
"WISCO, INC.",DIRECT PURCHASES,192.56,1/2/2019
VILLAGE OF OAK PARK -1,PURCHASE OF SECURITY SERVICES,18153.39,1/15/2019
ACCOUNTING PRINCIPALS INC,CONTRACTUAL SERVICES,1739.52,2/1/2019
"ORACLE AMERICA, INC.",MAINTENANCE & REPAIRS,484205.16,1/29/2019
"Pest Management Services, Inc.",MAINTENANCE & REPAIRS,3664.50,3/19/2019
"THE MCS GROUP, INC.",ADMINISTRATION & HR,109.64,4/4/2019
"CUBIC TRANSPORTATION SYSTEMS, INC.",DIRECT PURCHASES,221770.49,4/12/2019
"LISA CALLOWAY, M.D.",ADMINISTRATION & HR,40.00,5/15/2019
LARS E JOHNSON,LEGAL COSTS,75.00,8/28/2019
ARMA INTERNATIONAL,GENERAL EXPENSES,225.00,9/6/2019
"OER SERVICES, LLC",MAINTENANCE & REPAIRS,1624.00,9/19/2019
COMMONWEALTH EDISON.,UTILITIES EXPENSE,242364.41,10/15/2019
ZIONS BANK,GENERAL EXPENSES,67883.51,12/9/2019
"*FIRECO, INC.",MAINTENANCE & REPAIRS,795.00,2/7/2019
"CUBIC TRANSPORTATION SYSTEMS, INC.",CONTRACTUAL SERVICES,1446757.96,3/12/2019
ILLINOIS SECRETARY OF STATE,GENERAL EXPENSES,50.00,3/21/2019
BUILDERS CHICAGO CORPORATION,MAINTENANCE & REPAIRS,12404.75,7/3/2019
BLAIDA AND ASSOCIATES LLC,CONTRACTUAL SERVICES,12000.00,12/30/2019
TERESA BOYLE ROGERS CONSULTING,CONSULTING,3298.89,3/13/2019
RENEE M LaPORTA,LEGAL COSTS,208.00,4/9/2019
STEVEN M BIERIG,LEGAL COSTS,1600.00,4/16/2019
CLARIVATE ANALYTICS (US) LLC,GENERAL EXPENSES,1618.00,5/29/2019
EVERGREEN PARK RED LIGHT,GENERAL EXPENSES,100.00,9/26/2019
CITY OF CHICAGO-DEPT OF FLEET AND FACILITY  MGMT,MAINTENANCE & REPAIRS,101815.72,10/16/2019
"ULINE, INC.",DIRECT PURCHASES,157.89,11/22/2019
THOMSON REUTERS EXPERT WITNESS SERVICES,CONSULTING,1500.00,2/12/2019
ILLINOIS CPA SOCIETY,GENERAL EXPENSES,277.00,5/10/2019
FOX VALLEY FIRE & SAFETY COMPANY,MAINTENANCE & REPAIRS,10775.00,5/31/2019
GOLD COAST ORTHOPAEDIC AND SPINE SURGERY,ADMINISTRATION & HR,187.50,8/1/2019
"*ANCHOR STAFFING, INC.",CONTRACTUAL SERVICES,1220.10,12/27/2019
"*FIRECO, INC.",MAINTENANCE & REPAIRS,3040.00,2/14/2019
GLOBAL TOWER HOLDINGS LLC,EQUIPMENT RENTAL,4235.25,2/14/2019
KPMG LLP,CONSULTING,75000.00,6/17/2019
ROSEMONT PUBLIC WORKS,UTILITIES EXPENSE,13.20,7/18/2019
MAGNA LEGAL SERVICES,LEGAL COSTS,357.55,8/15/2019
GENUINE PARTS COMPANY (NAPA),DIRECT PURCHASES,44296.03,1/22/2019
"GREENLINE ENVIRONMENTAL SOLUTIONS, LLC",MAINTENANCE & REPAIRS,4300.00,2/1/2019
"TRAPEZE SOFTWARE GROUP, INC",MAINTENANCE & REPAIRS,136002.44,1/25/2019
SIMMONS MACHINE TOOL CORPORATION,MAINTENANCE & REPAIRS,4275.00,1/30/2019
"COMCAST OF CHICAGO, IL",EQUIPMENT RENTAL,206.54,1/29/2019
"*ABC HUMANE WILDLIFE CONTROL & PREVENTION, INC.",MAINTENANCE & REPAIRS,724.00,2/6/2019
PROGRESS RAIL SERVICES CORPORATION,DIRECT PURCHASES,2659.28,2/12/2019
G.A.G. INDUSTRIES CORP.,MAINTENANCE & REPAIRS,51799.63,2/15/2019
"MANSFIELD OIL COMPANY OF GAINESVILLE, INC.",FUEL EXPENSE,152690.63,2/13/2019
"*MIDWAY OVERHEAD DOOR, INC.",MAINTENANCE & REPAIRS,329.85,2/12/2019
JOHNSON PIPE & SUPPLY CO.,DIRECT PURCHASES,2223.59,2/15/2019
"ATLAS FIRST ACCESS MATERIAL HANDLING, INC.",MAINTENANCE & REPAIRS,3272.86,3/14/2019
"GREENLINE ENVIRONMENTAL SOLUTIONS, LLC",MAINTENANCE & REPAIRS,3810.00,3/14/2019
DYNEGY ENERGY SERVICES,UTILITIES EXPENSE,487885.75,3/11/2019
"GREENLINE ENVIRONMENTAL SOLUTIONS, LLC",MAINTENANCE & REPAIRS,3190.00,4/10/2019
"CRANE 1 SERVICES, INC.",MAINTENANCE & REPAIRS,354.00,5/31/2019
"ATLAS FIRST ACCESS MATERIAL HANDLING, INC.",MAINTENANCE & REPAIRS,2026.23,5/28/2019
STAPLES ADVANTAGE,DIRECT PURCHASES,163.08,6/27/2019
"WISCO, INC.",MAINTENANCE & REPAIRS,684.40,7/9/2019
INTERTEK USA INC.,CONTRACTUAL SERVICES,6168.00,8/27/2019
BLUE SODA PROMO,GENERAL EXPENSES,362.11,8/23/2019
LORCHEM TECHNOLOGIES INC,MAINTENANCE & REPAIRS,6898.86,10/22/2019
CHICAGO METROPOLITAN FIRE PREVENTION CO,MAINTENANCE & REPAIRS,1275.00,9/19/2019
"ACTION K-9 SECURITY, INC.",PURCHASE OF SECURITY SERVICES,598546.44,9/20/2019
CHARLES EQUIPMENT ENERGY SYSTEMS LLC,MAINTENANCE & REPAIRS,6941.82,10/23/2019
"OFFICE DEPOT, INCORPORATED",DIRECT PURCHASES,331.79,10/10/2019
SAN FRANCISCO MARRIOTT MARQUIS,TRAVEL & MEETING EXPENSE,580.39,10/22/2019
COMPUTER AID INC,TECHNOLOGY SERVICES,489274.05,10/30/2019
SCANTRON CORPORATION,GENERAL EXPENSES,133.14,11/21/2019
GENUINE PARTS COMPANY (NAPA),DIRECT PURCHASES,46629.06,12/6/2019
"*ANZY SUPPLY, INC.",MAINTENANCE & REPAIRS,2668.00,12/24/2019
"AMERICAN BUILDING SERVICES, LLC (M-D BUILDING MATERIALS)",DIRECT PURCHASES,4471.70,12/24/2019
"WISCO, INC.",MAINTENANCE & REPAIRS,390.05,2/14/2019
"THE MCS GROUP, INC.",ADMINISTRATION & HR,1105.17,3/5/2019
"ATLAS FIRST ACCESS MATERIAL HANDLING, INC.",MAINTENANCE & REPAIRS,16952.00,4/2/2019
"RECORDS DEPOSITION SERVICE, INC.",ADMINISTRATION & HR,64.75,4/16/2019
"MANSFIELD OIL COMPANY OF GAINESVILLE, INC.",FUEL EXPENSE,14548.34,4/18/2019
*J.P. SIMONS & COMPANY,DIRECT PURCHASES,1282.61,5/15/2019
"PROTANIC, INC.",MAINTENANCE & REPAIRS,4500.00,5/3/2019
NICHOLAS McJEWSKI,CREDITS,20.00,5/9/2019
JACKSON LEWIS PC,LEGAL COSTS,4340.00,5/21/2019
"PROMPT ELECTRIC, INC.",DIRECT PURCHASES,2584.24,5/29/2019
"MENARD INDUSTRIES, LLC, d/b/a MENARD'S RAILROAD MATERIALS",CONTRACTUAL SERVICES,2091.85,7/22/2019
ELITE ORTHOPAEDICS AND SPORTS MEDICINE LLC,ADMINISTRATION & HR,750.00,7/25/2019
EVERGREEN PARK RED LIGHT,GENERAL EXPENSES,100.00,10/11/2019
COMPUTER AID INC,TECHNOLOGY SERVICES,39682.40,11/22/2019
MICHAEL BEST & FRIEDRICH-CHGO,LEGAL COSTS,2773.00,12/27/2019
SHIRLEY RYAN ABILITY LAB,ADMINISTRATION & HR,750.00,2/8/2019
"LPI, INCORPORATED",DIRECT PURCHASES,3360.00,2/27/2019
SUN-TIMES MEDIA,GENERAL EXPENSES,26.64,4/3/2019
KATHERINE GONZALEZ,CREDITS,20.00,5/9/2019
GENUINE PARTS COMPANY (NAPA),MAINTENANCE & REPAIRS,1257.12,7/3/2019
JACKSON LEWIS PC,LEGAL COSTS,2464.00,9/24/2019
ACCOUNTING PRINCIPALS INC,CONSULTING,3972.00,10/25/2019
"OFFICE DEPOT, INCORPORATED",DIRECT PURCHASES,384.93,10/30/2019
Wensco,ADVERTISING & PROMOTION,13649.00,11/21/2019
"*URLAUB, BOWEN & ASSOCIATES, INC.",LEGAL COSTS,155.33,11/18/2019
"*ANCHOR STAFFING, INC.",TECHNOLOGY SERVICES,1176.70,12/27/2019
METROPOLITAN WATER RECLAMATION.,FACILITY RENTAL,10500.00,1/24/2019
POSTAL PARTNERS,GENERAL EXPENSES,488.13,3/26/2019
"HERITAGE-CRYSTAL CLEAN, LLC",DIRECT PURCHASES,1600.00,3/11/2019
PEOPLES GAS,UTILITIES EXPENSE,32226.48,4/25/2019
DYNEGY ENERGY SERVICES,UTILITIES EXPENSE,490249.88,5/3/2019
BUILDERS CHICAGO CORPORATION,MAINTENANCE & REPAIRS,4464.00,5/10/2019
CITY OF CHICAGO-DEPT OF WATER,UTILITIES EXPENSE,94232.90,5/9/2019
UNIVERSITY OF ILLINOIS (UIC),CONTRACTUAL SERVICES,1000.00,6/21/2019
BIAS CORPORATION,MAINTENANCE & REPAIRS,1613.68,7/16/2019
"WISCO, INC.",MAINTENANCE & REPAIRS,6.20,8/13/2019
INTER CONTINENTAL HOTEL,TRAVEL & MEETING EXPENSE,1565.44,10/1/2019
IEEE OPERATIONS CENTER,GENERAL EXPENSES,281.00,11/29/2019
"OER SERVICES, LLC",MAINTENANCE & REPAIRS,952.00,12/24/2019
VILLAGE OF FOREST PARK (WATER ACCOUNT),UTILITIES EXPENSE,1857.60,12/26/2019
"ARAMARK UNIFORM SERVICES, INC.",CONTRACTUAL SERVICES,73.28,2/20/2019
"ZIPCAR, INC.",EQUIPMENT RENTAL,1105.00,4/29/2019
"CHICAGO UNITED INDUSTRIES, LTD.",EQUIPMENT RENTAL,1919.38,5/16/2019
"*MIDWAY OVERHEAD DOOR, INC.",MAINTENANCE & REPAIRS,27500.05,5/30/2019
"*ABC HUMANE WILDLIFE CONTROL & PREVENTION, INC.",MAINTENANCE & REPAIRS,724.00,7/16/2019
VILLAGE OF OAK PARK UTILITIES,UTILITIES EXPENSE,748.75,8/13/2019
G & O THERMAL SUPPLY COMPANY,DIRECT PURCHASES,10269.24,12/16/2019
GENUINE PARTS COMPANY (NAPA),CONSULTING,690.50,3/5/2019
VILLAGE OF OAK PARK -1,PURCHASE OF SECURITY SERVICES,10179.48,4/9/2019
CONTINENTAL LANGUAGES LLC,CONTRACTUAL SERVICES,600.00,5/7/2019
DYNEGY ENERGY SERVICES,UTILITIES EXPENSE,413153.74,5/31/2019
LEXIS NEXIS CO.,CONTRACTUAL SERVICES,5458.33,7/2/2019
GENUINE PARTS COMPANY (NAPA),MATERIAL LOAD/ADJ,104.36,9/26/2019
ILLINOIS HISPANIC CHAMBER OF COMMERCE,GENERAL EXPENSES,3000.00,10/1/2019
CHICAGO KENT COLLEGE OF LAW,TRAVEL & MEETING EXPENSE,210.00,12/4/2019
"MYERS SERVICE, INC.",LEGAL COSTS,292.00,12/17/2019
G.A.G. INDUSTRIES CORP.,MAINTENANCE & REPAIRS,37963.56,3/13/2019
"JONES LANG LaSALLE, INCORPORATED",CONSULTING,5339.53,4/18/2019
CDW GOVERNMENT LLC,MAINTENANCE & REPAIRS,722015.57,5/10/2019
JACKSON LEWIS PC,LEGAL COSTS,3052.00,9/24/2019
"VERIZON WIRELESS, INC.",UTILITIES EXPENSE,186286.57,9/26/2019
"CONSTELLATION NEW ENERGY GAS DIVISION, LLC",UTILITIES EXPENSE,554.85,10/7/2019
PLANET DEPOS LLC,LEGAL COSTS,191.35,5/7/2019
ILLINOIS CPA SOCIETY,GENERAL EXPENSES,277.00,5/15/2019
CRASH SAFETY RESEARCH CNTR LLC,CONTRACTUAL SERVICES,2500.00,6/13/2019
ROYAL REPORTING SERVICES,LEGAL COSTS,403.98,10/1/2019
"QUANTUM CROSSINGS, LLC",FINANCIAL & TREAS SVCS,233392.49,12/20/2019
"ATLAS FIRST ACCESS MATERIAL HANDLING, INC.",MAINTENANCE & REPAIRS,2337.66,1/18/2019
"JONES LANG LaSALLE, INCORPORATED",CONSULTING,6270.04,2/1/2019
"ATLAS FIRST ACCESS MATERIAL HANDLING, INC.",MAINTENANCE & REPAIRS,5029.45,2/21/2019
ARC IMAGING RESOURCES,MAINTENANCE & REPAIRS,5473.96,2/13/2019
"T-MOBILE USA, INC.",UTILITIES EXPENSE,15586.11,3/26/2019
JOHNSON PIPE & SUPPLY CO.,DIRECT PURCHASES,121.34,3/8/2019
SAPAA,GENERAL EXPENSES,175.00,3/14/2019
EHC CANADA INC. d/b/a EHC GLOBAL,DIRECT PURCHASES,1750.00,4/10/2019
"ARAMARK UNIFORM SERVICES, INC.",GENERAL EXPENSES,161.28,3/26/2019
CDW GOVERNMENT LLC,TECHNOLOGY SERVICES,366.29,5/16/2019
FERRANDINO REPORTING,LEGAL COSTS,440.00,5/21/2019
"*ANZY SUPPLY, INC.",MAINTENANCE & REPAIRS,1094.40,6/6/2019
"GUARDIAN INDUSTRIAL SUPPLY, LLC",DIRECT PURCHASES,749.34,6/13/2019
"MANSFIELD OIL COMPANY OF GAINESVILLE, INC.",FUEL EXPENSE,218383.50,5/31/2019
"AT&T MOBILITY NATIONAL ACCOUNTS, LLC",UTILITIES EXPENSE,95341.28,6/19/2019
"INTERSTATE POWER SYSTEMS, INC.",MAINTENANCE & REPAIRS,18419.94,7/16/2019
"WISCO, INC.",MAINTENANCE & REPAIRS,976.50,7/2/2019
"MENARD INDUSTRIES, LLC, d/b/a MENARD'S RAILROAD MATERIALS",CONTRACTUAL SERVICES,875.20,7/16/2019
"HIRERIGHT SOLUTIONS, INC.",ADMINISTRATION & HR,5791.25,7/5/2019
JACKSON LEWIS PC,LEGAL COSTS,2000.00,8/1/2019
GENUINE PARTS COMPANY (NAPA),DIRECT PURCHASES,9198.38,9/13/2019
"GREENLINE ENVIRONMENTAL SOLUTIONS, LLC",MAINTENANCE & REPAIRS,18580.00,9/10/2019
GENUINE PARTS COMPANY (NAPA),DIRECT PURCHASES,5221.08,10/24/2019
"ATLAS FIRST ACCESS MATERIAL HANDLING, INC.",MAINTENANCE & REPAIRS,23136.67,11/27/2019
GENUINE PARTS COMPANY (NAPA),MATERIAL LOAD/ADJ,925.00,11/8/2019
"108 NORTH STATE ST. (CHICAGO) OWNER,LLC",FACILITY RENTAL,32200.00,10/25/2019
GENUINE PARTS COMPANY (NAPA),GENERAL EXPENSES,8919.93,11/25/2019
VILLAGE OF ROBBINS,GENERAL EXPENSES,100.00,11/1/2019
"WISCO, INC.",DIRECT PURCHASES,438.00,11/5/2019
SAFETY VISION LLC,FINANCIAL & TREAS SVCS,28564.25,11/27/2019
"MANSFIELD OIL COMPANY OF GAINESVILLE, INC.",FUEL EXPENSE,478282.38,11/27/2019
*CSI 3000 Inc,MAINTENANCE & REPAIRS,2850.00,12/3/2019
APOLLO VIDEO TECHNOLOGY,FINANCIAL & TREAS SVCS,71990.27,12/17/2019
PITNEY BOWES GLOBAL MAILING SYSTEMS,MAINTENANCE & REPAIRS,565.21,12/18/2019
"ANCHOR MECHANICAL, INC.",MAINTENANCE & REPAIRS,69582.57,12/31/2019
"COMET MESSENGER SERVICE, INC.",CONTRACTUAL SERVICES,19.50,1/18/2019
"108 NORTH STATE ST. (CHICAGO) OWNER,LLC",FACILITY RENTAL,32200.00,1/8/2019
"MIDWEST ENVIRONMENTAL SALES CO., INC.",DIRECT PURCHASES,4880.53,2/7/2019
"ANCHOR STAFFING, INC.",TECHNOLOGY SERVICES,1187.28,3/15/2019
GENUINE PARTS COMPANY (NAPA),GENERAL EXPENSES,3256.20,3/27/2019
JB DANIEL,CONTRACTUAL SERVICES,1000.00,4/9/2019
"ACTION K-9 SECURITY, INC.",PURCHASE OF SECURITY SERVICES,22643.55,4/16/2019
PRIMUS ELECTRONICS CORPORATION,DIRECT PURCHASES,2292.00,5/3/2019
"ARAMARK UNIFORM SERVICES, INC.",CONTRACTUAL SERVICES,71.85,6/12/2019
"SPRINT SOLUTIONS, INC.",UTILITIES EXPENSE,199400.25,6/19/2019
JOHNSON PIPE & SUPPLY CO.,DIRECT PURCHASES,2221.52,7/8/2019
"ANIXTER, INC.",GENERAL EXPENSES,848.34,10/22/2019
GENUINE PARTS COMPANY (NAPA),TRAVEL & MEETING EXPENSE,51.07,10/8/2019
"*ANDERSON & SHAH ROOFING, INC.",MAINTENANCE & REPAIRS,12425.39,11/12/2019
CINTAS CORPORATION,MAINTENANCE & REPAIRS,46.24,11/12/2019
SEARCH INC,GENERAL EXPENSES,250.00,11/14/2019
DONNA WARD,CREDITS,20.00,11/19/2019
"VERIZON WIRELESS, INC.",UTILITIES EXPENSE,97052.43,11/22/2019
"COMET MESSENGER SERVICE, INC.",CONTRACTUAL SERVICES,257.91,12/17/2019
"*THE BLUEPRINT SHOPPE, INC.",MAINTENANCE & REPAIRS,1442.90,1/2/2019
AMERICAN INSURANCE SERVICES GROUP,CONTRACTUAL SERVICES,245.00,2/7/2019
CITY OF CHICAGO-DEPT OF FLEET AND FACILITY  MGMT,MAINTENANCE & REPAIRS,76731.11,4/4/2019
NORTHERN ILLINOIS GAS,UTILITIES EXPENSE,7363.52,6/19/2019
"COMET MESSENGER SERVICE, INC.",CONTRACTUAL SERVICES,12.95,8/1/2019
CORPORATE CONCEPTS INC,GENERAL EXPENSES,6850.00,11/26/2019
ARC IMAGING RESOURCES,MAINTENANCE & REPAIRS,144.00,12/13/2019
Xorux s.r.o.,MAINTENANCE & REPAIRS,8000.00,12/17/2019
"DATA TEC SYSTEMS, INC.",CONTRACTUAL SERVICES,1616.00,1/11/2019
"SUSAN STERN, M.D.",ADMINISTRATION & HR,1000.00,2/8/2019
"ALPINA MANUFACTURING, LLC",DIRECT PURCHASES,1595.00,4/30/2019
ENTERPRISE LEASING COMPANY OF CHICAGO,EQUIPMENT RENTAL,15.00,5/6/2019
"ATLAS FIRST ACCESS MATERIAL HANDLING, INC.",MAINTENANCE & REPAIRS,363.98,5/21/2019
MURRAY & TRETTEL INC,GENERAL EXPENSES,416.25,7/25/2019
"MID-AMERICA BUSINESS SYSTEMS & EQUPMENT, INC.",MAINTENANCE & REPAIRS,6805.22,8/15/2019
BLOOMBERG FINANCE L.P.,CONTRACTUAL SERVICES,6870.00,8/15/2019
"WISCO, INC.",MAINTENANCE & REPAIRS,154.60,9/4/2019
ACCOUNTING PRINCIPALS INC,CONTRACTUAL SERVICES,424.96,10/18/2019
FOOT & ANKLE SPECIALIST LLC,ADMINISTRATION & HR,38.62,10/8/2019
"*ABC HUMANE WILDLIFE CONTROL & PREVENTION, INC.",MAINTENANCE & REPAIRS,3152.00,11/7/2019
CONCENTRA,ADMINISTRATION & HR,8339.80,12/20/2019
"ILLINOIS BONE & JOINT INSTITUTE, LLC",ADMINISTRATION & HR,375.00,1/29/2019
"WISCO, INC.",DIRECT PURCHASES,85.30,3/21/2019
BRE RIVER NORTH POINT OWNER,FACILITY RENTAL,52250.27,6/19/2019
"ZIPCAR, INC.",EQUIPMENT RENTAL,48.23,7/31/2019
"OER SERVICES, LLC",EQUIPMENT RENTAL,4620.00,10/11/2019
"MCCORKLE LITIGATION SERVICES, INC",LEGAL COSTS,112.00,11/13/2019
MAVENSOLVE LLC,GENERAL EXPENSES,1950.00,12/4/2019
"LAW BULLETIN PUBLISHING CO, INC.",FINANCIAL & TREAS SVCS,8893.00,12/24/2019
"ORACLE AMERICA, INC.",MAINTENANCE & REPAIRS,77499.99,4/23/2019
"BUCHANAN REPORTING, INC",LEGAL COSTS,184.80,5/2/2019
SKOKIE POLICE DEPARTMENT,LEGAL COSTS,5.00,6/13/2019
Wensco,DIRECT PURCHASES,4790.00,7/18/2019
GREENBERG TRAURIG LLP,LEGAL COSTS,2212.50,12/31/2019
"AMERESCO, INC.",CONSULTING,14730.00,9/30/2019
CDW GOVERNMENT LLC,TRAVEL & MEETING EXPENSE,244.08,2/8/2019
"WISCO, INC.",MAINTENANCE & REPAIRS,212.35,3/22/2019
CUMMINS INC.,MAINTENANCE & REPAIRS,355.71,3/6/2019
CHRISTOPHER PRATTS,LEGAL COSTS,75.00,3/13/2019
"SVANACO, INC.",TECHNOLOGY SERVICES,27975.00,5/14/2019
LARS E JOHNSON,LEGAL COSTS,75.00,6/13/2019
GREENBERG TRAURIG LLP,LEGAL COSTS,19614.50,9/24/2019
"AT&T MOBILITY NATIONAL ACCOUNTS, LLC",UTILITIES EXPENSE,80121.30,9/26/2019
*CityEscape Garden & Design,MAINTENANCE & REPAIRS,342.00,10/17/2019
"WAREHOUSE DIRECT, INC.",MAINTENANCE & REPAIRS,25.46,12/3/2019
"HIRERIGHT SOLUTIONS, INC.",ADMINISTRATION & HR,8572.54,12/27/2019
"Elk Grove Graphics, A division of C2 Imaging",ADVERTISING & PROMOTION,16816.94,5/9/2019
JACKSON LEWIS PC,CONTRACTUAL SERVICES,34.84,6/25/2019
SDI PRESENCE LLC,TECHNOLOGY SERVICES,292775.00,7/18/2019
COMTO NATIONAL HEADQUARTERS,GENERAL EXPENSES,625.00,12/27/2019
CUMMINS INC.,MAINTENANCE & REPAIRS,1600.69,1/9/2019
GENUINE PARTS COMPANY (NAPA),DIRECT PURCHASES,11531.49,2/6/2019
"INSPE ASSOCIATES,LTD.",ADMINISTRATION & HR,4875.00,1/8/2019
PNC BANK,TRAVEL & MEETING EXPENSE,1155.12,2/20/2019
"MARK ANDY, INC.",MAINTENANCE & REPAIRS,820.00,3/7/2019
"ATLAS FIRST ACCESS MATERIAL HANDLING, INC.",MAINTENANCE & REPAIRS,12846.88,4/17/2019
"WISCO, INC.",DIRECT PURCHASES,582.98,4/24/2019
*J.P. SIMONS & COMPANY,DIRECT PURCHASES,326938.00,5/14/2019
"OCCUPATIONAL HEALTH CENTERS OF THE SOUTHWEST, PA. d/b/a CONCENTRA MEDICAL CENTERS",ADMINISTRATION & HR,64448.00,5/30/2019
SIEMENS MOBILITY INC.,DIRECT PURCHASES,2061.80,6/19/2019
JULES I CRYSTAL,LEGAL COSTS,800.00,6/11/2019
CUMMINS INC.,MAINTENANCE & REPAIRS,1092.53,6/13/2019
AT & T CORP,MAINTENANCE & REPAIRS,81218.33,6/19/2019
STAPLES ADVANTAGE,DIRECT PURCHASES,1328.67,6/20/2019
"MCCORKLE LITIGATION SERVICES, INC",GENERAL EXPENSES,376.55,7/1/2019
"GREENLINE ENVIRONMENTAL SOLUTIONS, LLC",MAINTENANCE & REPAIRS,2785.00,7/3/2019
GENUINE PARTS COMPANY (NAPA),DIRECT PURCHASES,65201.65,7/31/2019
"GREENLINE ENVIRONMENTAL SOLUTIONS, LLC",MAINTENANCE & REPAIRS,3185.00,7/16/2019
"WISCO, INC.",DIRECT PURCHASES,50.65,8/21/2019
"MANSFIELD OIL COMPANY OF GAINESVILLE, INC.",FUEL EXPENSE,197885.84,8/13/2019
"OER SERVICES, LLC",EQUIPMENT RENTAL,25162.25,9/9/2019
CINTAS CORPORATION,CONTRACTUAL SERVICES,8227.90,9/13/2019
"MANSFIELD OIL COMPANY OF GAINESVILLE, INC.",FUEL EXPENSE,321540.04,9/20/2019
GENUINE PARTS COMPANY (NAPA),TRAVEL & MEETING EXPENSE,1198.88,11/6/2019
STAPLES ADVANTAGE,DIRECT PURCHASES,554.57,10/21/2019
"THOMPSON COBURN, LLC",LEGAL COSTS,98707.00,11/4/2019
"LANER, MUCHIN, DOMBROW, BECKER,",LEGAL COSTS,26995.40,11/7/2019
PNC BANK,GENERAL EXPENSES,1607.99,11/19/2019
"INSPE ASSOCIATES,LTD.",ADMINISTRATION & HR,10260.00,12/18/2019
XEROX CORPORATION /XEROX CTR,MAINTENANCE & REPAIRS,12492.62,2/8/2019
"GREENLINE ENVIRONMENTAL SOLUTIONS, LLC",MAINTENANCE & REPAIRS,1072.00,2/26/2019
"GREENLINE ENVIRONMENTAL SOLUTIONS, LLC",MAINTENANCE & REPAIRS,1500.00,3/1/2019
SDI PRESENCE LLC,TECHNOLOGY SERVICES,292775.00,3/26/2019
SIMMONS MACHINE TOOL CORPORATION,DIRECT PURCHASES,12730.00,3/27/2019
ERICA PETIT-ANDERSON,LEGAL COSTS,75.00,6/4/2019
"JOHNSON CONTROLS, INC.",MAINTENANCE & REPAIRS,1980.00,7/5/2019
"ORRINGTON TT, LLC",EQUIPMENT RENTAL,921.30,7/30/2019
FOREST PARK POLICE DEPT.,PURCHASE OF SECURITY SERVICES,4067.64,9/20/2019
"BHFX, LLC",MAINTENANCE & REPAIRS,846.00,10/22/2019
"INTERSTATE POWER SYSTEMS, INC.",MAINTENANCE & REPAIRS,1275.62,11/22/2019
CHICAGO TRIBUNE CO.,GENERAL EXPENSES,2288.33,10/29/2019
SINTERIO CLEMONS,CREDITS,20.00,11/19/2019
MEDIAAGILITY INC,TECHNOLOGY SERVICES,2548.16,11/27/2019
LORCHEM TECHNOLOGIES INC,MAINTENANCE & REPAIRS,885.75,11/27/2019
"MANSFIELD OIL COMPANY OF GAINESVILLE, INC.",FUEL EXPENSE,35021.34,12/3/2019
"CUBIC TRANSPORTATION SYSTEMS, INC.",CONTRACTUAL SERVICES,817742.48,1/17/2019
CLAREMONT LLC,CONTRACTUAL SERVICES,1480.00,1/11/2019
"LABELS & DECALS, INC.",ADVERTISING & PROMOTION,1574.58,4/11/2019
"MCCORKLE LITIGATION SERVICES, INC",LEGAL COSTS,1347.84,4/3/2019
"HIRERIGHT SOLUTIONS, INC.",ADMINISTRATION & HR,15832.84,5/29/2019
GENUINE PARTS COMPANY (NAPA),GENERAL EXPENSES,15840.00,11/4/2019
"MENARD INDUSTRIES, LLC, d/b/a MENARD'S RAILROAD MATERIALS",CONTRACTUAL SERVICES,46.20,10/22/2019
CUMMINS INC.,MAINTENANCE & REPAIRS,705.77,10/18/2019
GENUINE PARTS COMPANY (NAPA),DIRECT PURCHASES,1310.88,12/16/2019
"WEST PUBLISHING CORPORATION d/b/a THOMSON WEST, WEST GROUP OR WEST",FINANCIAL & TREAS SVCS,6959.90,12/27/2019
COZEN O'CONNOR,LEGAL COSTS,1285.50,1/3/2019
"MCCORKLE LITIGATION SERVICES, INC",GENERAL EXPENSES,426.75,2/8/2019
SHARED USE MOBILITY CENTER,TRAVEL & MEETING EXPENSE,525.00,2/15/2019
"ORRINGTON TT, LLC",EQUIPMENT RENTAL,1842.60,2/19/2019
ILLINOIS SECRETARY OF STATE,GENERAL EXPENSES,50.00,3/21/2019
"*ALLPOINTS SECURITY AND DETECTIVE, INC.",PURCHASE OF SECURITY SERVICES,21105.74,4/12/2019
"FRASCO, INC.",LEGAL COSTS,290.00,4/26/2019
"Elk Grove Graphics, A division of C2 Imaging",CONTRACTUAL SERVICES,1266.31,7/5/2019
"AUTOMATIC MECHANICAL SERVICES, INC, d/b/a CONTROL ENGINEERING CORP.",MAINTENANCE & REPAIRS,2695.50,8/5/2019
VILLAGE OF OAK PARK -1,PURCHASE OF SECURITY SERVICES,10667.25,8/8/2019
"*ANCHOR STAFFING, INC.",TECHNOLOGY SERVICES,1239.74,9/6/2019
"JUST ELEVATOR INSPECTION SERVICE, INC.",MAINTENANCE & REPAIRS,10987.50,12/12/2019
"*MULTILINGUAL CONNECTIONS, LLC",ADVERTISING & PROMOTION,110.00,10/17/2019
EVERGREEN PARK RED LIGHT,GENERAL EXPENSES,100.00,10/18/2019
"ALLIANCE PRINTERS & PUBLISHERS, INC. d/b/a POLISH DAILY NEWS",ADVERTISING & PROMOTION,80.00,11/26/2019
"ATLAS FIRST ACCESS MATERIAL HANDLING, INC.",MAINTENANCE & REPAIRS,435.00,11/26/2019
"PROTANIC, INC.",MAINTENANCE & REPAIRS,12552.09,12/27/2019
POSTAL PARTNERS,GENERAL EXPENSES,77.17,2/28/2019
SERVICE SANITATION INC,MAINTENANCE & REPAIRS,155.00,3/28/2019
SPRING HILL SUITES,TRAVEL & MEETING EXPENSE,1291.88,4/3/2019
WILLOWBROOK POLICE DEPARTMENT,GENERAL EXPENSES,100.00,4/26/2019
AICPA,TRAVEL & MEETING EXPENSE,200.81,6/27/2019
"J2 CLOUD SERVICES, LLC.",CONTRACTUAL SERVICES,139.50,7/2/2019
"INSPE ASSOCIATES,LTD.",ADMINISTRATION & HR,5190.00,7/16/2019
"*ANCHOR STAFFING, INC.",TECHNOLOGY SERVICES,1156.24,8/2/2019
"Chip 1 Exchange USA, Inc.",DIRECT PURCHASES,1200.00,8/28/2019
JACKSON LEWIS PC,LEGAL COSTS,1540.00,12/4/2019
"INSPE ASSOCIATES,LTD.",ADMINISTRATION & HR,4200.00,2/26/2019
RICHARD DAY,CREDITS,20.00,8/20/2019
ANDERSON ELEVATOR CO.,MAINTENANCE & REPAIRS,373576.85,12/6/2019
CITY OF BURBANK,GENERAL EXPENSES,100.00,12/17/2019
"DQS, INC",CONTRACTUAL SERVICES,5100.00,12/19/2019
"STANTON MECHANICAL, INC.",MAINTENANCE & REPAIRS,11230.79,12/24/2019
"*ABC HUMANE WILDLIFE CONTROL & PREVENTION, INC.",MAINTENANCE & REPAIRS,2200.00,1/9/2019
"CRANE 1 SERVICES, INC.",MAINTENANCE & REPAIRS,1343.00,2/26/2019
"AMAZON WEB SERVICES, INC.",CONTRACTUAL SERVICES,476.69,3/4/2019
"SCHNEIDER ELECTRIC BUILDINGS AMERICAS, INC.",MAINTENANCE & REPAIRS,1715.00,3/12/2019
"BARLOW MECHANICAL SALES, INC.",DIRECT PURCHASES,1788.00,4/23/2019
CHICAGO METRO CONSTRUCTION D/B/A ARLINGTON GLASS & MIRROR CO.,MAINTENANCE & REPAIRS,1479.16,5/1/2019
NATIONAL ACADEMY OF TELEVISION ARTS & SCIENCES,TRAVEL & MEETING EXPENSE,550.00,5/29/2019
89TH ST PROPERTIES LLC,FACILITY RENTAL,27968.92,5/31/2019
CHICAGO TRANSIT AUTHORITY,DIRECT PURCHASES,330.00,6/24/2019
ACCOUNTING PRINCIPALS INC,CONTRACTUAL SERVICES,1062.40,7/19/2019
*SOUTH SUBURBAN PEST CONTROL,MAINTENANCE & REPAIRS,6665.00,9/9/2019
AICPA,GENERAL EXPENSES,285.00,9/20/2019
TOASTMASTERS INTERNATIONAL,GENERAL EXPENSES,50.00,10/9/2019
COOK COUNTY SHERIFF DEPARTMENT,LEGAL COSTS,40.00,11/19/2019
BRE RIVER NORTH POINT OWNER,FACILITY RENTAL,52250.27,12/3/2019
AMALGAMATED BANK OF CHICAGO,FINANCIAL & TREAS SVCS,744.04,2/12/2019
COOK COUNTY SHERIFF DEPARTMENT,MAINTENANCE & REPAIRS,30408.67,2/15/2019
"DEVELOPMENT DIMENSIONS INTERNATIONAL, INC",CONTRACTUAL SERVICES,68.62,5/13/2019
VERITEXT CHICAGO REPORTING CO.,LEGAL COSTS,957.20,5/24/2019
PNC BANK,TECHNOLOGY SERVICES,999.00,7/16/2019
"*ANCHOR STAFFING, INC.",TECHNOLOGY SERVICES,1159.89,8/23/2019
MIDWEST MINIMALLY INVASIVE SPINE SPECIALISTS,LEGAL COSTS,40.00,10/24/2019
"JONES LANG LaSALLE, INCORPORATED",CONSULTING,2561.70,1/8/2019
ST. MARY AND ELIZABETH MEDICAL CENTER,ADMINISTRATION & HR,20.00,1/16/2019
CHICAGO METRO CONSTRUCTION D/B/A ARLINGTON GLASS & MIRROR CO.,MAINTENANCE & REPAIRS,2753.16,3/1/2019
*J.P. SIMONS & COMPANY,DIRECT PURCHASES,9366.65,2/19/2019
CDW GOVERNMENT LLC,DIRECT PURCHASES,489.52,2/8/2019
G&T ORTHOPAEDICS,ADMINISTRATION & HR,750.00,2/19/2019
ALL-STATE INTERNATIONAL INC,DIRECT PURCHASES,47.95,2/21/2019
CUMMINS INC.,MAINTENANCE & REPAIRS,647.90,3/7/2019
CINTAS CORPORATION,CONTRACTUAL SERVICES,33207.98,3/8/2019
G & O THERMAL SUPPLY COMPANY,DIRECT PURCHASES,1426.20,4/19/2019
"OER SERVICES, LLC",MAINTENANCE & REPAIRS,810.74,4/29/2019
"*ANZY SUPPLY, INC.",DIRECT PURCHASES,247.48,4/30/2019
"J2 CLOUD SERVICES, LLC.",CONTRACTUAL SERVICES,431.10,4/26/2019
"AUTOMATIC FIRE CONTROLS, INC.",MAINTENANCE & REPAIRS,33094.00,5/10/2019
"MCCORKLE LITIGATION SERVICES, INC",LEGAL COSTS,745.36,5/15/2019
"AMERICAN BUILDING SERVICES, LLC (M-D BUILDING MATERIALS)",DIRECT PURCHASES,3237.24,6/14/2019
"WISCO, INC.",MAINTENANCE & REPAIRS,1762.70,6/4/2019
CUMMINS INC.,MAINTENANCE & REPAIRS,3572.71,6/28/2019
GENUINE PARTS COMPANY (NAPA),DIRECT PURCHASES,48879.90,7/10/2019
"MANSFIELD OIL COMPANY OF GAINESVILLE, INC.",FUEL EXPENSE,391388.08,8/5/2019
GENUINE PARTS COMPANY (NAPA),DIRECT PURCHASES,3955.01,9/19/2019
"Pest Management Services, Inc.",MAINTENANCE & REPAIRS,4062.00,9/6/2019
"ATLAS FIRST ACCESS MATERIAL HANDLING, INC.",MAINTENANCE & REPAIRS,3558.70,10/11/2019
GENUINE PARTS COMPANY (NAPA),DIRECT PURCHASES,22314.77,10/23/2019
STAPLES ADVANTAGE,DIRECT PURCHASES,31544.04,10/10/2019
CINTAS CORPORATION,DIRECT PURCHASES,361.62,10/18/2019
DYNEGY ENERGY SERVICES,UTILITIES EXPENSE,367264.55,11/6/2019
UNITED PARCEL SERVICE,GENERAL EXPENSES,105.86,11/19/2019
GENUINE PARTS COMPANY (NAPA),DIRECT PURCHASES,40341.50,12/13/2019
"PROTANIC, INC.",MAINTENANCE & REPAIRS,32404.61,11/27/2019
"MANSFIELD OIL COMPANY OF GAINESVILLE, INC.",FUEL EXPENSE,533534.58,12/6/2019
"HERITAGE-CRYSTAL CLEAN, LLC",DIRECT PURCHASES,4320.00,11/27/2019
"COMET MESSENGER SERVICE, INC.",GENERAL EXPENSES,87.75,12/20/2019
"JONES LANG LaSALLE, INCORPORATED",CONSULTING,46477.22,1/9/2019
"PROTANIC, INC.",MAINTENANCE & REPAIRS,37122.14,1/24/2019
"CONSTELLATION NEW ENERGY GAS DIVISION, LLC",UTILITIES EXPENSE,9686.10,1/4/2019
"OFFICE DEPOT, INCORPORATED",DIRECT PURCHASES,49.97,1/29/2019
JOHNSON PIPE & SUPPLY CO.,DIRECT PURCHASES,1324.36,2/22/2019
INTERTEK USA INC.,CONTRACTUAL SERVICES,9608.00,3/7/2019
CUMMINS INC.,MAINTENANCE & REPAIRS,1562.61,4/9/2019
CITY OF CHICAGO-DEPT OF FLEET AND FACILITY  MGMT,DIRECT PURCHASES,15728.59,4/12/2019
"GREENLINE ENVIRONMENTAL SOLUTIONS, LLC",MAINTENANCE & REPAIRS,7995.00,5/16/2019
PEOPLES GAS,UTILITIES EXPENSE,73450.03,7/11/2019
METROPOLITAN WATER RECLAMATION..,UTILITIES EXPENSE,17898.17,8/14/2019
JOHNSON CONTROLS FIRE PROTECTION LP,MAINTENANCE & REPAIRS,87.50,8/27/2019
"WISCO, INC.",MAINTENANCE & REPAIRS,474.44,11/19/2019
"JULIAN, BETLEY & ASSOCIATES",LEGAL COSTS,141.10,11/12/2019
BUILDERS CHICAGO CORPORATION,MAINTENANCE & REPAIRS,3893.60,12/2/2019
GREENBERG TRAURIG LLP,LEGAL COSTS,6578.50,1/15/2019
"LUMINATOR MASS TRANSIT, LLC",MAINTENANCE & REPAIRS,135.18,2/26/2019
"CHICAGO SUN-TIMES, INCORPORATED dba Sun-Times Media Productions, LLC",ADVERTISING & PROMOTION,1239.50,7/26/2019
TOMPKINS PRINTING EQUIPMENT CO.,MAINTENANCE & REPAIRS,934.80,7/31/2019
ROYAL REPORTING SERVICES,LEGAL COSTS,107.92,10/22/2019
HEGENSCHEIDT CORP.,MAINTENANCE & REPAIRS,2764.00,11/20/2019
BRIDGES COURT REPORTING,LEGAL COSTS,927.10,11/12/2019
"*MIDWAY OVERHEAD DOOR, INC.",MAINTENANCE & REPAIRS,3610.00,2/15/2019
"AT&T MOBILITY NATIONAL ACCOUNTS, LLC",UTILITIES EXPENSE,387185.57,3/8/2019
"U.S. LEGAL SUPPORT, INCORPORATED",ADMINISTRATION & HR,81.50,4/2/2019
LEXITAS,LEGAL COSTS,323.60,4/9/2019
TOWN OF CICERO,UTILITIES EXPENSE,3268.78,5/14/2019
VILLAGE OF WILMETTE,UTILITIES EXPENSE,1344.49,6/4/2019
"COMET MESSENGER SERVICE, INC.",CONTRACTUAL SERVICES,39.00,6/21/2019
"GARDA CL GREAT LAKES, INC.",FINANCIAL & TREAS SVCS,15967.00,7/30/2019
"*DIGBY'S DETECTIVE & SECURITY AGENCY, INC.",PURCHASE OF SECURITY SERVICES,47207.45,9/17/2019
"TRAPEZE SOFTWARE GROUP, INC",MAINTENANCE & REPAIRS,126539.00,10/10/2019
EVERGREEN PARK RED LIGHT,GENERAL EXPENSES,100.00,10/31/2019
CUMMINS INC.,MAINTENANCE & REPAIRS,4695.34,11/6/2019
"LAW BULLETIN PUBLISHING CO, INC.",GENERAL EXPENSES,107.00,11/22/2019
A.R.D.C.,GENERAL EXPENSES,18700.00,12/6/2019
"WISCO, INC.",MAINTENANCE & REPAIRS,102.80,12/18/2019
"GREENLINE ENVIRONMENTAL SOLUTIONS, LLC",MAINTENANCE & REPAIRS,3185.00,12/19/2019
UNITEC PARTS CO.,DIRECT PURCHASES,30000.00,1/3/2019
"RECORDS DEPOSITION SERVICE, INC.",ADMINISTRATION & HR,44.57,3/12/2019
"GREENLINE ENVIRONMENTAL SOLUTIONS, LLC",MAINTENANCE & REPAIRS,3385.00,5/3/2019
CUMMINS INC.,MAINTENANCE & REPAIRS,1896.72,6/19/2019
IAP CONSTRUCTION INC.,MAINTENANCE & REPAIRS,2389.00,7/2/2019
ADVANCED PHYSICAL MEDICINE,ADMINISTRATION & HR,500.00,7/5/2019
89TH ST PROPERTIES LLC,FACILITY RENTAL,27968.92,8/27/2019
"CONSTELLATION NEW ENERGY GAS DIVISION, LLC",UTILITIES EXPENSE,11282.72,9/5/2019
COOK COUNTY SHERIFF DEPARTMENT,ADMINISTRATION & HR,80.00,9/18/2019
FRANCESCA'S BRYN MAWR,GENERAL EXPENSES,707.16,10/4/2019
CITY OF CHICAGO-DEPT OF WATER,UTILITIES EXPENSE,183963.20,10/24/2019
"J.E. MANZI & ASSOCIATES, INC.",CONTRACTUAL SERVICES,2000.00,1/15/2019
LEXIS NEXIS CO.,CONTRACTUAL SERVICES,5458.33,1/29/2019
"WISCO, INC.",MAINTENANCE & REPAIRS,129.29,3/12/2019
SOCIETY FOR INDUSTRIAL AND,GENERAL EXPENSES,55.00,7/23/2019
UNITED PARCEL SERVICE,GENERAL EXPENSES,21.15,8/8/2019
MURNANE PAPER CO.,MAINTENANCE & REPAIRS,1504.80,8/28/2019
MCGILL CONSTRUCTION CO LLC,MAINTENANCE & REPAIRS,34715.00,9/5/2019
NORTHERN ILLINOIS UNIVERSITY,TRAVEL & MEETING EXPENSE,850.00,12/27/2019
ZIONS BANK,GENERAL EXPENSES,111770.10,1/9/2019
CLERK OF THE CIRCUIT COURT  1,LEGAL COSTS,11.00,5/22/2019
"MENARD INDUSTRIES, LLC, d/b/a MENARD'S RAILROAD MATERIALS",CONTRACTUAL SERVICES,1490.80,6/14/2019
NICHOLAS CARL FRISCH M.D.,ADMINISTRATION & HR,187.50,6/20/2019
VILLAGE OF OAK PARK UTILITIES,UTILITIES EXPENSE,3314.91,9/24/2019
ADVOCATE COURT REPORTERS LLC,LEGAL COSTS,448.70,1/4/2019
"108 NORTH STATE ST. (CHICAGO) OWNER,LLC",FACILITY RENTAL,32200.00,2/6/2019
"CHICAGO SUN-TIMES, INCORPORATED dba Sun-Times Media Productions, LLC",ADVERTISING & PROMOTION,489.60,2/12/2019
WORLDATWORK             (2),GENERAL EXPENSES,265.00,3/8/2019
"108 NORTH STATE ST. (CHICAGO) OWNER,LLC",FACILITY RENTAL,32200.00,6/4/2019
"ANCHOR MECHANICAL, INC.",MAINTENANCE & REPAIRS,22708.64,2/14/2019
"COMET MESSENGER SERVICE, INC.",CONTRACTUAL SERVICES,227.30,2/26/2019
GENUINE PARTS COMPANY (NAPA),DIRECT PURCHASES,51061.59,3/15/2019
GENUINE PARTS COMPANY (NAPA),DIRECT PURCHASES,31374.80,3/20/2019
CLAREMONT LLC,CONTRACTUAL SERVICES,2484.00,3/12/2019
"MCCORKLE LITIGATION SERVICES, INC",LEGAL COSTS,951.65,3/27/2019
ASCE STRUCTURAL GROUP,TRAVEL & MEETING EXPENSE,1125.00,4/4/2019
"HIGH PSI, LTD.",MAINTENANCE & REPAIRS,429.27,5/10/2019
ACCOUNTING PRINCIPALS INC,CONTRACTUAL SERVICES,2280.64,5/3/2019
"SAFETY KLEEN SYSTEMS, INC.",MAINTENANCE & REPAIRS,4296.19,5/2/2019
"WISCO, INC.",DIRECT PURCHASES,429.50,6/27/2019
"THE MCS GROUP, INC.",ADMINISTRATION & HR,8789.82,7/12/2019
STAPLES ADVANTAGE,DIRECT PURCHASES,157.11,7/26/2019
"THE MCS GROUP, INC.",ADMINISTRATION & HR,953.76,8/13/2019
"VERITEXT, LLC",LEGAL COSTS,20943.76,9/10/2019
LEXIS NEXIS CO.,CONTRACTUAL SERVICES,11244.16,9/26/2019
*J.P. SIMONS & COMPANY,DIRECT PURCHASES,10174.60,10/16/2019
"GREENLINE ENVIRONMENTAL SOLUTIONS, LLC",MAINTENANCE & REPAIRS,16950.00,9/26/2019
"SPRINT SOLUTIONS, INC.",UTILITIES EXPENSE,47050.88,10/4/2019
FOX VALLEY FIRE & SAFETY COMPANY,MAINTENANCE & REPAIRS,12990.00,11/4/2019
"ATLAS FIRST ACCESS MATERIAL HANDLING, INC.",MAINTENANCE & REPAIRS,6471.91,11/15/2019
"MCCORKLE LITIGATION SERVICES, INC",LEGAL COSTS,4263.60,11/14/2019
"GREENLINE ENVIRONMENTAL SOLUTIONS, LLC",MAINTENANCE & REPAIRS,11860.00,11/27/2019
G & O THERMAL SUPPLY COMPANY,DIRECT PURCHASES,2575.15,3/13/2019
CINTAS CORPORATION,MAINTENANCE & REPAIRS,2052.60,2/27/2019
JOHNSON PIPE & SUPPLY CO.,DIRECT PURCHASES,104.05,3/7/2019
"J2 CLOUD SERVICES, LLC.",CONTRACTUAL SERVICES,143.30,3/8/2019
CITY OF CHICAGO/DEPT OF FINANCE,GENERAL EXPENSES,1190.00,4/2/2019
GENUINE PARTS COMPANY (NAPA),GENERAL EXPENSES,175.80,5/10/2019
FOREST PARK POLICE DEPT.,PURCHASE OF SECURITY SERVICES,6692.69,5/1/2019
"LAICON, INC.",CONSULTING,247.50,5/9/2019
BOLINGBROOK HEALTH CARE,ADMINISTRATION & HR,97.40,5/21/2019
JOHNSON PIPE & SUPPLY CO.,DIRECT PURCHASES,229.28,7/30/2019
"COMET MESSENGER SERVICE, INC.",CONTRACTUAL SERVICES,84.80,9/13/2019
CINTAS CORPORATION,DIRECT PURCHASES,83.28,9/17/2019
"ATLAS FIRST ACCESS MATERIAL HANDLING, INC.",MAINTENANCE & REPAIRS,1104.17,9/25/2019
BUILDERS CHICAGO CORPORATION,MAINTENANCE & REPAIRS,25064.95,10/28/2019
"WINKLER'S TREE SERVICE, INC.",MAINTENANCE & REPAIRS,9600.00,10/30/2019
"PROTANIC, INC.",MAINTENANCE & REPAIRS,9341.25,10/17/2019
"LAW BULLETIN PUBLISHING CO, INC.",FINANCIAL & TREAS SVCS,5563.00,10/23/2019
"VERITEXT, LLC",LEGAL COSTS,1293.40,10/22/2019
TKG & ASSOCIATES L.L.C,CONSULTING,10000.00,10/30/2019
"OER SERVICES, LLC",EQUIPMENT RENTAL,1540.00,11/14/2019
JOHNSON PIPE & SUPPLY CO.,DIRECT PURCHASES,1023.84,12/24/2019
"INTERSTATE POWER SYSTEMS, INC.",MAINTENANCE & REPAIRS,18653.08,12/31/2019
COMPUTER AID INC,TECHNOLOGY SERVICES,20240.00,12/20/2019
"PROTANIC, INC.",MAINTENANCE & REPAIRS,800.00,2/21/2019
"COMET MESSENGER SERVICE, INC.",CONTRACTUAL SERVICES,41.16,3/1/2019
"OER SERVICES, LLC",EQUIPMENT RENTAL,28534.26,3/7/2019
"GREENLINE ENVIRONMENTAL SOLUTIONS, LLC",MAINTENANCE & REPAIRS,2869.00,3/26/2019
"J2 CLOUD SERVICES, LLC.",CONTRACTUAL SERVICES,153.60,5/30/2019
MURRAY & TRETTEL INC,GENERAL EXPENSES,416.25,7/9/2019
"OER SERVICES, LLC",MAINTENANCE & REPAIRS,588.00,8/22/2019
ZIONS BANK,GENERAL EXPENSES,1225916.67,9/23/2019
VILLAGE OF SKOKIE.,UTILITIES EXPENSE,92.28,9/24/2019
"*WILEY'S LAWN CARE, LLC",MAINTENANCE & REPAIRS,22730.00,10/9/2019
GENUINE PARTS COMPANY (NAPA),DIRECT PURCHASES,1827.10,12/30/2019
"COMET MESSENGER SERVICE, INC.",CONTRACTUAL SERVICES,54.61,11/26/2019
NORTHERN ILLINOIS GAS,UTILITIES EXPENSE,9641.00,1/15/2019
RILEY SAFER HOLMES & CANCILA LLP,LEGAL COSTS,590.00,1/17/2019
ILLINOIS STATE POLICE 1,LEGAL COSTS,5.00,4/16/2019
"COMET MESSENGER SERVICE, INC.",CONTRACTUAL SERVICES,26.00,6/4/2019
"LAW BULLETIN PUBLISHING CO, INC.",FINANCIAL & TREAS SVCS,5563.00,7/19/2019
"AMERICAN BUILDING SERVICES, LLC (M-D BUILDING MATERIALS)",DIRECT PURCHASES,1909.60,11/20/2019
JACKSON LEWIS PC,LEGAL COSTS,8736.00,11/7/2019
GENUINE PARTS COMPANY (NAPA),CONSULTING,158523.99,12/6/2019
"PROTANIC, INC.",MAINTENANCE & REPAIRS,480.00,1/30/2019
BOLINGBROOK HEALTHCARE ASSOCIATES,ADMINISTRATION & HR,50.00,3/5/2019
STANDARD PARKING CORPORATION,CONTRACTUAL SERVICES,2760.00,4/24/2019
"OER SERVICES, LLC",EQUIPMENT RENTAL,18642.10,7/16/2019
"ARAMARK UNIFORM SERVICES, INC.",PURCHASE OF SECURITY SERVICES,77.51,8/21/2019
EVERGREEN PARK RED LIGHT,GENERAL EXPENSES,100.00,8/6/2019
EVERGREEN PARK RED LIGHT,GENERAL EXPENSES,100.00,8/27/2019
"RADICOM, INC.",MAINTENANCE & REPAIRS,11600.00,10/10/2019
"SPRINT SOLUTIONS, INC.",UTILITIES EXPENSE,47266.93,12/5/2019
"WISCO, INC.",MAINTENANCE & REPAIRS,166.15,11/26/2019
AMERICAN SOCIETY OF SAFETY PROFESSIONALS,GENERAL EXPENSES,195.00,6/27/2019
ARC IMAGING RESOURCES,MAINTENANCE & REPAIRS,121.92,7/18/2019
"*WILEY'S LAWN CARE, LLC",MAINTENANCE & REPAIRS,20490.00,7/2/2019
"ATLAS FIRST ACCESS MATERIAL HANDLING, INC.",MAINTENANCE & REPAIRS,217.50,7/18/2019
"MID-AMERICA BUSINESS SYSTEMS & EQUPMENT, INC.",MAINTENANCE & REPAIRS,402.00,10/3/2019
JOHNSON PIPE & SUPPLY CO.,DIRECT PURCHASES,1327.21,9/11/2019
JACKSON LEWIS PC,LEGAL COSTS,2604.00,12/4/2019
"BUCHANAN REPORTING, INC",LEGAL COSTS,255.50,12/13/2019
POSTAL PARTNERS,GENERAL EXPENSES,53.79,1/24/2019
CLERK OF THE CIRCUIT COURT  1,LEGAL COSTS,18.75,1/18/2019
MARGO NEWMAN,LEGAL COSTS,875.00,2/19/2019
"COMET MESSENGER SERVICE, INC.",CONTRACTUAL SERVICES,111.24,3/26/2019
APOLLO VIDEO TECHNOLOGY,FINANCIAL & TREAS SVCS,2872.00,5/3/2019
PRIMUS ELECTRONICS CORPORATION,DIRECT PURCHASES,25825.64,6/14/2019
ZIONS BANK,FINANCIAL & TREAS SVCS,2500.00,6/6/2019
"INTERSTATE POWER SYSTEMS, INC.",MAINTENANCE & REPAIRS,768.50,8/20/2019
TOMPKINS PRINTING EQUIPMENT CO.,MAINTENANCE & REPAIRS,5400.00,11/29/2019
"G. KLAUD MILLER, M.D.",ADMINISTRATION & HR,787.50,1/8/2019
"COY PUGH AND ASSOCIATES, LLC",CONTRACTUAL SERVICES,6000.00,1/17/2019
"HERITAGE-CRYSTAL CLEAN, LLC",DIRECT PURCHASES,1600.00,4/19/2019
POSTAL PARTNERS,GENERAL EXPENSES,74.49,4/24/2019
GENUINE PARTS COMPANY (NAPA),CONSULTING,138897.84,5/10/2019
JOHNSON PIPE & SUPPLY CO.,DIRECT PURCHASES,116.56,7/18/2019
TERESA BOYLE ROGERS CONSULTING,CONSULTING,2356.35,7/31/2019
"COMET MESSENGER SERVICE, INC.",CONTRACTUAL SERVICES,123.09,9/6/2019
"AMAZON WEB SERVICES, INC.",CONTRACTUAL SERVICES,1018.97,10/3/2019
COURTYARD BY MARRIOT,TRAVEL & MEETING EXPENSE,464.09,11/26/2019
GRAND HYATT SAN ANTONIO,TRAVEL & MEETING EXPENSE,372.93,11/26/2019
"WISCO, INC.",DIRECT PURCHASES,33.00,12/26/2019
*J.P. SIMONS & COMPANY,DIRECT PURCHASES,4241.66,2/6/2019
"GREENLINE ENVIRONMENTAL SOLUTIONS, LLC",MAINTENANCE & REPAIRS,2719.00,2/12/2019
*J.P. SIMONS & COMPANY,DIRECT PURCHASES,6204.00,2/26/2019
"OER SERVICES, LLC",EQUIPMENT RENTAL,35560.00,3/6/2019
*J.P. SIMONS & COMPANY,DIRECT PURCHASES,33763.52,3/5/2019
GENUINE PARTS COMPANY (NAPA),DIRECT PURCHASES,20469.01,5/6/2019
"AT&T MOBILITY NATIONAL ACCOUNTS, LLC",UTILITIES EXPENSE,505.58,3/22/2019
"PROFESSIONAL SERVICE INDUSTRIES, INC.",CONSULTING,960.00,4/26/2019
GENUINE PARTS COMPANY (NAPA),DIRECT PURCHASES,10397.05,5/15/2019
ORR SAFETY CORPORATION,DIRECT PURCHASES,2554.12,6/3/2019
GENUINE PARTS COMPANY (NAPA),MAINTENANCE & REPAIRS,2257.22,6/21/2019
"MANSFIELD OIL COMPANY OF GAINESVILLE, INC.",FUEL EXPENSE,354091.69,7/29/2019
"MCCORKLE LITIGATION SERVICES, INC",LEGAL COSTS,940.46,7/24/2019
CINTAS CORPORATION,DIRECT PURCHASES,353.94,8/20/2019
*J.P. SIMONS & COMPANY,DIRECT PURCHASES,163.50,9/11/2019
*J.P. SIMONS & COMPANY,DIRECT PURCHASES,3949.53,9/17/2019
ERIC THOMAS,LEGAL COSTS,75.00,8/27/2019
LORCHEM TECHNOLOGIES INC,MAINTENANCE & REPAIRS,940.63,9/25/2019
SERVICE SANITATION INC,TRAVEL & MEETING EXPENSE,1080.00,10/17/2019
FERRANDINO REPORTING,LEGAL COSTS,239.50,11/12/2019
"HOSTING.COM, INC.",MAINTENANCE & REPAIRS,744.85,1/3/2019
GENUINE PARTS COMPANY (NAPA),DIRECT PURCHASES,5040.35,2/5/2019
LEE N' EDDIES,GENERAL EXPENSES,439.55,1/9/2019
CUMMINS INC.,MAINTENANCE & REPAIRS,304.89,1/24/2019
UNITED PARCEL SERVICE,GENERAL EXPENSES,7.86,2/26/2019
DUN & BRADSTREET INC,CONTRACTUAL SERVICES,52571.00,5/23/2019
"ATLAS FIRST ACCESS MATERIAL HANDLING, INC.",MAINTENANCE & REPAIRS,624.28,6/26/2019
GENUINE PARTS COMPANY (NAPA),DIRECT PURCHASES,343.84,7/9/2019
"MCCORKLE LITIGATION SERVICES, INC",LEGAL COSTS,790.66,8/21/2019
CUMMINS INC.,MAINTENANCE & REPAIRS,482.87,8/28/2019
*J.P. SIMONS & COMPANY,DIRECT PURCHASES,1374.20,9/18/2019
"GREENLINE ENVIRONMENTAL SOLUTIONS, LLC",MAINTENANCE & REPAIRS,5065.00,9/20/2019
JOHNSON CONTROLS FIRE PROTECTION LP,MAINTENANCE & REPAIRS,1346.75,11/27/2019
COMMONWEALTH EDISON.,UTILITIES EXPENSE,245717.07,10/8/2019
"WISCO, INC.",DIRECT PURCHASES,12.00,11/15/2019
Wensco,ADVERTISING & PROMOTION,7860.20,12/12/2019
*J.P. SIMONS & COMPANY,DIRECT PURCHASES,4201.92,12/18/2019
"ACTION K-9 SECURITY, INC.",PURCHASE OF SECURITY SERVICES,17049.46,2/22/2019
"COMET MESSENGER SERVICE, INC.",CONTRACTUAL SERVICES,274.60,4/12/2019
"ATLAS FIRST ACCESS MATERIAL HANDLING, INC.",MAINTENANCE & REPAIRS,1435.39,4/24/2019
JOHNSON CONTROLS FIRE PROTECTION LP,MAINTENANCE & REPAIRS,45.50,5/24/2019
FOX VALLEY FIRE & SAFETY COMPANY,MAINTENANCE & REPAIRS,5330.00,8/29/2019
"GENFARE, A DIVISION OF SPX CORPORATION",DIRECT PURCHASES,870.10,9/25/2019
"AUTOMATIC MECHANICAL SERVICES, INC, d/b/a CONTROL ENGINEERING CORP.",MAINTENANCE & REPAIRS,1503.00,9/5/2019
CITY OF CHICAGO DEPT.OF REVENUE-RED LIGHT,GENERAL EXPENSES,300.00,9/17/2019
"WISCO, INC.",MAINTENANCE & REPAIRS,85.30,9/26/2019
IAP CONSTRUCTION INC.,MAINTENANCE & REPAIRS,4884.17,9/20/2019
"AUTOMATIC FIRE CONTROLS, INC.",MAINTENANCE & REPAIRS,6000.00,11/13/2019
"AMERICAN BUILDING SERVICES, LLC (M-D BUILDING MATERIALS)",DIRECT PURCHASES,3491.88,12/20/2019
"STANTON MECHANICAL, INC.",MAINTENANCE & REPAIRS,4378.78,3/14/2019
"CAPUS AUTOMATION SERVICES, INC.",MAINTENANCE & REPAIRS,2877.75,5/7/2019
COLETTE HOLT & ASSOCIATES,CONSULTING,4880.00,6/4/2019
GENUINE PARTS COMPANY (NAPA),CONTRACTUAL SERVICES,2021.95,7/11/2019
EVERGREEN PARK RED LIGHT,GENERAL EXPENSES,100.00,10/1/2019
"GREENLINE ENVIRONMENTAL SOLUTIONS, LLC",MAINTENANCE & REPAIRS,3890.00,10/25/2019
"THE MCS GROUP, INC.",ADMINISTRATION & HR,1058.30,11/20/2019
COZEN O'CONNOR,LEGAL COSTS,265.50,12/20/2019
"IMPERIAL CRANE SERVICES, INC.",EQUIPMENT RENTAL,4520.00,3/27/2019
RAPID7 LLC,TECHNOLOGY SERVICES,35120.00,4/30/2019
COOK COUNTY SHERIFF DEPARTMENT,MAINTENANCE & REPAIRS,33996.50,7/3/2019
"*ANCHOR STAFFING, INC.",TECHNOLOGY SERVICES,1222.93,11/15/2019
JOHNSON PIPE & SUPPLY CO.,DIRECT PURCHASES,583.27,11/22/2019
"KOPICO, INC.",DIRECT PURCHASES,3634.00,12/24/2019
"OER SERVICES, LLC",EQUIPMENT RENTAL,4620.00,1/23/2019
"WISCO, INC.",DIRECT PURCHASES,15.00,1/18/2019
JOHNSON PIPE & SUPPLY CO.,DIRECT PURCHASES,851.51,6/7/2019
XEROX CORPORATION /XEROX CTR,MAINTENANCE & REPAIRS,30304.16,5/24/2019
VILLAGE OF OAK PARK -1,PURCHASE OF SECURITY SERVICES,11950.29,8/22/2019
MAGGIANO'S LITTLE ITALY,TRAVEL & MEETING EXPENSE,3000.00,9/10/2019
LIFECARE HOME SOLUTIONS,ADMINISTRATION & HR,2000.00,12/17/2019
"GLOBAL FINISHING SOLUTIONS, LLC",DIRECT PURCHASES,4400.00,2/22/2019
"HADADY MACHINING CO., INC.",DIRECT PURCHASES,1151.00,3/1/2019
"LUMINATOR MASS TRANSIT, LLC",MAINTENANCE & REPAIRS,28000.00,2/28/2019
VERITEXT CHICAGO REPORTING CO.,LEGAL COSTS,405.40,4/26/2019
MARK SOKOLOWSKI MD,ADMINISTRATION & HR,1000.00,5/21/2019
"HERITAGE-CRYSTAL CLEAN, LLC",DIRECT PURCHASES,1600.00,6/14/2019
ASSOCIATION FOR TALENT DEVELOPMENT,GENERAL EXPENSES,399.00,8/21/2019
JUDY M FUEHRMEYER,LEGAL COSTS,150.00,12/17/2019
"ARAMARK UNIFORM SERVICES, INC.",CONTRACTUAL SERVICES,73.28,2/13/2019
CDW GOVERNMENT LLC,DIRECT PURCHASES,3705.20,2/27/2019
"ATLAS FIRST ACCESS MATERIAL HANDLING, INC.",MAINTENANCE & REPAIRS,359.72,3/20/2019
AMERICAN RAILWAY ENGINEERING AND MAINTENANCE OF WAY ASSOCIATION,GENERAL EXPENSES,183.00,5/2/2019
EVANSTON POLICE DEPARTMENT/CITY OF EVANSTON,PURCHASE OF SECURITY SERVICES,15699.89,5/28/2019
FOREST PARK POLICE DEPT.,PURCHASE OF SECURITY SERVICES,2920.66,6/28/2019
"INSPE ASSOCIATES,LTD.",ADMINISTRATION & HR,2304.00,12/18/2019
AGAE / PRO FENCE JOINT VENTURE,MAINTENANCE & REPAIRS,39021.40,2/5/2019
"SAFETY KLEEN SYSTEMS, INC.",MAINTENANCE & REPAIRS,13919.65,2/19/2019
"GREENLINE ENVIRONMENTAL SOLUTIONS, LLC",MAINTENANCE & REPAIRS,14420.00,1/17/2019
"MANSFIELD OIL COMPANY OF GAINESVILLE, INC.",FUEL EXPENSE,185742.28,1/24/2019
INTERTEK USA INC.,CONTRACTUAL SERVICES,1928.00,3/1/2019
"ANCHOR STAFFING, INC.",CONTRACTUAL SERVICES,1955.52,2/5/2019
"SNOW SYSTEMS, INC",MAINTENANCE & REPAIRS,37032.00,2/20/2019
"OER SERVICES, LLC",MAINTENANCE & REPAIRS,1393.00,2/14/2019
COOK COUNTY SHERIFF DEPARTMENT,LEGAL COSTS,80.00,2/21/2019
"MANSFIELD OIL COMPANY OF GAINESVILLE, INC.",FUEL EXPENSE,357739.14,2/28/2019
ADVOCATE COURT REPORTERS LLC,LEGAL COSTS,278.20,3/19/2019
"ARAMARK UNIFORM SERVICES, INC.",GENERAL EXPENSES,120.96,4/12/2019
"ATLAS FIRST ACCESS MATERIAL HANDLING, INC.",MAINTENANCE & REPAIRS,1859.35,4/12/2019
"MANSFIELD OIL COMPANY OF GAINESVILLE, INC.",FUEL EXPENSE,18337.10,4/9/2019
"MCCORKLE LITIGATION SERVICES, INC",LEGAL COSTS,4923.28,4/17/2019
GENUINE PARTS COMPANY (NAPA),DIRECT PURCHASES,31710.61,5/1/2019
"STEVE'S EQUIPMENT SERVICE, INC.",MAINTENANCE & REPAIRS,9732.60,5/29/2019
"ATLAS FIRST ACCESS MATERIAL HANDLING, INC.",MAINTENANCE & REPAIRS,475.30,5/24/2019
GENUINE PARTS COMPANY (NAPA),DIRECT PURCHASES,58721.51,6/21/2019
"ZIPCAR, INC.",EQUIPMENT RENTAL,169.19,6/14/2019
"GREENLINE ENVIRONMENTAL SOLUTIONS, LLC",MAINTENANCE & REPAIRS,10187.00,7/1/2019
CINTAS CORPORATION,CONTRACTUAL SERVICES,21171.04,8/12/2019
"*AGB Investigative Services, Incorporated",PURCHASE OF SECURITY SERVICES,208755.97,8/13/2019
"JONES LANG LaSALLE, INCORPORATED",CONSULTING,5646.45,9/11/2019
"CROWE, LLP",FINANCIAL & TREAS SVCS,20000.00,9/17/2019
"CHICAGO UNITED INDUSTRIES, LTD.",MAINTENANCE & REPAIRS,317.46,11/22/2019
RUSSELL R. ROGERS,CONTRACTUAL SERVICES,11250.00,11/27/2019
ENO TRANSPORTATION FOUNDATION,GENERAL EXPENSES,3500.00,2/25/2019
"WISCO, INC.",MAINTENANCE & REPAIRS,60.30,3/6/2019
"HIGH PSI, LTD.",MAINTENANCE & REPAIRS,938.88,4/23/2019
"ATLAS FIRST ACCESS MATERIAL HANDLING, INC.",MAINTENANCE & REPAIRS,369.75,4/11/2019
EVERGREEN PARK RED LIGHT,GENERAL EXPENSES,100.00,4/16/2019
CITY OF CHICAGO DEPT.OF REVENUE-RED LIGHT,GENERAL EXPENSES,1000.00,4/16/2019
"OER SERVICES, LLC",EQUIPMENT RENTAL,1381.20,5/17/2019
"DMS SEWING, LLC.",GENERAL EXPENSES,1613.00,9/13/2019
CIOX HEALTH,ADMINISTRATION & HR,484.60,9/18/2019
"ATLAS FIRST ACCESS MATERIAL HANDLING, INC.",MAINTENANCE & REPAIRS,1081.28,10/9/2019
"*BOYE JANITORIAL SERVICE, INC.",MAINTENANCE & REPAIRS,18375.00,10/4/2019
ANN S. KENIS,LEGAL COSTS,750.00,10/16/2019
*J.P. SIMONS & COMPANY,DIRECT PURCHASES,5539.36,12/11/2019
"MARK ANDY, INC.",MAINTENANCE & REPAIRS,198.48,11/21/2019
HOLLAND & KNIGHT LLP,LEGAL COSTS,3068.00,12/31/2019
"GREENLINE ENVIRONMENTAL SOLUTIONS, LLC",MAINTENANCE & REPAIRS,2550.00,1/2/2019
"HIGH PSI, LTD.",MAINTENANCE & REPAIRS,1900.18,2/22/2019
"LAW BULLETIN PUBLISHING CO, INC.",FINANCIAL & TREAS SVCS,3000.00,3/6/2019
CORPORATE CONCEPTS INC,MAINTENANCE & REPAIRS,1150.00,4/2/2019
"OCCUPATIONAL HEALTH CENTERS OF THE SOUTHWEST, PA. d/b/a CONCENTRA MEDICAL CENTERS",ADMINISTRATION & HR,31.00,5/3/2019
BLAIDA AND ASSOCIATES LLC,CONTRACTUAL SERVICES,6000.00,7/8/2019
"CAROLYN COX RPR, CRR",LEGAL COSTS,46.75,8/8/2019
"*NSN EMPLOYER SERVICES, INC.",CONTRACTUAL SERVICES,148.14,8/21/2019
"HITACHI RAIL STS USA, INC.",DIRECT PURCHASES,739.76,10/8/2019
GENUINE PARTS COMPANY (NAPA),ADVERTISING & PROMOTION,86.62,12/6/2019
EHC CANADA INC. d/b/a EHC GLOBAL,DIRECT PURCHASES,1431.26,2/14/2019
COOK COUNTY SHERIFF DEPARTMENT,LEGAL COSTS,40.00,3/12/2019
"*ANDERSON & SHAH ROOFING, INC.",MAINTENANCE & REPAIRS,2780.68,4/10/2019
"COMET MESSENGER SERVICE, INC.",CONTRACTUAL SERVICES,173.46,5/23/2019
COMMONWEALTH EDISON.,UTILITIES EXPENSE,261463.90,7/9/2019
JOHNSON PIPE & SUPPLY CO.,DIRECT PURCHASES,2001.06,8/23/2019
PETER R. MEYERS,LEGAL COSTS,4407.93,9/25/2019
"QUANTUM CROSSINGS, LLC",FINANCIAL & TREAS SVCS,494332.80,10/29/2019
TOMPKINS PRINTING EQUIPMENT CO.,MAINTENANCE & REPAIRS,1046.09,12/6/2019
IBM CORPORATION,MAINTENANCE & REPAIRS,35580.29,12/10/2019
"COMCAST OF CHICAGO, IL",EQUIPMENT RENTAL,41.59,12/27/2019
"AT&T MOBILITY NATIONAL ACCOUNTS, LLC",UTILITIES EXPENSE,79836.70,10/3/2019
"AT&T MOBILITY NATIONAL ACCOUNTS, LLC",UTILITIES EXPENSE,505.58,11/21/2019
AT & T CORP,UTILITIES EXPENSE,913.20,11/5/2019
COOK COUNTY SHERIFF DEPARTMENT,LEGAL COSTS,40.00,11/12/2019
XEROX CORPORATION /XEROX CTR,MAINTENANCE & REPAIRS,30593.69,11/22/2019
JOHNSON PIPE & SUPPLY CO.,DIRECT PURCHASES,35.66,3/5/2019
*M. WELLS PRINTING COMPANY,GENERAL EXPENSES,398.00,4/24/2019
"COMET MESSENGER SERVICE, INC.",CONTRACTUAL SERVICES,39.00,6/7/2019
ACCOUNTEMPS/DIV. ROBERT HALF,LEGAL COSTS,18589.50,7/1/2019
"CRANE 1 SERVICES, INC.",MAINTENANCE & REPAIRS,442.49,8/9/2019
MARCELIN VASQUEZ,CREDITS,20.00,8/16/2019
VILLAGE OF FOREST PARK (WATER ACCOUNT),UTILITIES EXPENSE,1996.92,12/6/2019
JOHNSON PIPE & SUPPLY CO.,DIRECT PURCHASES,7201.13,2/27/2019
"COY PUGH AND ASSOCIATES, LLC",CONTRACTUAL SERVICES,6000.00,6/24/2019
"CROWE, LLP",FINANCIAL & TREAS SVCS,22374.00,7/9/2019
"OER SERVICES, LLC",MAINTENANCE & REPAIRS,588.00,9/18/2019
CUMMINS INC.,MAINTENANCE & REPAIRS,1150.00,3/19/2019
EVERGREEN PARK RED LIGHT,GENERAL EXPENSES,100.00,4/2/2019
PEOPLES GAS,UTILITIES EXPENSE,18500.70,5/9/2019
AMERICAN TOWERS LLC,EQUIPMENT RENTAL,4362.31,8/16/2019
"MANSFIELD OIL COMPANY OF GAINESVILLE, INC.",FUEL EXPENSE,378736.76,1/28/2019
EVANSTON POLICE DEPARTMENT/CITY OF EVANSTON,PURCHASE OF SECURITY SERVICES,17290.12,2/5/2019
"WISCO, INC.",DIRECT PURCHASES,341.55,2/14/2019
"THE MCS GROUP, INC.",ADMINISTRATION & HR,5415.67,2/20/2019
GENUINE PARTS COMPANY (NAPA),MAINTENANCE & REPAIRS,693.16,3/22/2019
"ACTION K-9 SECURITY, INC.",PURCHASE OF SECURITY SERVICES,544274.27,3/14/2019
MID-WEST SIGN SUPPLY CO,MAINTENANCE & REPAIRS,3634.65,3/21/2019
"PREMIER STAFFING SOURCE, INC.",GENERAL EXPENSES,7888.08,4/2/2019
GENUINE PARTS COMPANY (NAPA),DIRECT PURCHASES,10853.85,6/26/2019
JOENE HANHARDT,LEGAL COSTS,38.15,8/6/2019
GENUINE PARTS COMPANY (NAPA),DIRECT PURCHASES,26517.54,8/29/2019
"PROTANIC, INC.",MAINTENANCE & REPAIRS,22533.20,9/12/2019
"HASTINGS AIR-ENERGY CONTROL,INC.",DIRECT PURCHASES,4497.20,10/11/2019
ORAL AND MAXILLOFACIAL SURGERY OF CHICAGO,ADMINISTRATION & HR,650.00,11/12/2019
"SPRINT SOLUTIONS, INC.",UTILITIES EXPENSE,72202.17,11/19/2019
"MANSFIELD OIL COMPANY OF GAINESVILLE, INC.",FUEL EXPENSE,374583.38,11/26/2019
*J.P. SIMONS & COMPANY,DIRECT PURCHASES,12915.53,12/19/2019
CALIBER PACKAGING LLC,MAINTENANCE & REPAIRS,460.00,12/10/2019
AMERICAN CENTER FOR SPINE & NEUROSURGERY LLC,ADMINISTRATION & HR,750.00,12/17/2019
"HIGH PSI, LTD.",MAINTENANCE & REPAIRS,1190.56,1/25/2019
"HERITAGE-CRYSTAL CLEAN, LLC",DIRECT PURCHASES,1920.00,2/8/2019
XEROX CORPORATION /XEROX CTR,MAINTENANCE & REPAIRS,30616.12,2/22/2019
89TH ST PROPERTIES LLC,FACILITY RENTAL,568.72,2/15/2019
METROPOLITAN WATER RECLAMATION..,UTILITIES EXPENSE,14844.54,2/22/2019
CUMMINS INC.,MAINTENANCE & REPAIRS,1740.43,3/22/2019
"CANON BUSINESS SOLUTIONS, INC.",MAINTENANCE & REPAIRS,8287.13,4/15/2019
*L.A. REPORTING........,LEGAL COSTS,233.70,4/3/2019
"QUEST DIAGNOSTICS, INC,",ADMINISTRATION & HR,137301.30,6/26/2019
GENUINE PARTS COMPANY (NAPA),GENERAL EXPENSES,106.50,8/1/2019
*GRISKO LLC (PREVIOUSLY CAROLYN GRISKO & ASSOCIATES),CONSULTING,2070.30,11/5/2019
"MENARD INDUSTRIES, LLC, d/b/a MENARD'S RAILROAD MATERIALS",CONTRACTUAL SERVICES,1583.20,12/20/2019
CITY OF CHICAGO DEPT.OF REVENUE-RED LIGHT,GENERAL EXPENSES,400.00,1/16/2019
STANDARD EQUIPMENT COMPANY,DIRECT PURCHASES,7049.12,2/21/2019
"*FIRECO, INC.",MAINTENANCE & REPAIRS,7980.00,3/26/2019
GENUINE PARTS COMPANY (NAPA),GENERAL EXPENSES,159.95,3/22/2019
"*MOTR GRAFX, LLC",ADVERTISING & PROMOTION,1836.00,5/7/2019
"WISCO, INC.",DIRECT PURCHASES,15.00,6/4/2019
SAFETY VISION LLC,FINANCIAL & TREAS SVCS,26085.00,7/16/2019
"GMI, LLC",DIRECT PURCHASES,43700.00,1/17/2019
JOHNSON PIPE & SUPPLY CO.,DIRECT PURCHASES,1350.44,2/5/2019
ILLINOIS SECRETARY OF STATE,GENERAL EXPENSES,50.00,3/21/2019
EHC CANADA INC. d/b/a EHC GLOBAL,DIRECT PURCHASES,3700.00,4/26/2019
ARC IMAGING RESOURCES,MAINTENANCE & REPAIRS,59.76,6/14/2019
GENUINE PARTS COMPANY (NAPA),GENERAL EXPENSES,3950.00,7/5/2019
CONSTANT CONTACT INC,CONSULTING,4662.00,8/28/2019
"GENFARE, A DIVISION OF SPX CORPORATION",DIRECT PURCHASES,27234.00,9/27/2019
CUMMINS INC.,MAINTENANCE & REPAIRS,2337.95,10/30/2019
TRANSPORTATION SAFETY INSTITUTE,TRAVEL & MEETING EXPENSE,720.00,10/16/2019
AGAE / PRO FENCE JOINT VENTURE,MAINTENANCE & REPAIRS,21940.80,1/2/2019
PACER SERVICE CENTER,GENERAL EXPENSES,283.50,4/16/2019
"MCCORKLE LITIGATION SERVICES, INC",LEGAL COSTS,1204.23,5/10/2019
JOHNSON CONTROLS FIRE PROTECTION LP,MAINTENANCE & REPAIRS,599.00,8/1/2019
DYNEGY ENERGY SERVICES,UTILITIES EXPENSE,344278.43,8/30/2019
GREENBERG TRAURIG LLP,LEGAL COSTS,3982.50,8/2/2019
G & O THERMAL SUPPLY COMPANY,DIRECT PURCHASES,1765.12,9/20/2019
CORPORATE CONCEPTS INC,MAINTENANCE & REPAIRS,430.00,11/5/2019
COURTYARD BY MARRIOT,TRAVEL & MEETING EXPENSE,696.14,11/26/2019
"OER SERVICES, LLC",MAINTENANCE & REPAIRS,2072.00,12/19/2019
LEXITAS,LEGAL COSTS,228.55,12/17/2019
ROSEMONT PUBLIC WORKS,UTILITIES EXPENSE,15.31,2/22/2019
LEXIS NEXIS CO.,CONTRACTUAL SERVICES,5458.33,2/28/2019
*M. WELLS PRINTING COMPANY,ADVERTISING & PROMOTION,48995.00,3/25/2019
"*MOTR GRAFX, LLC",GENERAL EXPENSES,1588.00,5/2/2019
COMMONWEALTH EDISON.,UTILITIES EXPENSE,364572.74,5/14/2019
"SVANACO, INC.",CONTRACTUAL SERVICES,2695.00,6/11/2019
ALOHA PRINT GROUP,LEGAL COSTS,265.15,7/23/2019
INDEED INC,ADVERTISING & PROMOTION,2400.00,7/30/2019
"PROTANIC, INC.",MAINTENANCE & REPAIRS,160.00,8/6/2019
ILLINOIS SECRETARY OF STATE,GENERAL EXPENSES,50.00,8/27/2019
"INTERSTATE POWER SYSTEMS, INC.",MAINTENANCE & REPAIRS,659.77,10/22/2019
"THOMPSON COBURN, LLC",LEGAL COSTS,105114.50,11/8/2019
WOLTERS KLUWER LAW & BUSINESS,GENERAL EXPENSES,619.80,11/21/2019
"OER SERVICES, LLC",EQUIPMENT RENTAL,644.00,11/22/2019
COMMUNICATIONS SUPPLY CORP.,DIRECT PURCHASES,8068.75,12/13/2019
"CUBIC TRANSPORTATION SYSTEMS, INC.",DIRECT PURCHASES,158939.53,3/15/2019
"U.S. LEGAL SUPPORT, INCORPORATED",LEGAL COSTS,439.30,2/22/2019
"ARAMARK UNIFORM SERVICES, INC.",CONTRACTUAL SERVICES,71.85,3/13/2019
"STANTON MECHANICAL, INC.",MAINTENANCE & REPAIRS,725.38,3/5/2019
"DEVELOPMENT DIMENSIONS INTERNATIONAL, INC",CONTRACTUAL SERVICES,64.30,3/14/2019
CHAPMAN AND CUTLER,LEGAL COSTS,7000.00,3/27/2019
"WAREHOUSE DIRECT, INC.",MAINTENANCE & REPAIRS,144.14,4/10/2019
NIKKI HALE CONSULTING INC,CONTRACTUAL SERVICES,345.00,5/24/2019
"WEST PUBLISHING CORPORATION d/b/a THOMSON WEST, WEST GROUP OR WEST",FINANCIAL & TREAS SVCS,6540.96,10/8/2019
JACKSON LEWIS PC,LEGAL COSTS,3528.00,10/31/2019
MR. B'S INC. - d/b/a BIAGIO'S SUPAROSSA,TRAVEL & MEETING EXPENSE,27562.00,11/19/2019
COOK COUNTY SHERIFF DEPARTMENT,LEGAL COSTS,40.00,5/10/2019
CIOX HEALTH,ADMINISTRATION & HR,39.37,9/3/2019
LATPRO INC,ADVERTISING & PROMOTION,10000.00,11/26/2019
CENTER OF BRAIN AND SPINE SURGERY,ADMINISTRATION & HR,3000.00,12/17/2019
"MCCORKLE LITIGATION SERVICES, INC",LEGAL COSTS,2829.84,1/9/2019
GENUINE PARTS COMPANY (NAPA),DIRECT PURCHASES,8610.09,1/24/2019
CLAREMONT LLC,CONTRACTUAL SERVICES,1110.00,1/17/2019
GENUINE PARTS COMPANY (NAPA),DIRECT PURCHASES,34252.31,1/29/2019
GENUINE PARTS COMPANY (NAPA),DIRECT PURCHASES,4237.33,2/21/2019
AMERICAN TOWERS LLC,EQUIPMENT RENTAL,8597.56,2/19/2019
"ATLAS FIRST ACCESS MATERIAL HANDLING, INC.",MAINTENANCE & REPAIRS,449.36,3/21/2019
XEROX CORPORATION /XEROX CTR,MAINTENANCE & REPAIRS,30308.18,3/27/2019
"BHFX, LLC",MAINTENANCE & REPAIRS,617.50,4/9/2019
"CUBIC TRANSPORTATION SYSTEMS, INC.",TRAVEL & MEETING EXPENSE,11496.00,4/15/2019
GENUINE PARTS COMPANY (NAPA),DIRECT PURCHASES,30183.45,6/20/2019
"HERITAGE-CRYSTAL CLEAN, LLC",DIRECT PURCHASES,1600.00,6/21/2019
IEEE OPERATIONS CENTER,GENERAL EXPENSES,176.00,6/18/2019
LightSpeed Technologies,DIRECT PURCHASES,1883.98,6/20/2019
ANITA M. ROWE,LEGAL COSTS,600.00,6/21/2019
"HERITAGE-CRYSTAL CLEAN, LLC",DIRECT PURCHASES,3200.00,7/26/2019
"CANON BUSINESS SOLUTIONS, INC.",MAINTENANCE & REPAIRS,8725.35,8/9/2019
"MANSFIELD OIL COMPANY OF GAINESVILLE, INC.",FUEL EXPENSE,461789.87,8/9/2019
*J.P. SIMONS & COMPANY,DIRECT PURCHASES,13800.24,8/27/2019
"Pest Management Services, Inc.",MAINTENANCE & REPAIRS,1350.00,8/13/2019
"ATLAS FIRST ACCESS MATERIAL HANDLING, INC.",MAINTENANCE & REPAIRS,7397.00,8/28/2019
"DYNAMIC LIFECYCLE INNOVATIONS, INC.",MAINTENANCE & REPAIRS,4460.46,9/11/2019
NATIONAL SAFETY COUNCIL,TRAVEL & MEETING EXPENSE,395.00,9/5/2019
"GREENLINE ENVIRONMENTAL SOLUTIONS, LLC",MAINTENANCE & REPAIRS,3060.00,9/18/2019
GENUINE PARTS COMPANY (NAPA),DIRECT PURCHASES,18294.74,10/4/2019
JOHNSON PIPE & SUPPLY CO.,DIRECT PURCHASES,431.65,9/27/2019
SERVICE SANITATION INC,MAINTENANCE & REPAIRS,21417.67,10/28/2019
"THE MCS GROUP, INC.",ADMINISTRATION & HR,401.82,10/23/2019
GRANT LAW LLC,LEGAL COSTS,7420.70,10/31/2019
"WISCO, INC.",MAINTENANCE & REPAIRS,1457.52,11/5/2019
CITY OF CHICAGO DEPT.OF REVENUE-RED LIGHT,GENERAL EXPENSES,300.00,11/15/2019
"MCCORKLE LITIGATION SERVICES, INC",LEGAL COSTS,4097.74,11/20/2019
"WISCO, INC.",MAINTENANCE & REPAIRS,1219.75,12/26/2019
"VERITEXT, LLC",LEGAL COSTS,6339.00,12/24/2019
"PROTANIC, INC.",MAINTENANCE & REPAIRS,6050.00,12/30/2019
"CONSTELLATION NEW ENERGY GAS DIVISION, LLC",UTILITIES EXPENSE,89669.92,1/8/2019
PEOPLES GAS,UTILITIES EXPENSE,150333.90,2/7/2019
GENUINE PARTS COMPANY (NAPA),GENERAL EXPENSES,575.98,2/12/2019
T.L.C. JANITORIAL & MAINTENANCE SERVICES,MAINTENANCE & REPAIRS,1915.00,3/13/2019
CUMMINS INC.,MAINTENANCE & REPAIRS,2462.84,3/27/2019
"THE MCS GROUP, INC.",ADMINISTRATION & HR,409.54,4/17/2019
Dunbar Security Products,GENERAL EXPENSES,1710.00,6/6/2019
"WEST PUBLISHING CORPORATION d/b/a THOMSON WEST, WEST GROUP OR WEST",FINANCIAL & TREAS SVCS,6587.00,5/29/2019
ILA ENGLOF M.D.,ADMINISTRATION & HR,600.00,6/11/2019
ARC IMAGING RESOURCES,MAINTENANCE & REPAIRS,173.88,9/13/2019
"WISCO, INC.",DIRECT PURCHASES,156.61,9/26/2019
CUMMINS INC.,MAINTENANCE & REPAIRS,266.86,9/25/2019
TOMPKINS PRINTING EQUIPMENT CO.,MAINTENANCE & REPAIRS,1046.09,11/13/2019
GENUINE PARTS COMPANY (NAPA),MATERIAL LOAD/ADJ,6566.40,11/21/2019
LORCHEM TECHNOLOGIES INC,MAINTENANCE & REPAIRS,601.07,12/3/2019
REGIONAL TRANSPORTATION AUTHORITY,TECHNOLOGY SERVICES,19141.44,11/27/2019
CITY OF CHICAGO-DEPT OF FLEET AND FACILITY  MGMT,MAINTENANCE & REPAIRS,197803.03,1/24/2019
"ESRI, INC.",MAINTENANCE & REPAIRS,23100.00,1/17/2019
"AMAZON WEB SERVICES, INC.",CONTRACTUAL SERVICES,549.20,2/1/2019
ALLIANT INSURANCE SERVICES (DRIVER ALLIANT),CONTRACTUAL SERVICES,113.00,3/6/2019
"MANSFIELD OIL COMPANY OF GAINESVILLE, INC.",FUEL EXPENSE,14512.44,3/12/2019
ILLINOIS STATE FIRE MARSHALL,GENERAL EXPENSES,825.00,4/2/2019
CORPORATE CONCEPTS INC,MAINTENANCE & REPAIRS,2261.00,4/4/2019
COOK COUNTY SHERIFF DEPARTMENT,LEGAL COSTS,40.00,4/23/2019
"COMET MESSENGER SERVICE, INC.",CONTRACTUAL SERVICES,71.41,5/3/2019
SCHINDLER ELEVATOR CORP.,DIRECT PURCHASES,3760.00,7/30/2019
CUMMINS INC.,MAINTENANCE & REPAIRS,698.71,6/12/2019
"Pest Management Services, Inc.",MAINTENANCE & REPAIRS,5396.85,6/18/2019
LORCHEM TECHNOLOGIES INC,MAINTENANCE & REPAIRS,696.41,8/7/2019
"AUTOMATIC MECHANICAL SERVICES, INC, d/b/a CONTROL ENGINEERING CORP.",MAINTENANCE & REPAIRS,5391.00,8/23/2019
*J.P. SIMONS & COMPANY,DIRECT PURCHASES,845.30,12/24/2019
PEOPLES GAS,UTILITIES EXPENSE,25820.53,11/27/2019
COOK COUNTY SHERIFF DEPARTMENT,LEGAL COSTS,40.00,1/29/2019
*GRISKO LLC (PREVIOUSLY CAROLYN GRISKO & ASSOCIATES),CONSULTING,7201.04,4/16/2019
COOK COUNTY SHERIFF DEPARTMENT,LEGAL COSTS,40.00,6/19/2019
"*ALLPOINTS SECURITY AND DETECTIVE, INC.",PURCHASE OF SECURITY SERVICES,22323.50,9/27/2019
"STANTON MECHANICAL, INC.",MAINTENANCE & REPAIRS,2998.00,10/17/2019
SIEBERT & ASSOCIATES,LEGAL COSTS,406.00,10/16/2019
"STEVE'S EQUIPMENT SERVICE, INC.",MAINTENANCE & REPAIRS,7187.13,12/16/2019
GENUINE PARTS COMPANY (NAPA),CONSULTING,146287.28,2/13/2019
EHC CANADA INC. d/b/a EHC GLOBAL,DIRECT PURCHASES,1945.00,3/26/2019
"BARLOW MECHANICAL SALES, INC.",DIRECT PURCHASES,2470.00,5/9/2019
AMERICAN PUBLIC TRANSPORTATION ASSOCIATION,TRAVEL & MEETING EXPENSE,553.65,4/19/2019
TAFT STETTINIUS & HOLLISTER LLP,CONTRACTUAL SERVICES,7.63,7/10/2019
CALIBER PACKAGING LLC,MAINTENANCE & REPAIRS,60.00,6/26/2019
"MCCORKLE LITIGATION SERVICES, INC",LEGAL COSTS,380.78,8/26/2019
MICHAEL BEST & FRIEDRICH-CHGO,LEGAL COSTS,41862.50,11/1/2019
ROSEMONT PUBLIC WORKS,UTILITIES EXPENSE,13.59,12/24/2019
AMERICAN PUBLIC TRANSPORTATION ASSOCIATION,TRAVEL & MEETING EXPENSE,325.00,3/29/2019
SPRING HILL SUITES,TRAVEL & MEETING EXPENSE,899.56,4/3/2019
COOK COUNTY SHERIFF DEPARTMENT,LEGAL COSTS,40.00,4/9/2019
VILLAGE OF RIVER GROVE,UTILITIES EXPENSE,59.10,5/24/2019
"JONES LANG LaSALLE, INCORPORATED",CONSULTING,10867.44,8/21/2019
G & O THERMAL SUPPLY COMPANY,MAINTENANCE & REPAIRS,69.75,10/2/2019
ASME INTERNATIONAL,GENERAL EXPENSES,158.00,9/17/2019
 CITY OF CHICAGO,LEGAL COSTS,21.00,2/22/2019
TRISTAN & CERVANTES LLC,LEGAL COSTS,1333.00,3/27/2019
"*THE BLUEPRINT SHOPPE, INC.",MAINTENANCE & REPAIRS,231.27,5/21/2019
"*D B STERLIN CONSULTANTS, INC.",LEGAL COSTS,19370.00,6/11/2019
POHLMAN REPORTING COMPANY LLC,LEGAL COSTS,473.90,9/18/2019
VILLAGE OF OAK PARK -1,PURCHASE OF SECURITY SERVICES,8610.14,11/25/2019
"NORDCO, INC.",DIRECT PURCHASES,1145.14,2/5/2019
"WISCO, INC.",MAINTENANCE & REPAIRS,38.10,2/6/2019
METROPOLITAN WATER RECLAMATION..,UTILITIES EXPENSE,2570.68,5/23/2019
"STANTON MECHANICAL, INC.",MAINTENANCE & REPAIRS,6485.00,5/20/2019
CUMMINS INC.,MAINTENANCE & REPAIRS,489.23,7/12/2019
UNITED PARCEL SERVICE,GENERAL EXPENSES,23.46,2/1/2019
JOHNSON PIPE & SUPPLY CO.,DIRECT PURCHASES,4699.12,4/1/2019
GENUINE PARTS COMPANY (NAPA),DIRECT PURCHASES,2599.80,4/24/2019
GENUINE PARTS COMPANY (NAPA),MAINTENANCE & REPAIRS,3154.56,5/16/2019
PEOPLES GAS,UTILITIES EXPENSE,143679.45,6/13/2019
"SAFETY KLEEN SYSTEMS, INC.",MAINTENANCE & REPAIRS,978.22,6/13/2019
"MCCORKLE LITIGATION SERVICES, INC",LEGAL COSTS,6497.96,6/26/2019
GENUINE PARTS COMPANY (NAPA),DIRECT PURCHASES,63396.05,7/26/2019
"MCCORKLE LITIGATION SERVICES, INC",GENERAL EXPENSES,270.86,7/12/2019
"ATLAS FIRST ACCESS MATERIAL HANDLING, INC.",MAINTENANCE & REPAIRS,1562.56,8/16/2019
"Alstom Signaling Inc., d/b/a Alstom Signaling Operation, LLC.",DIRECT PURCHASES,52323.70,11/18/2019
"SAFETY KLEEN SYSTEMS, INC.",MAINTENANCE & REPAIRS,20685.10,9/6/2019
"GREENLINE ENVIRONMENTAL SOLUTIONS, LLC",MAINTENANCE & REPAIRS,2971.00,9/11/2019
CITY OF CHGO.-ENTERPRISE FUNDS,UTILITIES EXPENSE,8150.60,9/5/2019
"WORLD FUEL SERVICES, INC.",DIRECT PURCHASES,84328.29,10/11/2019
"ATLAS FIRST ACCESS MATERIAL HANDLING, INC.",MAINTENANCE & REPAIRS,2179.45,10/25/2019
"WEST PUBLISHING CORPORATION d/b/a THOMSON WEST, WEST GROUP OR WEST",FINANCIAL & TREAS SVCS,9986.27,10/29/2019
CITY OF CHICAGO DEPT.OF REVENUE-RED LIGHT,GENERAL EXPENSES,135.00,10/31/2019
ANDERSON ELEVATOR CO.,MAINTENANCE & REPAIRS,28400.00,10/31/2019
"MANSFIELD OIL COMPANY OF GAINESVILLE, INC.",FUEL EXPENSE,297343.97,11/4/2019
*INSPIRED CATERING & EVENTS,GENERAL EXPENSES,1359.25,11/19/2019
"ARAMARK UNIFORM SERVICES, INC.",CONTRACTUAL SERVICES,106.99,12/11/2019
GENUINE PARTS COMPANY (NAPA),DIRECT PURCHASES,17023.06,12/19/2019
LANGUAGE SERVICES ASSOCIATES,CONTRACTUAL SERVICES,115.92,12/26/2019
"MCCORKLE LITIGATION SERVICES, INC",LEGAL COSTS,2942.59,12/24/2019
MID-WEST SIGN SUPPLY CO,MAINTENANCE & REPAIRS,621.24,1/16/2019
JOHNSON PIPE & SUPPLY CO.,DIRECT PURCHASES,1415.30,3/6/2019
"Legalink, Inc. d/b/a Epiq Court Reporting",GENERAL EXPENSES,214.10,3/22/2019
GENUINE PARTS COMPANY (NAPA),MAINTENANCE & REPAIRS,3452.15,4/12/2019
CITY OF CHICAGO-DEPT OF FLEET AND FACILITY  MGMT,MAINTENANCE & REPAIRS,133406.14,4/12/2019
SECRETARY OF STATE,LEGAL COSTS,5.00,4/23/2019
"ZIPCAR, INC.",EQUIPMENT RENTAL,1105.00,5/29/2019
*J.P. SIMONS & COMPANY,DIRECT PURCHASES,3572.67,8/6/2019
CAIRS,GENERAL EXPENSES,561.00,7/16/2019
PITNEY BOWES GLOBAL MAILING SYSTEMS,MAINTENANCE & REPAIRS,427.95,8/14/2019
"OER SERVICES, LLC",MAINTENANCE & REPAIRS,7168.00,8/23/2019
"ELEMENT MATERIALS TECHNOLOGY NEW BERLIN, INC.",CONSULTING,4150.00,9/10/2019
CITY OF CHICAGO-DEPT OF FLEET AND FACILITY  MGMT,DIRECT PURCHASES,16448.56,10/16/2019
CITY OF CHICAGO-DEPT OF WATER,UTILITIES EXPENSE,11150.96,10/16/2019
CENTER OF BRAIN & SPINE SURGERY,ADMINISTRATION & HR,450.00,2/21/2019
"*MIDWAY OVERHEAD DOOR, INC.",MAINTENANCE & REPAIRS,31944.40,3/26/2019
GRANT LAW LLC,LEGAL COSTS,15938.48,3/26/2019
ENTERPRISE FLEET SERVICES,EQUIPMENT RENTAL,122234.03,7/3/2019
"AT&T MOBILITY NATIONAL ACCOUNTS, LLC",UTILITIES EXPENSE,1011.16,6/19/2019
ACCOUNTING PRINCIPALS INC,CONTRACTUAL SERVICES,1002.64,8/9/2019
TAB SERVICE COMPANY,CONTRACTUAL SERVICES,835.57,8/27/2019
HAPPY HANDS CLEANING SERVICE LLC,MAINTENANCE & REPAIRS,1666.67,9/30/2019
GENUINE PARTS COMPANY (NAPA),MAINTENANCE & REPAIRS,7062.20,10/4/2019
DYNEGY ENERGY SERVICES,UTILITIES EXPENSE,368421.75,10/4/2019
SASSI INSTITUTE,GENERAL EXPENSES,205.00,10/30/2019
"OFFICE DEPOT, INCORPORATED",DIRECT PURCHASES,440.23,11/27/2019
"PROTANIC, INC.",MAINTENANCE & REPAIRS,1667.00,1/4/2019
"U.S. LEGAL SUPPORT, INCORPORATED",LEGAL COSTS,65.45,3/21/2019
"JONES LANG LaSALLE, INCORPORATED",MAINTENANCE & REPAIRS,401241.30,3/21/2019
"BOARD OF EDUCATION, CITY OF CHICAGO",FACILITY RENTAL,125.00,3/25/2019
"COMET MESSENGER SERVICE, INC.",CONTRACTUAL SERVICES,19.50,4/2/2019
"GARDA CL GREAT LAKES, INC.",FINANCIAL & TREAS SVCS,1422.15,4/24/2019
BLOOMBERG FINANCE L.P.,CONTRACTUAL SERVICES,6870.00,5/1/2019
"LUMINATOR MASS TRANSIT, LLC",MAINTENANCE & REPAIRS,30625.00,6/27/2019
"CHICAGO SUN-TIMES, INCORPORATED dba Sun-Times Media Productions, LLC",GENERAL EXPENSES,416.00,7/18/2019
PNC BANK,GENERAL EXPENSES,935.99,10/17/2019
LINUS H EMA M.D.,ADMINISTRATION & HR,750.00,10/18/2019
EVERGREEN PARK RED LIGHT,GENERAL EXPENSES,100.00,10/18/2019
"COMET MESSENGER SERVICE, INC.",CONTRACTUAL SERVICES,6.50,10/31/2019
*INSPIRED CATERING & EVENTS,GENERAL EXPENSES,397.00,11/7/2019
"WISCO, INC.",DIRECT PURCHASES,15.50,4/9/2019
"COMCAST OF CHICAGO, IL",EQUIPMENT RENTAL,206.54,5/7/2019
"GENFARE, A DIVISION OF SPX CORPORATION",DIRECT PURCHASES,1785.70,6/21/2019
CDW GOVERNMENT LLC,TECHNOLOGY SERVICES,1482.26,5/30/2019
UNIVERSITY OF ILLINOIS (UIC),CONTRACTUAL SERVICES,1000.00,6/21/2019
*SHAMROCK CATERING INC.,GENERAL EXPENSES,1005.50,8/23/2019
ILLINOIS SECRETARY OF STATE,GENERAL EXPENSES,50.00,8/27/2019
THE EDGE THEATER,TRAVEL & MEETING EXPENSE,1132.50,9/12/2019
"INDUSTRIAL ENGINE SERVICE, INC.",DIRECT PURCHASES,1372.40,1/22/2019
PNC BANK,LEGAL COSTS,30.87,7/16/2019
"GENFARE, A DIVISION OF SPX CORPORATION",MAINTENANCE & REPAIRS,29916.72,9/24/2019
"MANSFIELD OIL COMPANY OF GAINESVILLE, INC.",FUEL EXPENSE,17991.12,10/15/2019
COMPUTER AID INC,TECHNOLOGY SERVICES,23092.00,12/13/2019
CORPORATE CLEANING SERVICES,MAINTENANCE & REPAIRS,59060.00,4/29/2019
G & O THERMAL SUPPLY COMPANY,DIRECT PURCHASES,706.92,5/17/2019
"VERIZON WIRELESS, INC.",UTILITIES EXPENSE,206907.49,9/12/2019
EVANSTON POLICE DEPARTMENT/CITY OF EVANSTON,PURCHASE OF SECURITY SERVICES,17203.38,9/20/2019
ACCOUNTEMPS/DIV. ROBERT HALF,LEGAL COSTS,1248.00,10/1/2019
"BUCHANAN REPORTING, INC",LEGAL COSTS,70.00,11/27/2019
SPECIALTY'S CAFE & BAKERY,TRAVEL & MEETING EXPENSE,135.99,11/19/2019
SCCE,TRAVEL & MEETING EXPENSE,270.00,4/9/2019
POSTAL PARTNERS,GENERAL EXPENSES,74.08,6/18/2019
"AT&T MOBILITY NATIONAL ACCOUNTS, LLC",UTILITIES EXPENSE,505.58,7/23/2019
PEOPLES GAS,UTILITIES EXPENSE,12801.59,12/26/2019
"ATLAS FIRST ACCESS MATERIAL HANDLING, INC.",MAINTENANCE & REPAIRS,17536.50,1/15/2019
CITY OF CHICAGO DEPT.OF REVENUE-RED LIGHT,GENERAL EXPENSES,200.00,1/25/2019
GENUINE PARTS COMPANY (NAPA),GENERAL EXPENSES,62.35,3/15/2019
G & O THERMAL SUPPLY COMPANY,DIRECT PURCHASES,1161.10,4/15/2019
BUILDERS CHICAGO CORPORATION,MAINTENANCE & REPAIRS,602.00,3/29/2019
ENTERPRISE FLEET SERVICES,EQUIPMENT RENTAL,105036.77,4/30/2019
GENUINE PARTS COMPANY (NAPA),DIRECT PURCHASES,59998.29,5/24/2019
ALAN J COOK,LEGAL COSTS,600.00,5/3/2019
BUILDERS CHICAGO CORPORATION,MAINTENANCE & REPAIRS,5835.50,6/19/2019
"ATLAS FIRST ACCESS MATERIAL HANDLING, INC.",MAINTENANCE & REPAIRS,2346.97,6/19/2019
"MANSFIELD OIL COMPANY OF GAINESVILLE, INC.",FUEL EXPENSE,517807.42,6/14/2019
"MANSFIELD OIL COMPANY OF GAINESVILLE, INC.",FUEL EXPENSE,575633.19,6/11/2019
"AMAZON WEB SERVICES, INC.",CONTRACTUAL SERVICES,798.16,8/1/2019
GENUINE PARTS COMPANY (NAPA),DIRECT PURCHASES,9388.42,8/14/2019
REVERE ELECTRIC SUPPLY COMPANY,MAINTENANCE & REPAIRS,183.38,9/20/2019
"MANSFIELD OIL COMPANY OF GAINESVILLE, INC.",FUEL EXPENSE,763132.03,8/23/2019
"CAPRICORN COMMUNICATIONS, LLC",CONTRACTUAL SERVICES,6000.00,10/4/2019
GENUINE PARTS COMPANY (NAPA),DIRECT PURCHASES,13533.11,10/9/2019
TAB SERVICE COMPANY,GENERAL EXPENSES,7943.49,10/3/2019
VILLAGE OF WILMETTE,UTILITIES EXPENSE,57.25,10/8/2019
CAMERON BLOUNT,LEGAL COSTS,75.00,11/12/2019
JOHNSON CONTROLS FIRE PROTECTION LP,MAINTENANCE & REPAIRS,27.75,11/21/2019
SCARABAEUS LLC,CONTRACTUAL SERVICES,12000.00,12/5/2019
GENUINE PARTS COMPANY (NAPA),DIRECT PURCHASES,8035.15,12/17/2019
AMALGAMATED BANK OF CHICAGO,FINANCIAL & TREAS SVCS,719.98,1/10/2019
GENUINE PARTS COMPANY (NAPA),DIRECT PURCHASES,17669.41,2/14/2019
UNITED PARCEL SERVICE,GENERAL EXPENSES,655.49,1/31/2019
CITY OF EVANSTON,UTILITIES EXPENSE,2267.47,2/22/2019
"GREENLINE ENVIRONMENTAL SOLUTIONS, LLC",MAINTENANCE & REPAIRS,3185.00,4/18/2019
COOK COUNTY GOVERNMENT,ADMINISTRATION & HR,375.00,4/24/2019
"ARAMARK UNIFORM SERVICES, INC.",CONTRACTUAL SERVICES,71.85,6/5/2019
"*BOYE JANITORIAL SERVICE, INC.",MAINTENANCE & REPAIRS,18375.00,6/25/2019
"OCCUPATIONAL HEALTH CENTERS OF THE SOUTHWEST, PA. d/b/a CONCENTRA MEDICAL CENTERS",ADMINISTRATION & HR,62379.00,6/28/2019
NCSEA,GENERAL EXPENSES,49.00,8/9/2019
*J.P. SIMONS & COMPANY,DIRECT PURCHASES,3376.30,9/24/2019
GENUINE PARTS COMPANY (NAPA),DIRECT PURCHASES,5776.25,9/25/2019
"THE MCS GROUP, INC.",ADMINISTRATION & HR,2076.90,10/1/2019
JOHNSON PIPE & SUPPLY CO.,DIRECT PURCHASES,4658.12,12/20/2019
ACCOUNTING PRINCIPALS INC,CONTRACTUAL SERVICES,637.44,12/13/2019
GENUINE PARTS COMPANY (NAPA),MAINTENANCE & REPAIRS,3237.25,3/4/2019
CDW GOVERNMENT LLC,DIRECT PURCHASES,1033.64,1/11/2019
"TWINCO MANUFACTURING CO., INC.",DIRECT PURCHASES,1829.05,2/28/2019
JOHNSON PIPE & SUPPLY CO.,DIRECT PURCHASES,439.44,5/17/2019
CHICAGO URBAN LEAGUE,CONTRACTUAL SERVICES,5000.00,4/30/2019
DUPAGE COUNTY SHERIFF DEPT,LEGAL COSTS,40.00,5/10/2019
TOWN OF CICERO,UTILITIES EXPENSE,1134.95,6/28/2019
"CHICAGO UNITED INDUSTRIES, LTD.",DIRECT PURCHASES,515.07,7/2/2019
"COMET MESSENGER SERVICE, INC.",CONTRACTUAL SERVICES,217.48,7/19/2019
MURRAY & TRETTEL INC,GENERAL EXPENSES,416.25,9/5/2019
"STANTON MECHANICAL, INC.",MAINTENANCE & REPAIRS,18428.12,9/24/2019
GENUINE PARTS COMPANY (NAPA),TRAVEL & MEETING EXPENSE,48.97,11/12/2019
"OER SERVICES, LLC",MAINTENANCE & REPAIRS,1424.65,12/16/2019
"RADICOM, INC.",MAINTENANCE & REPAIRS,11575.00,12/18/2019
CINTAS CORPORATION,DIRECT PURCHASES,133.95,1/24/2019
CHICAGO METRO CONSTRUCTION D/B/A ARLINGTON GLASS & MIRROR CO.,CONTRACTUAL SERVICES,83825.00,4/15/2019
"GREENLINE ENVIRONMENTAL SOLUTIONS, LLC",MAINTENANCE & REPAIRS,3195.00,4/17/2019
GENUINE PARTS COMPANY (NAPA),CONSULTING,147084.24,8/9/2019
"STEVE'S EQUIPMENT SERVICE, INC.",MAINTENANCE & REPAIRS,260.42,7/26/2019
GOLD COAST ORTHOPAEDIC AND SPINE SURGERY,ADMINISTRATION & HR,187.50,8/1/2019
ROYAL REPORTING SERVICES,LEGAL COSTS,96.22,10/16/2019
EMILY MASON,CREDITS,20.00,10/24/2019
"*ALLPOINTS SECURITY AND DETECTIVE, INC.",PURCHASE OF SECURITY SERVICES,22440.44,10/29/2019
ACCOUNTEMPS/DIV. ROBERT HALF,LEGAL COSTS,1830.00,11/21/2019
"RMS SOLUTIONS, INC.",CONSULTING,3750.00,4/11/2019
AMERICAN CONCRETE INSTITUTE,TRAVEL & MEETING EXPENSE,1000.00,5/29/2019
"OER SERVICES, LLC",EQUIPMENT RENTAL,1596.00,6/6/2019
"ARAMARK UNIFORM SERVICES, INC.",CONTRACTUAL SERVICES,322.31,8/14/2019
TOMPKINS PRINTING EQUIPMENT CO.,MAINTENANCE & REPAIRS,125.46,9/13/2019
MICHAEL BEST & FRIEDRICH-CHGO,LEGAL COSTS,3128.00,12/4/2019
CINTAS CORPORATION,CONTRACTUAL SERVICES,870.00,12/16/2019
"PROMPT ELECTRIC, INC.",DIRECT PURCHASES,1916.70,1/17/2019
SUN-TIMES MEDIA,ADVERTISING & PROMOTION,81.40,2/7/2019
BRE RIVER NORTH POINT OWNER,FACILITY RENTAL,52250.27,2/19/2019
JOHNSON PIPE & SUPPLY CO.,DIRECT PURCHASES,2416.39,3/21/2019
"COY PUGH AND ASSOCIATES, LLC",CONTRACTUAL SERVICES,6000.00,4/11/2019
"JONES LANG LaSALLE, INCORPORATED",CONSULTING,467.28,5/10/2019
"AMAZON WEB SERVICES, INC.",CONTRACTUAL SERVICES,651.15,5/31/2019
"MYERS SERVICE, INC.",LEGAL COSTS,242.00,6/21/2019
NURSE VALUE INC,ADMINISTRATION & HR,640.00,9/3/2019
IAP CONSTRUCTION INC.,MAINTENANCE & REPAIRS,4789.00,10/10/2019
ESQUIRE DEPOSITION SOLUTIONS,LEGAL COSTS,807.80,10/18/2019
TOWN OF CICERO,UTILITIES EXPENSE,2828.48,10/24/2019
"CUBIC TRANSPORTATION SYSTEMS, INC.",CONTRACTUAL SERVICES,87525.00,12/5/2019
"CUBIC TRANSPORTATION SYSTEMS, INC.",TRAVEL & MEETING EXPENSE,6209.40,12/9/2019
IAP CONSTRUCTION INC.,MAINTENANCE & REPAIRS,15480.00,1/17/2019
VILLAGE OF SKOKIE.,UTILITIES EXPENSE,5105.19,1/15/2019
"CUBIC TRANSPORTATION SYSTEMS, INC.",DIRECT PURCHASES,271525.14,3/8/2019
RECORD COPY SERVICES CO.,ADMINISTRATION & HR,39.75,3/14/2019
"CRANE 1 SERVICES, INC.",MAINTENANCE & REPAIRS,944.00,4/25/2019
"WEST PUBLISHING CORPORATION d/b/a THOMSON WEST, WEST GROUP OR WEST",FINANCIAL & TREAS SVCS,6550.00,6/25/2019
NATIONAL SAFETY COUNCIL,TRAVEL & MEETING EXPENSE,395.00,9/5/2019
"ZIPCAR, INC.",EQUIPMENT RENTAL,1105.00,10/30/2019
*J.P. SIMONS & COMPANY,DIRECT PURCHASES,10956.75,12/3/2019
AT & T CORP,MAINTENANCE & REPAIRS,64615.13,11/21/2019
"J2 CLOUD SERVICES, LLC.",CONTRACTUAL SERVICES,144.20,2/5/2019
ZIONS BANK,GENERAL EXPENSES,189328.71,3/28/2019
LEXIS NEXIS CO.,CONTRACTUAL SERVICES,5458.33,4/26/2019
"AMAZON WEB SERVICES, INC.",CONTRACTUAL SERVICES,705.33,7/2/2019
"THOMAS J. WALSH CONSULTING, LLC",CONTRACTUAL SERVICES,6000.00,7/18/2019
"HIRERIGHT SOLUTIONS, INC.",ADMINISTRATION & HR,11892.54,8/8/2019
GENUINE PARTS COMPANY (NAPA),ADVERTISING & PROMOTION,248.60,10/25/2019
EVERGREEN PARK RED LIGHT,GENERAL EXPENSES,100.00,10/31/2019
"T-MOBILE USA, INC.",UTILITIES EXPENSE,15249.19,11/19/2019
"ATLAS FIRST ACCESS MATERIAL HANDLING, INC.",MAINTENANCE & REPAIRS,131.19,1/31/2019
"CRANE 1 SERVICES, INC.",MAINTENANCE & REPAIRS,18161.87,2/13/2019
TOMPKINS PRINTING EQUIPMENT CO.,MAINTENANCE & REPAIRS,850.00,2/22/2019
CUMMINS INC.,MAINTENANCE & REPAIRS,393.82,3/15/2019
"CHICAGO UNITED INDUSTRIES, LTD.",EQUIPMENT RENTAL,2623.71,4/11/2019
"AMERICAN BUILDING SERVICES, LLC (M-D BUILDING MATERIALS)",DIRECT PURCHASES,1867.86,4/17/2019
"GREENLINE ENVIRONMENTAL SOLUTIONS, LLC",MAINTENANCE & REPAIRS,3185.00,4/16/2019
"OER SERVICES, LLC",MAINTENANCE & REPAIRS,399.00,5/17/2019
"BHFX, LLC",MAINTENANCE & REPAIRS,97.50,5/23/2019
"*WILEY'S LAWN CARE, LLC",MAINTENANCE & REPAIRS,20490.00,6/4/2019
VILLAGE OF SKOKIE.,UTILITIES EXPENSE,1328.01,6/13/2019
PNC BANK,TRAVEL & MEETING EXPENSE,6529.39,6/17/2019
CITY OF CHICAGO DEPT.OF REVENUE-RED LIGHT,GENERAL EXPENSES,600.00,7/18/2019
COZEN O'CONNOR,LEGAL COSTS,27396.00,8/15/2019
"IMPERIAL CRANE SERVICES, INC.",EQUIPMENT RENTAL,3600.00,8/12/2019
INTERTEK USA INC.,CONTRACTUAL SERVICES,7376.00,9/27/2019
"GREENLINE ENVIRONMENTAL SOLUTIONS, LLC",MAINTENANCE & REPAIRS,1110.00,10/2/2019
CUMMINS INC.,MAINTENANCE & REPAIRS,1438.11,10/15/2019
"JULIAN, BETLEY & ASSOCIATES",LEGAL COSTS,545.35,10/23/2019
"SAFETY KLEEN SYSTEMS, INC.",MAINTENANCE & REPAIRS,20462.99,11/15/2019
"CRANE 1 SERVICES, INC.",MAINTENANCE & REPAIRS,865.00,10/29/2019
TOWN OF CICERO,UTILITIES EXPENSE,3062.26,1/15/2019
"OCCUPATIONAL TRAINING & SUPPLY, INC.",TRAVEL & MEETING EXPENSE,192.00,2/26/2019
COOK COUNTY SHERIFF DEPARTMENT,LEGAL COSTS,40.00,2/28/2019
CITY OF CHICAGO DEPT.OF REVENUE-RED LIGHT,GENERAL EXPENSES,135.00,3/19/2019
"WISCO, INC.",MAINTENANCE & REPAIRS,154.60,5/9/2019
CHICAGO METRO CONSTRUCTION D/B/A ARLINGTON GLASS & MIRROR CO.,MAINTENANCE & REPAIRS,17015.68,6/26/2019
MARLENE COLLINS,CREDITS,20.00,6/12/2019
*J.P. SIMONS & COMPANY,DIRECT PURCHASES,6278.40,8/22/2019
"TEXTMARKS, INC.",CONTRACTUAL SERVICES,18718.04,8/16/2019
EVANSTON POLICE DEPARTMENT/CITY OF EVANSTON,PURCHASE OF SECURITY SERVICES,16451.64,8/20/2019
"GREENLINE ENVIRONMENTAL SOLUTIONS, LLC",MAINTENANCE & REPAIRS,3950.00,10/4/2019
CDW GOVERNMENT LLC,DIRECT PURCHASES,345.22,10/8/2019
ACCOUNTING PRINCIPALS INC,CONTRACTUAL SERVICES,2440.00,2/15/2019
"WINKLER'S TREE SERVICE, INC.",MAINTENANCE & REPAIRS,8100.00,3/21/2019
CHARLES EQUIPMENT ENERGY SYSTEMS LLC,MAINTENANCE & REPAIRS,17567.00,5/29/2019
TOMPKINS PRINTING EQUIPMENT CO.,MAINTENANCE & REPAIRS,948.99,8/9/2019
MARK VEND CO,GENERAL EXPENSES,334.00,8/6/2019
CUMMINS INC.,MAINTENANCE & REPAIRS,607.86,10/10/2019
ARC IMAGING RESOURCES,MAINTENANCE & REPAIRS,100.08,11/27/2019
"MCCORKLE LITIGATION SERVICES, INC",GENERAL EXPENSES,390.35,11/27/2019
*HI-TEK ENVIRONMENTAL- d/b/a STAT,CONSULTING,127.00,12/24/2019
WELLNESS MEDICAL S.C.,ADMINISTRATION & HR,750.00,3/13/2019
TRADEBE TREATMENT & RECYCLING LLC,MAINTENANCE & REPAIRS,218.00,4/11/2019
COMMONWEALTH EDISON.,UTILITIES EXPENSE,449585.40,5/16/2019
"INSPE ASSOCIATES,LTD.",ADMINISTRATION & HR,3600.00,4/17/2019
"COMCAST OF CHICAGO, IL",EQUIPMENT RENTAL,206.55,6/7/2019
G.A.G. INDUSTRIES CORP.,MAINTENANCE & REPAIRS,47921.17,6/13/2019
DIGICERT INC,TECHNOLOGY SERVICES,218.00,9/17/2019
*GRISKO LLC (PREVIOUSLY CAROLYN GRISKO & ASSOCIATES),CONSULTING,2686.77,10/29/2019
SDI PRESENCE LLC,TECHNOLOGY SERVICES,292775.00,12/27/2019
"HADADY MACHINING CO., INC.",DIRECT PURCHASES,493.00,5/3/2019
"ORACLE AMERICA, INC.",MAINTENANCE & REPAIRS,56875.00,7/15/2019
"ATLAS FIRST ACCESS MATERIAL HANDLING, INC.",MAINTENANCE & REPAIRS,635.74,8/22/2019
"LUMINATOR MASS TRANSIT, LLC",MAINTENANCE & REPAIRS,29750.00,8/27/2019
ILLINOIS SECRETARY OF STATE,GENERAL EXPENSES,50.00,8/27/2019
"ATLAS FIRST ACCESS MATERIAL HANDLING, INC.",MAINTENANCE & REPAIRS,746.00,10/3/2019
"WISCO, INC.",DIRECT PURCHASES,12.40,10/22/2019
JACKSON LEWIS PC,LEGAL COSTS,3080.00,12/6/2019
"RECORDS DEPOSITION SERVICE, INC.",ADMINISTRATION & HR,35.34,4/16/2019
SAMM GROUP,ADMINISTRATION & HR,5200.00,4/30/2019
"J2 CLOUD SERVICES, LLC.",CONTRACTUAL SERVICES,275.50,5/28/2019
CAIRS,GENERAL EXPENSES,560.00,6/12/2019
ACCOUNTING PRINCIPALS INC,CONSULTING,1324.00,7/5/2019
*INSPIRED CATERING & EVENTS,GENERAL EXPENSES,153.00,10/23/2019
"BUREAU OF NATIONAL AFFAIRS, INC., THE",FINANCIAL & TREAS SVCS,13041.00,1/30/2019
G.A.G. INDUSTRIES CORP.,MAINTENANCE & REPAIRS,4406.00,2/19/2019
"THE MCS GROUP, INC.",ADMINISTRATION & HR,175.42,3/22/2019
GENUINE PARTS COMPANY (NAPA),CONSULTING,164321.53,4/11/2019
ACCOUNTING PRINCIPALS INC,CONTRACTUAL SERVICES,2440.00,5/17/2019
"HERITAGE-CRYSTAL CLEAN, LLC",DIRECT PURCHASES,4160.00,5/28/2019
BETTY DAY,LEGAL COSTS,75.00,7/3/2019
PROFORTE INC,TRAVEL & MEETING EXPENSE,1238.40,10/11/2019
MURRAY & TRETTEL INC,GENERAL EXPENSES,416.25,12/13/2019
PITNEY BOWES GLOBAL MAILING SYSTEMS,MAINTENANCE & REPAIRS,51.00,2/22/2019
CHICAGO SURGICAL GROUP LTD,ADMINISTRATION & HR,750.00,2/22/2019
AT & T CORP,UTILITIES EXPENSE,99.91,3/19/2019
ANITA M. ROWE,LEGAL COSTS,600.00,5/3/2019
"LISA A. KOTRBA & ASSOCIATES, LTD",LEGAL COSTS,511.60,5/3/2019
"LAICON, INC.",MAINTENANCE & REPAIRS,729.00,5/10/2019
LEXIS NEXIS CO.,CONTRACTUAL SERVICES,5458.33,5/28/2019
"COMET MESSENGER SERVICE, INC.",GENERAL EXPENSES,120.22,7/5/2019
EVERGREEN PARK RED LIGHT,GENERAL EXPENSES,100.00,7/5/2019
DYNEGY ENERGY SERVICES,UTILITIES EXPENSE,71946.08,8/1/2019
ZIONS BANK,GENERAL EXPENSES,116615.11,9/30/2019
"AMERICAN BUILDING SERVICES, LLC (M-D BUILDING MATERIALS)",DIRECT PURCHASES,2004.60,1/11/2019
FORESIGHT RECONSTRUCTION INC,LEGAL COSTS,4772.88,1/10/2019
"CRANE 1 SERVICES, INC.",MAINTENANCE & REPAIRS,970.00,2/4/2019
CDW GOVERNMENT LLC,TECHNOLOGY SERVICES,3839.52,4/3/2019
BUILDERS CHICAGO CORPORATION,MAINTENANCE & REPAIRS,688.00,3/25/2019
"Legalink, Inc. d/b/a Epiq Court Reporting",LEGAL COSTS,5164.90,3/22/2019
"MANSFIELD OIL COMPANY OF GAINESVILLE, INC.",FUEL EXPENSE,907560.16,4/12/2019
LUIS SAHAGUN,CONTRACTUAL SERVICES,1000.00,4/9/2019
"THE MCS GROUP, INC.",ADMINISTRATION & HR,7675.38,5/14/2019
"THE MCS GROUP, INC.",ADMINISTRATION & HR,4603.99,5/24/2019
"ICE MILLER, LLP",LEGAL COSTS,5000.00,6/10/2019
GENUINE PARTS COMPANY (NAPA),DIRECT PURCHASES,76879.05,7/5/2019
"RADICOM, INC.",MAINTENANCE & REPAIRS,12250.00,7/17/2019
"PROTANIC, INC.",MAINTENANCE & REPAIRS,1450.00,7/18/2019
"ATLAS FIRST ACCESS MATERIAL HANDLING, INC.",MAINTENANCE & REPAIRS,435.00,7/31/2019
"STANTON MECHANICAL, INC.",MAINTENANCE & REPAIRS,1287.50,7/24/2019
MID-WEST SIGN SUPPLY CO,MAINTENANCE & REPAIRS,584.50,7/26/2019
"THE MCS GROUP, INC.",ADMINISTRATION & HR,4081.57,9/10/2019
GENUINE PARTS COMPANY (NAPA),DIRECT PURCHASES,17451.90,10/10/2019
*J.P. SIMONS & COMPANY,DIRECT PURCHASES,21996.91,11/6/2019
"ATLAS FIRST ACCESS MATERIAL HANDLING, INC.",MAINTENANCE & REPAIRS,6797.22,11/8/2019
"JONES LANG LaSALLE, INCORPORATED",MAINTENANCE & REPAIRS,515657.35,10/25/2019
GENUINE PARTS COMPANY (NAPA),DIRECT PURCHASES,74432.69,11/19/2019
AMALGAMATED BANK OF CHICAGO.,FINANCIAL & TREAS SVCS,12306.22,11/27/2019
GENUINE PARTS COMPANY (NAPA),DIRECT PURCHASES,31748.05,12/24/2019
"MARK ANDY, INC.",MAINTENANCE & REPAIRS,822.40,12/24/2019
"INSPE ASSOCIATES,LTD.",ADMINISTRATION & HR,3000.00,1/8/2019
"WISCO, INC.",CONTRACTUAL SERVICES,2327.05,4/3/2019
"HIRERIGHT SOLUTIONS, INC.",ADMINISTRATION & HR,2934.25,3/13/2019
GENUINE PARTS COMPANY (NAPA),DIRECT PURCHASES,3841.00,4/17/2019
"MCCORKLE LITIGATION SERVICES, INC",LEGAL COSTS,566.92,4/26/2019
BUILDERS CHICAGO CORPORATION,MAINTENANCE & REPAIRS,5304.75,5/29/2019
"ATLAS FIRST ACCESS MATERIAL HANDLING, INC.",MAINTENANCE & REPAIRS,7968.13,8/29/2019
"WISCO, INC.",MAINTENANCE & REPAIRS,668.26,10/30/2019
UNITED PARCEL SERVICE,TRAVEL & MEETING EXPENSE,1178.76,11/19/2019
"WISCO, INC.",DIRECT PURCHASES,12.40,11/20/2019
"U.S. LEGAL SUPPORT, INCORPORATED",LEGAL COSTS,257.05,1/29/2019
"LAICON, INC.",MAINTENANCE & REPAIRS,1420.00,4/2/2019
"JUST ELEVATOR INSPECTION SERVICE, INC.",MAINTENANCE & REPAIRS,322.50,7/16/2019
"MCCORKLE LITIGATION SERVICES, INC",LEGAL COSTS,573.85,5/8/2019
"RADICOM, INC.",MAINTENANCE & REPAIRS,10325.00,5/15/2019
"TRAPEZE SOFTWARE GROUP, INC",MAINTENANCE & REPAIRS,750.00,6/10/2019
"J2 CLOUD SERVICES, LLC.",CONTRACTUAL SERVICES,251.80,6/27/2019
AMERICAN TOWERS LLC,EQUIPMENT RENTAL,8597.56,7/2/2019
AMALGAMATED BANK OF CHICAGO,FINANCIAL & TREAS SVCS,157.62,7/11/2019
"*ANCHOR STAFFING, INC.",TECHNOLOGY SERVICES,659.79,9/20/2019
CITY OF CHICAGO-DEPT OF WATER,UTILITIES EXPENSE,57637.20,9/24/2019
"HERITAGE-CRYSTAL CLEAN, LLC",DIRECT PURCHASES,3200.00,2/14/2019
"MCCORKLE LITIGATION SERVICES, INC",GENERAL EXPENSES,434.10,2/22/2019
NOTARY PUBLIC ASSOCIATION,GENERAL EXPENSES,64.00,2/12/2019
MCGILL CONSTRUCTION CO LLC,MAINTENANCE & REPAIRS,6654.56,4/22/2019
CITY OF CHICAGO-DEPT OF FLEET AND FACILITY  MGMT,DIRECT PURCHASES,13755.78,6/4/2019
ZIONS BANK,FINANCIAL & TREAS SVCS,3500.00,8/1/2019
"JONES LANG LaSALLE, INCORPORATED",MAINTENANCE & REPAIRS,366996.24,8/19/2019
"GOVDELIVERY, LLC D/B/A GRANICUS",ADVERTISING & PROMOTION,142989.12,10/17/2019
AMERIMEX SALES & SERVICE,MAINTENANCE & REPAIRS,5139.48,10/25/2019
IAP CONSTRUCTION INC.,MAINTENANCE & REPAIRS,64107.31,11/20/2019
"WILLIAM MARTIN, LSCW",ADMINISTRATION & HR,150.00,2/8/2019
"VERIZON WIRELESS, INC.",UTILITIES EXPENSE,190.05,3/26/2019
*INSPIRED CATERING & EVENTS,TRAVEL & MEETING EXPENSE,774.25,8/22/2019
TERESA BOYLE ROGERS CONSULTING,CONSULTING,2663.70,9/4/2019
CHICAGO TRANSIT AUTHORITY,DIRECT PURCHASES,43000.00,9/13/2019
CUMMINS INC.,MAINTENANCE & REPAIRS,18596.55,9/17/2019
UNIVERSITY OF CHICAGO      (2),ADMINISTRATION & HR,2500.00,10/29/2019
BUILDERS CHICAGO CORPORATION,MAINTENANCE & REPAIRS,5156.75,4/12/2019
NEAL & LEROY L.L.C.,LEGAL COSTS,3547.50,5/21/2019
PANNIER CORPORATION GRAPHICS DIVISION,DIRECT PURCHASES,4592.00,8/16/2019
KPMG LLP,CONSULTING,6229.30,8/13/2019
ERIC THOMAS,LEGAL COSTS,75.00,8/27/2019
CIOX HEALTH,ADMINISTRATION & HR,31.43,10/2/2019
"CAPRICORN COMMUNICATIONS, LLC",CONTRACTUAL SERVICES,6000.00,12/5/2019
SDI PRESENCE LLC,TECHNOLOGY SERVICES,292775.00,1/29/2019
CLERK OF THE CIRCUIT COURT  1,LEGAL COSTS,440.20,1/18/2019
"MID-AMERICA BUSINESS SYSTEMS & EQUPMENT, INC.",MAINTENANCE & REPAIRS,498.00,7/25/2019
GRETCHEN BUHRKE,CREDITS,20.00,8/16/2019
"*MIDWAY OVERHEAD DOOR, INC.",MAINTENANCE & REPAIRS,1500.00,10/3/2019
"J.E. MANZI & ASSOCIATES, INC.",CONTRACTUAL SERVICES,2250.00,10/29/2019
"MIDWAY OVERHEAD DOOR, INC.",MAINTENANCE & REPAIRS,19706.00,12/19/2019
COZEN O'CONNOR,LEGAL COSTS,472.00,1/8/2019
COMPUTER AID INC,TECHNOLOGY SERVICES,21524.80,3/8/2019
"J.E. MANZI & ASSOCIATES, INC.",CONTRACTUAL SERVICES,2750.00,3/28/2019
"COMET MESSENGER SERVICE, INC.",CONTRACTUAL SERVICES,75.69,5/31/2019
WHEEL RAIL SEMINARS,TRAVEL & MEETING EXPENSE,850.00,6/14/2019
INTERTEK USA INC.,CONTRACTUAL SERVICES,7776.00,1/8/2019
GENUINE PARTS COMPANY (NAPA),DIRECT PURCHASES,5719.77,1/17/2019
COMPUTER AID INC,TECHNOLOGY SERVICES,466944.78,1/18/2019
"THOMAS J. WALSH CONSULTING, LLC",CONTRACTUAL SERVICES,6000.00,2/8/2019
"BOARD OF EDUCATION, CITY OF CHICAGO",FACILITY RENTAL,250.00,2/15/2019
*J.P. SIMONS & COMPANY,DIRECT PURCHASES,176.00,3/13/2019
STAPLES ADVANTAGE,DIRECT PURCHASES,88.00,3/21/2019
"THE MCS GROUP, INC.",ADMINISTRATION & HR,1371.49,4/2/2019
INTERTEK USA INC.,CONTRACTUAL SERVICES,10192.00,4/29/2019
"MANSFIELD OIL COMPANY OF GAINESVILLE, INC.",FUEL EXPENSE,59672.92,4/11/2019
CITY OF CHICAGO/DEPT OF FINANCE,GENERAL EXPENSES,9230.00,4/17/2019
"GUARDIAN INDUSTRIAL SUPPLY, LLC",DIRECT PURCHASES,2584.30,6/7/2019
CALIBER PACKAGING LLC,MAINTENANCE & REPAIRS,776.25,6/27/2019
"OER SERVICES, LLC",EQUIPMENT RENTAL,5768.00,6/21/2019
"OVERTURE, LLC",GENERAL EXPENSES,1345.27,8/14/2019
PEOPLES GAS,UTILITIES EXPENSE,68891.36,8/9/2019
JOHNSON PIPE & SUPPLY CO.,DIRECT PURCHASES,2362.09,11/27/2019
*J.P. SIMONS & COMPANY,DIRECT PURCHASES,1478.58,9/12/2019
"MANSFIELD OIL COMPANY OF GAINESVILLE, INC.",FUEL EXPENSE,10387.22,8/28/2019
CORPORATE CONCEPTS INC,MAINTENANCE & REPAIRS,2190.00,10/8/2019
"WISCO, INC.",MAINTENANCE & REPAIRS,223.90,11/14/2019
"GREENLINE ENVIRONMENTAL SOLUTIONS, LLC",MAINTENANCE & REPAIRS,23005.00,11/4/2019
PETER R. MEYERS,LEGAL COSTS,1600.00,12/6/2019
"JUST ELEVATOR INSPECTION SERVICE, INC.",MAINTENANCE & REPAIRS,15945.00,4/2/2019
"UNITED RADIO COMMUNICATIONS, INC",DIRECT PURCHASES,895.00,2/12/2019
"Elk Grove Graphics, A division of C2 Imaging",ADVERTISING & PROMOTION,1813.00,1/29/2019
"ATLAS FIRST ACCESS MATERIAL HANDLING, INC.",MAINTENANCE & REPAIRS,1571.62,2/13/2019
GENUINE PARTS COMPANY (NAPA),MAINTENANCE & REPAIRS,64.71,3/27/2019
UNITEC PARTS CO.,DIRECT PURCHASES,88508.00,2/28/2019
"ATLAS FIRST ACCESS MATERIAL HANDLING, INC.",MAINTENANCE & REPAIRS,695.88,4/4/2019
"CHICAGO UNITED INDUSTRIES, LTD.",EQUIPMENT RENTAL,1592.43,4/3/2019
"ALLIED WASTE TRANSPORTATION, INC. d/b/a REPUBLIC SERVICES OF CHICAGO",MAINTENANCE & REPAIRS,65984.01,4/8/2019
*J.P. SIMONS & COMPANY,DIRECT PURCHASES,2723.19,6/19/2019
"MANSFIELD OIL COMPANY OF GAINESVILLE, INC.",FUEL EXPENSE,1096.43,6/5/2019
DIGICERT INC,TECHNOLOGY SERVICES,388.00,6/11/2019
ROBERT NITCH,CONTRACTUAL SERVICES,8000.00,6/18/2019
"WEST PUBLISHING CORPORATION d/b/a THOMSON WEST, WEST GROUP OR WEST",GENERAL EXPENSES,3105.89,7/2/2019
CHICAGO POLICE DEPARTMENT,PURCHASE OF SECURITY SERVICES,337936.59,7/5/2019
"108 NORTH STATE ST. (CHICAGO) OWNER,LLC",FACILITY RENTAL,32200.00,7/9/2019
EDWIN H BENN,LEGAL COSTS,800.00,7/16/2019
ACCOUNTING PRINCIPALS INC,CONSULTING,1324.00,7/23/2019
"JONES LANG LaSALLE, INCORPORATED",MAINTENANCE & REPAIRS,383854.42,7/24/2019
PNC BANK,TRAVEL & MEETING EXPENSE,2655.16,8/15/2019
CUMMINS INC.,MAINTENANCE & REPAIRS,444.76,8/19/2019
LORCHEM TECHNOLOGIES INC,MAINTENANCE & REPAIRS,677.67,10/3/2019
PASZKIEWICZ COURT REPORTING,LEGAL COSTS,191.00,10/24/2019
TAFT STETTINIUS & HOLLISTER LLP,LEGAL COSTS,1681.50,11/7/2019
ENTERPRISE FLEET SERVICES,EQUIPMENT RENTAL,131487.36,12/4/2019
*M. WELLS PRINTING COMPANY,ADVERTISING & PROMOTION,34761.00,1/4/2019
"*FYI & ASSOCIATES, INC.",MAINTENANCE & REPAIRS,6022.05,3/29/2019
ACCOUNTING PRINCIPALS INC,CONTRACTUAL SERVICES,2400.16,4/26/2019
PEOPLES GAS,UTILITIES EXPENSE,13633.18,6/27/2019
"RECORDS DEPOSITION SERVICE, INC.",ADMINISTRATION & HR,104.79,8/15/2019
HEGENSCHEIDT CORP.,MAINTENANCE & REPAIRS,17444.00,12/17/2019
"J2 CLOUD SERVICES, LLC.",CONTRACTUAL SERVICES,239.20,2/28/2019
"MCCORKLE LITIGATION SERVICES, INC",LEGAL COSTS,850.80,3/1/2019
ILLINOIS STATE POLICE 1,LEGAL COSTS,5.00,3/21/2019
"CUBIC TRANSPORTATION SYSTEMS, INC.",CONTRACTUAL SERVICES,4840.00,4/16/2019
"WISCO, INC.",MAINTENANCE & REPAIRS,1128.40,4/19/2019
"4 STAR ELECTRONICS, INC.",DIRECT PURCHASES,1317.03,5/1/2019
CONTINENTAL LANGUAGES LLC,CONTRACTUAL SERVICES,615.00,9/3/2019
JACKSON LEWIS PC,LEGAL COSTS,1176.00,9/24/2019
AT & T CORP,UTILITIES EXPENSE,1200.00,11/1/2019
KATTEN MUCHIN ROSENMAN,LEGAL COSTS,35000.00,1/9/2019
"CRANE 1 SERVICES, INC.",MAINTENANCE & REPAIRS,961.00,3/19/2019
CIOX HEALTH,ADMINISTRATION & HR,29.64,2/21/2019
CHICAGO INDUSTRIAL ORGANIZATIONAL PSYSCHOLOGISTS,GENERAL EXPENSES,60.00,2/26/2019
ACCOUNTING PRINCIPALS INC,CONTRACTUAL SERVICES,1062.40,9/27/2019
AT & T CORP,UTILITIES EXPENSE,4100.00,9/19/2019
GENUINE PARTS COMPANY (NAPA),MAINTENANCE & REPAIRS,5528.45,10/31/2019
"CANON BUSINESS SOLUTIONS, INC.",MAINTENANCE & REPAIRS,8572.14,11/8/2019
LA RAZA NEWSPAPER,ADVERTISING & PROMOTION,1000.00,12/4/2019
"HERITAGE-CRYSTAL CLEAN, LLC",DIRECT PURCHASES,3200.00,12/18/2019
COURTYARD NEW CARROLLTON LANDOVER,TRAVEL & MEETING EXPENSE,335.61,1/18/2019
"GENFARE, A DIVISION OF SPX CORPORATION",MAINTENANCE & REPAIRS,52354.12,3/28/2019
BENJAMIN GOLDBERG MD,ADMINISTRATION & HR,250.00,4/30/2019
G.A.G. INDUSTRIES CORP.,MAINTENANCE & REPAIRS,52227.96,6/14/2019
JACKSON LEWIS PC,LEGAL COSTS,1372.00,6/25/2019
"WEST PUBLISHING CORPORATION d/b/a THOMSON WEST, WEST GROUP OR WEST",GENERAL EXPENSES,3105.89,8/1/2019
"CONSTELLATION NEW ENERGY GAS DIVISION, LLC",UTILITIES EXPENSE,821.76,8/15/2019
ROSEMONT PUBLIC WORKS,UTILITIES EXPENSE,16.48,9/5/2019
"ALFONSO MEJIA, M.D.",ADMINISTRATION & HR,40.00,9/18/2019
FOX VALLEY FIRE & SAFETY COMPANY,MAINTENANCE & REPAIRS,8416.25,9/20/2019
TAFT STETTINIUS & HOLLISTER LLP,EQUIPMENT RENTAL,70.00,12/4/2019
"ARAMARK UNIFORM SERVICES, INC.",CONTRACTUAL SERVICES,67.04,1/9/2019
GENUINE PARTS COMPANY (NAPA),CONSULTING,145396.22,1/10/2019
"J.E. MANZI & ASSOCIATES, INC.",CONTRACTUAL SERVICES,1000.00,2/28/2019
"COMET MESSENGER SERVICE, INC.",GENERAL EXPENSES,182.03,3/8/2019
"PROTANIC, INC.",MAINTENANCE & REPAIRS,750.00,4/16/2019
"GENFARE, A DIVISION OF SPX CORPORATION",DIRECT PURCHASES,230.88,5/29/2019
METRA,EQUIPMENT RENTAL,25.00,7/30/2019
"*ANCHOR STAFFING, INC.",TECHNOLOGY SERVICES,1155.69,8/16/2019
"CLEVER DEVICES, LTD",MAINTENANCE & REPAIRS,387649.39,9/25/2019
"MCCORKLE LITIGATION SERVICES, INC",LEGAL COSTS,111.36,10/22/2019
COOK COUNTY SHERIFF DEPARTMENT,LEGAL COSTS,40.00,10/31/2019
MAGNA LEGAL SERVICES,LEGAL COSTS,528.45,12/27/2019
"*ALLPOINTS SECURITY AND DETECTIVE, INC.",PURCHASE OF SECURITY SERVICES,20587.62,1/8/2019
ASCE STRUCTURAL GROUP,TRAVEL & MEETING EXPENSE,1125.00,4/4/2019
"THOMAS J. WALSH CONSULTING, LLC",CONTRACTUAL SERVICES,6000.00,5/9/2019
SIMMONS MACHINE TOOL CORPORATION,MAINTENANCE & REPAIRS,450.00,5/29/2019
XEROX CORPORATION /XEROX CTR,MAINTENANCE & REPAIRS,449.70,10/17/2019
SEAOI,ADVERTISING & PROMOTION,175.00,10/29/2019
VCLOUD TECH INC.,TECHNOLOGY SERVICES,10102.95,11/29/2019
"GMI, LLC",DIRECT PURCHASES,43700.00,3/21/2019
GENUINE PARTS COMPANY (NAPA),TRAVEL & MEETING EXPENSE,758.13,3/21/2019
COOK COUNTY SHERIFF DEPARTMENT,LEGAL COSTS,80.00,2/8/2019
"PROTANIC, INC.",MAINTENANCE & REPAIRS,2065.54,2/25/2019
"ACTION K-9 SECURITY, INC.",PURCHASE OF SECURITY SERVICES,566484.26,2/27/2019
"SAFETY KLEEN SYSTEMS, INC.",MAINTENANCE & REPAIRS,14280.99,4/24/2019
MATTHEW MacCUMBER M.D.,ADMINISTRATION & HR,600.00,3/28/2019
CLERK OF THE CIRCUIT COURT  1,LEGAL COSTS,35.75,4/3/2019
CINTAS CORPORATION,CONTRACTUAL SERVICES,13489.29,4/25/2019
TRADEBE TREATMENT & RECYCLING LLC,MAINTENANCE & REPAIRS,744.00,4/30/2019
"GREENLINE ENVIRONMENTAL SOLUTIONS, LLC",MAINTENANCE & REPAIRS,8956.00,6/12/2019
"MANSFIELD OIL COMPANY OF GAINESVILLE, INC.",FUEL EXPENSE,224359.34,7/26/2019
CUMMINS INC.,MAINTENANCE & REPAIRS,2950.45,8/21/2019
"MCCORKLE LITIGATION SERVICES, INC",LEGAL COSTS,1131.70,9/11/2019
UNIVERSITY OF ILL OUTPT - OHSI,CONTRACTUAL SERVICES,640.00,9/11/2019
TAB SERVICE COMPANY,GENERAL EXPENSES,11453.61,9/12/2019
*J.P. SIMONS & COMPANY,DIRECT PURCHASES,13988.85,10/17/2019
"AVAYA, INCORPORATED",UTILITIES EXPENSE,305937.12,9/26/2019
"*ALLPOINTS SECURITY AND DETECTIVE, INC.",PURCHASE OF SECURITY SERVICES,22092.50,10/18/2019
"MANSFIELD OIL COMPANY OF GAINESVILLE, INC.",FUEL EXPENSE,178242.15,11/5/2019
*J.P. SIMONS & COMPANY,DIRECT PURCHASES,23854.44,11/21/2019
*J.P. SIMONS & COMPANY,DIRECT PURCHASES,181.20,12/5/2019
"MANSFIELD OIL COMPANY OF GAINESVILLE, INC.",FUEL EXPENSE,144613.59,11/7/2019
CAMERON BLOUNT,LEGAL COSTS,75.00,11/12/2019
GRANT LAW LLC,LEGAL COSTS,106484.76,11/13/2019
"*VEI SOLUTIONS, INC.",MAINTENANCE & REPAIRS,13054.30,11/14/2019
"ATLAS FIRST ACCESS MATERIAL HANDLING, INC.",MAINTENANCE & REPAIRS,22075.05,12/17/2019
CITY OF CHICAGO-DEPT OF FLEET AND FACILITY  MGMT,DIRECT PURCHASES,15674.98,12/17/2019
"MCCORKLE LITIGATION SERVICES, INC",LEGAL COSTS,205.12,3/6/2019
PNC BANK,TRAVEL & MEETING EXPENSE,1706.32,3/18/2019
"CROWE, LLP",FINANCIAL & TREAS SVCS,125000.00,4/17/2019
PASZKIEWICZ COURT REPORTING,LEGAL COSTS,452.50,6/13/2019
AMERICAN SOCIETY OF SAFETY PROFESSIONALS,TRAVEL & MEETING EXPENSE,895.00,6/6/2019
GREENBERG TRAURIG LLP,FINANCIAL & TREAS SVCS,70.79,6/25/2019
GENUINE PARTS COMPANY (NAPA),MAINTENANCE & REPAIRS,322.50,8/20/2019
UNITEC PARTS CO.,DIRECT PURCHASES,19123.86,8/8/2019
"WISCO, INC.",CONTRACTUAL SERVICES,2330.80,8/29/2019
"LISA A. KOTRBA & ASSOCIATES, LTD",LEGAL COSTS,530.20,9/3/2019
CITY OF CHICAGO-DEPT OF FLEET AND FACILITY  MGMT,MAINTENANCE & REPAIRS,152497.35,9/10/2019
IAP CONSTRUCTION INC.,MAINTENANCE & REPAIRS,12000.00,10/9/2019
IAP CONSTRUCTION INC.,MAINTENANCE & REPAIRS,10471.33,10/16/2019
EVERGREEN PARK RED LIGHT,GENERAL EXPENSES,100.00,10/31/2019
"HERITAGE-CRYSTAL CLEAN, LLC",DIRECT PURCHASES,3520.00,11/22/2019
"AT&T MOBILITY NATIONAL ACCOUNTS, LLC",UTILITIES EXPENSE,69918.45,11/19/2019
"SAFETY KLEEN SYSTEMS, INC.",MAINTENANCE & REPAIRS,655.44,1/9/2019
"COMET MESSENGER SERVICE, INC.",CONTRACTUAL SERVICES,60.26,2/1/2019
"MCCORKLE LITIGATION SERVICES, INC",LEGAL COSTS,2361.37,3/13/2019
T.L.C. JANITORIAL & MAINTENANCE SERVICES,MAINTENANCE & REPAIRS,1915.00,5/3/2019
CITY OF CHICAGO DEPT.OF REVENUE-RED LIGHT,GENERAL EXPENSES,335.00,6/12/2019
ACCOUNTING PRINCIPALS INC,CONSULTING,1282.63,6/21/2019
*SOUTH SUBURBAN PEST CONTROL,MAINTENANCE & REPAIRS,7647.00,7/9/2019
CUMMINS INC.,MAINTENANCE & REPAIRS,3202.35,8/13/2019
"GARDA CL GREAT LAKES, INC.",FINANCIAL & TREAS SVCS,49262.11,8/29/2019
COMPUTER AID INC,TECHNOLOGY SERVICES,17600.00,11/6/2019
"WEST PUBLISHING CORPORATION d/b/a THOMSON WEST, WEST GROUP OR WEST",FINANCIAL & TREAS SVCS,7622.64,1/29/2019
PNC BANK,TRAVEL & MEETING EXPENSE,3585.40,2/20/2019
ACCOUNTEMPS/DIV. ROBERT HALF,LEGAL COSTS,3816.84,3/15/2019
"BHFX, LLC",MAINTENANCE & REPAIRS,945.00,7/30/2019
"PROTANIC, INC.",MAINTENANCE & REPAIRS,5110.00,8/7/2019
FASTENAL COMPANY,TRAVEL & MEETING EXPENSE,547.00,8/14/2019
"PROTANIC, INC.",MAINTENANCE & REPAIRS,750.00,9/9/2019
"VERITEXT, LLC",LEGAL COSTS,770.00,11/13/2019
"CRANE 1 SERVICES, INC.",MAINTENANCE & REPAIRS,1323.00,2/8/2019
ZIONS BANK,GENERAL EXPENSES,121912.28,4/16/2019
"ATLAS FIRST ACCESS MATERIAL HANDLING, INC.",MAINTENANCE & REPAIRS,493.55,4/16/2019
"MIDWEST TIME RECORDER, INC.",MAINTENANCE & REPAIRS,180.00,7/25/2019
PACER SERVICE CENTER,GENERAL EXPENSES,54.70,7/22/2019
JACKSON LEWIS PC,LEGAL COSTS,56.00,10/31/2019
SCOTT E GLASER M.D.,ADMINISTRATION & HR,750.00,4/16/2019
CHICAGO METRO CONSTRUCTION D/B/A ARLINGTON GLASS & MIRROR CO.,MAINTENANCE & REPAIRS,874.82,5/10/2019
RECORD COPY SERVICES CO.,ADMINISTRATION & HR,39.75,5/24/2019
"*DIGBY'S DETECTIVE & SECURITY AGENCY, INC.",PURCHASE OF SECURITY SERVICES,48105.26,6/28/2019
AGAE / PRO FENCE JOINT VENTURE,MAINTENANCE & REPAIRS,10207.00,9/4/2019
GENUINE PARTS COMPANY (NAPA),MAINTENANCE & REPAIRS,26171.25,10/11/2019
"WISCO, INC.",DIRECT PURCHASES,23.30,10/2/2019
JAMES DWORKIN,LEGAL COSTS,1500.00,10/18/2019
"INSPE ASSOCIATES,LTD.",ADMINISTRATION & HR,1800.00,10/25/2019
"SVANACO, INC.",MAINTENANCE & REPAIRS,27975.00,1/11/2019
COOK COUNTY SHERIFF DEPARTMENT,LEGAL COSTS,40.00,1/29/2019
LUBY LAW P.C,LEGAL COSTS,1000.00,1/29/2019
"COMCAST OF CHICAGO, IL",EQUIPMENT RENTAL,206.54,2/27/2019
ERICA PETTI ANDERSON,LEGAL COSTS,75.00,4/9/2019
"GENFARE, A DIVISION OF SPX CORPORATION",DIRECT PURCHASES,393.12,5/23/2019
"WISCO, INC.",MAINTENANCE & REPAIRS,57.75,5/28/2019
"*WILEY'S LAWN CARE, LLC",MAINTENANCE & REPAIRS,2430.00,5/10/2019
BYRON WADE,LEGAL COSTS,75.00,7/3/2019
SOCIETY OF AMERICAN ARCHIVISTS,GENERAL EXPENSES,250.00,7/16/2019
"*ANCHOR STAFFING, INC.",CONTRACTUAL SERVICES,910.72,12/20/2019
"COMET MESSENGER SERVICE, INC.",CONTRACTUAL SERVICES,167.86,6/28/2019
VENTRA CUSTOMER SERVICE CENTER,CONTRACTUAL SERVICES,20.00,7/23/2019
"MANSFIELD OIL COMPANY OF GAINESVILLE, INC.",FUEL EXPENSE,33383.05,8/20/2019
HARSCO RAIL,TRAVEL & MEETING EXPENSE,7975.45,10/30/2019
HAROLD ARCHIE,LEGAL COSTS,75.00,11/19/2019
METROPOLITAN INSTITUTE OF PAIN,ADMINISTRATION & HR,750.00,11/20/2019
RICHARD M STANTON,LEGAL COSTS,600.00,11/27/2019
*J.P. SIMONS & COMPANY,DIRECT PURCHASES,449.82,1/29/2019
BIAS CORPORATION,MAINTENANCE & REPAIRS,1184.60,1/17/2019
APOLLO VIDEO TECHNOLOGY,FINANCIAL & TREAS SVCS,68588.40,2/11/2019
CHICAGO POLICE DEPARTMENT,PURCHASE OF SECURITY SERVICES,504828.77,2/15/2019
TAFT STETTINIUS & HOLLISTER LLP,LEGAL COSTS,102852.93,3/27/2019
PNC BANK,TRAVEL & MEETING EXPENSE,1678.00,3/18/2019
GENUINE PARTS COMPANY (NAPA),DIRECT PURCHASES,4442.32,4/18/2019
CINTAS CORPORATION,DIRECT PURCHASES,3000.24,4/8/2019
"WISCO, INC.",MAINTENANCE & REPAIRS,1057.37,5/2/2019
"OCCUPATIONAL HEALTH CENTERS OF THE SOUTHWEST, PA. d/b/a CONCENTRA MEDICAL CENTERS",ADMINISTRATION & HR,114257.50,5/2/2019
"MCCORKLE LITIGATION SERVICES, INC",LEGAL COSTS,4538.88,5/17/2019
PNC BANK,TRAVEL & MEETING EXPENSE,808.54,5/16/2019
CINTAS CORPORATION,EQUIPMENT RENTAL,11990.48,6/19/2019
STAPLES ADVANTAGE,DIRECT PURCHASES,29632.14,6/4/2019
ASHLAND PLUMBING & HEATING CO,MAINTENANCE & REPAIRS,487.50,6/11/2019
LORCHEM TECHNOLOGIES INC,MAINTENANCE & REPAIRS,937.12,6/27/2019
APOLLO VIDEO TECHNOLOGY,FINANCIAL & TREAS SVCS,1707.00,6/27/2019
"*AGB Investigative Services, Incorporated",PURCHASE OF SECURITY SERVICES,187059.07,9/17/2019
GENUINE PARTS COMPANY (NAPA),DIRECT PURCHASES,101432.19,10/17/2019
GENUINE PARTS COMPANY (NAPA),DIRECT PURCHASES,28794.67,11/6/2019
TAFT STETTINIUS & HOLLISTER LLP,LEGAL COSTS,6851.20,10/31/2019
"ARAMARK UNIFORM SERVICES, INC.",GENERAL EXPENSES,110.88,11/13/2019
GRAND HYATT WASHINGTON,TRAVEL & MEETING EXPENSE,1075.93,11/26/2019
"PROTANIC, INC.",MAINTENANCE & REPAIRS,750.00,12/13/2019
"Pest Management Services, Inc.",MAINTENANCE & REPAIRS,13755.00,12/19/2019
"ATKINSON-BAKER, INC.",LEGAL COSTS,391.75,1/31/2019
"ATLAS FIRST ACCESS MATERIAL HANDLING, INC.",MAINTENANCE & REPAIRS,6924.00,4/15/2019
US BANK,FINANCIAL & TREAS SVCS,5000.00,4/17/2019
"GREENLINE ENVIRONMENTAL SOLUTIONS, LLC",MAINTENANCE & REPAIRS,7614.00,5/15/2019
"WEST PUBLISHING CORPORATION d/b/a THOMSON WEST, WEST GROUP OR WEST",GENERAL EXPENSES,3105.89,5/30/2019
AMALGAMATED BANK OF CHICAGO.,FINANCIAL & TREAS SVCS,337.50,5/24/2019
CALIBER PACKAGING LLC,MAINTENANCE & REPAIRS,66.50,6/20/2019
AGAE / PRO FENCE JOINT VENTURE,MAINTENANCE & REPAIRS,944.10,7/30/2019
AGAE / PRO FENCE JOINT VENTURE,MAINTENANCE & REPAIRS,4793.10,7/26/2019
ACCOUNTING PRINCIPALS INC,CONTRACTUAL SERVICES,637.44,8/23/2019
"PROTANIC, INC.",MAINTENANCE & REPAIRS,1530.00,8/19/2019
"AUTOMATIC FIRE CONTROLS, INC.",MAINTENANCE & REPAIRS,11079.00,8/19/2019
US BANK,FINANCIAL & TREAS SVCS,1500.00,8/21/2019
"HERITAGE-CRYSTAL CLEAN, LLC",DIRECT PURCHASES,4800.00,12/20/2019
CITY OF CHICAGO DEPT.OF REVENUE-RED LIGHT,GENERAL EXPENSES,305.00,6/4/2019
JOHNSON CONTROLS FIRE PROTECTION LP,MAINTENANCE & REPAIRS,3595.00,7/18/2019
*HI-TEK ENVIRONMENTAL- d/b/a STAT,CONSULTING,7.00,8/6/2019
"THE MCS GROUP, INC.",ADMINISTRATION & HR,77.98,8/20/2019
*J.P. SIMONS & COMPANY,DIRECT PURCHASES,514.62,10/8/2019
"WISCO, INC.",MAINTENANCE & REPAIRS,33.60,10/24/2019
"COY PUGH AND ASSOCIATES, LLC",CONTRACTUAL SERVICES,12000.00,12/5/2019
"AMAZON WEB SERVICES, INC.",CONTRACTUAL SERVICES,826.40,12/31/2019
JACKSON LEWIS PC,LEGAL COSTS,6916.00,3/26/2019
"QUEST DIAGNOSTICS, INC,",ADMINISTRATION & HR,90707.90,4/2/2019
"ATLAS FIRST ACCESS MATERIAL HANDLING, INC.",MAINTENANCE & REPAIRS,865.17,6/6/2019
G & O THERMAL SUPPLY COMPANY,MAINTENANCE & REPAIRS,1020.50,7/12/2019
NFPA,GENERAL EXPENSES,175.00,6/18/2019
OAK PARK POLICE DEPT,LEGAL COSTS,5.00,8/16/2019
SERVICE SANITATION INC,MAINTENANCE & REPAIRS,1624.00,8/23/2019
COMPUTER AID INC,TECHNOLOGY SERVICES,19619.20,3/26/2019
RMP CONSULTING,ADMINISTRATION & HR,750.00,5/21/2019
"COMET MESSENGER SERVICE, INC.",GENERAL EXPENSES,41.62,5/23/2019
YWCA METROPOLITAN CHICAGO,TRAVEL & MEETING EXPENSE,800.00,7/12/2019
GENUINE PARTS COMPANY (NAPA),GENERAL EXPENSES,60.15,9/11/2019
EVERGREEN PARK RED LIGHT,GENERAL EXPENSES,100.00,10/31/2019
"CHICAGO SUN-TIMES, INCORPORATED dba Sun-Times Media Productions, LLC",ADVERTISING & PROMOTION,1417.84,11/27/2019
"SAF-T-GARD INTERNATIONAL, INC.",CONTRACTUAL SERVICES,479.40,11/12/2019
"COMET MESSENGER SERVICE, INC.",CONTRACTUAL SERVICES,86.73,11/22/2019
"LANER, MUCHIN, DOMBROW, BECKER,",LEGAL COSTS,52961.01,12/17/2019
LEXIS NEXIS CO.,CONTRACTUAL SERVICES,5458.33,2/7/2019
G & O THERMAL SUPPLY COMPANY,DIRECT PURCHASES,317.50,6/17/2019
"CHICAGO SUN-TIMES, INCORPORATED dba Sun-Times Media Productions, LLC",ADVERTISING & PROMOTION,1430.42,6/27/2019
ROSEMONT PUBLIC WORKS,UTILITIES EXPENSE,14.25,6/19/2019
UNIVERSITY OF ILLINOIS (UIC),CONTRACTUAL SERVICES,1000.00,6/21/2019
CORPORATE CONCEPTS INC,MAINTENANCE & REPAIRS,9015.00,7/18/2019
"*URLAUB, BOWEN & ASSOCIATES, INC.",LEGAL COSTS,350.20,9/4/2019
"GARDA CL GREAT LAKES, INC.",FINANCIAL & TREAS SVCS,58287.59,10/1/2019
"ULTRA-TECH ENTERPRISES, INC.",DIRECT PURCHASES,841.00,10/7/2019
GENUINE PARTS COMPANY (NAPA),DIRECT PURCHASES,9395.00,1/31/2019
TOWN OF CICERO,UTILITIES EXPENSE,1041.84,5/3/2019
"JULIAN, BETLEY & ASSOCIATES",LEGAL COSTS,556.50,7/3/2019
AT & T CORP,UTILITIES EXPENSE,8778.95,10/9/2019
"ZIPCAR, INC.",EQUIPMENT RENTAL,1105.00,12/13/2019
XEROX CORPORATION /XEROX CTR,MAINTENANCE & REPAIRS,30622.02,12/24/2019
JACKSON LEWIS PC,LEGAL COSTS,4704.00,2/5/2019
"CHARITY & ASSOCIATES, P.C.",LEGAL COSTS,25000.00,3/1/2019
CITY OF CHICAGO-DEPT OF WATER,UTILITIES EXPENSE,16923.18,5/10/2019
"AMAZON WEB SERVICES, INC.",CONTRACTUAL SERVICES,36.07,6/26/2019
"TEXTMARKS, INC.",CONTRACTUAL SERVICES,18948.30,6/18/2019
BUILDERS CHICAGO CORPORATION,MAINTENANCE & REPAIRS,6403.75,6/28/2019
"LAW BULLETIN PUBLISHING CO, INC.",FINANCIAL & TREAS SVCS,3000.00,6/28/2019
ACCOUNTING PRINCIPALS INC,CONTRACTUAL SERVICES,1377.60,7/5/2019
LEXITAS,LEGAL COSTS,331.56,9/3/2019
TRANSIT LABOR EXCHANGE,TRAVEL & MEETING EXPENSE,375.00,9/5/2019
"WISCO, INC.",MAINTENANCE & REPAIRS,95.80,10/2/2019
89TH ST PROPERTIES LLC,FACILITY RENTAL,27968.92,12/19/2019
"SAFETY KLEEN SYSTEMS, INC.",MAINTENANCE & REPAIRS,12467.76,1/11/2019
GENUINE PARTS COMPANY (NAPA),GENERAL EXPENSES,277.41,1/18/2019
*MARTIN-BRAACK PARTNERS,CONTRACTUAL SERVICES,3840.00,1/29/2019
"COMET MESSENGER SERVICE, INC.",CONTRACTUAL SERVICES,6.50,1/29/2019
"JULIAN, BETLEY & ASSOCIATES",LEGAL COSTS,1044.75,1/31/2019
GENUINE PARTS COMPANY (NAPA),DIRECT PURCHASES,26546.14,3/13/2019
GENUINE PARTS COMPANY (NAPA),CONSULTING,151905.81,3/13/2019
"TALEVATION, LLC",GENERAL EXPENSES,319.20,3/19/2019
"MANSFIELD OIL COMPANY OF GAINESVILLE, INC.",FUEL EXPENSE,65120.34,4/4/2019
*J.P. SIMONS & COMPANY,DIRECT PURCHASES,11564.36,4/25/2019
BENJAMIN GOLDBERG MD,ADMINISTRATION & HR,250.00,4/30/2019
CINTAS CORPORATION,CONTRACTUAL SERVICES,26312.94,5/10/2019
"*ANZY SUPPLY, INC.",DIRECT PURCHASES,639.28,6/6/2019
GENUINE PARTS COMPANY (NAPA),DIRECT PURCHASES,14408.95,6/13/2019
"MANSFIELD OIL COMPANY OF GAINESVILLE, INC.",FUEL EXPENSE,447088.03,7/5/2019
"MANSFIELD OIL COMPANY OF GAINESVILLE, INC.",FUEL EXPENSE,124756.11,7/8/2019
*J.P. SIMONS & COMPANY,DIRECT PURCHASES,2923.30,7/16/2019
"GARDA CL GREAT LAKES, INC.",FINANCIAL & TREAS SVCS,58801.99,6/28/2019
TAFT STETTINIUS & HOLLISTER LLP,LEGAL COSTS,56994.42,6/26/2019
PNC BANK,TRAVEL & MEETING EXPENSE,4551.70,7/16/2019
GENUINE PARTS COMPANY (NAPA),DIRECT PURCHASES,11738.98,8/15/2019
"ARAMARK UNIFORM SERVICES, INC.",GENERAL EXPENSES,161.28,8/9/2019
"Pest Management Services, Inc.",MAINTENANCE & REPAIRS,5795.75,8/20/2019
"GREENLINE ENVIRONMENTAL SOLUTIONS, LLC",MAINTENANCE & REPAIRS,18604.00,8/16/2019
ILLINOIS SECRETARY OF STATE,GENERAL EXPENSES,50.00,8/27/2019
"ATLAS FIRST ACCESS MATERIAL HANDLING, INC.",MAINTENANCE & REPAIRS,4228.06,9/20/2019
"MCCORKLE LITIGATION SERVICES, INC",LEGAL COSTS,1176.63,9/18/2019
"WISCO, INC.",MAINTENANCE & REPAIRS,1443.70,9/25/2019
"*AGB Investigative Services, Incorporated",PURCHASE OF SECURITY SERVICES,55283.35,10/2/2019
"MANSFIELD OIL COMPANY OF GAINESVILLE, INC.",FUEL EXPENSE,83338.04,10/7/2019
MID-WEST SIGN SUPPLY CO,MAINTENANCE & REPAIRS,3395.20,11/12/2019
"MCCORKLE LITIGATION SERVICES, INC",LEGAL COSTS,5902.33,11/19/2019
"MYERS SERVICE, INC.",LEGAL COSTS,1078.00,12/24/2019
ZIONS BANK,GENERAL EXPENSES,197837.87,1/1/2019
"*KOPICO, INC.",DIRECT PURCHASES,2699.00,2/14/2019
"ATLAS FIRST ACCESS MATERIAL HANDLING, INC.",MAINTENANCE & REPAIRS,2418.16,2/19/2019
MOORE-ADDISON CO.,EQUIPMENT RENTAL,2560.00,3/1/2019
"JULIAN, BETLEY & ASSOCIATES",LEGAL COSTS,110.50,2/20/2019
SERVICE SANITATION INC,MAINTENANCE & REPAIRS,673.00,3/20/2019
"ARAMARK UNIFORM SERVICES, INC.",CONTRACTUAL SERVICES,71.85,4/17/2019
MURRAY & TRETTEL INC,GENERAL EXPENSES,416.25,4/3/2019
GENUINE PARTS COMPANY (NAPA),DIRECT PURCHASES,344.32,4/25/2019
"ZIPCAR, INC.",EQUIPMENT RENTAL,1150.50,5/2/2019
"SNOW SYSTEMS, INC",MAINTENANCE & REPAIRS,43329.00,5/7/2019
JOHNSON PIPE & SUPPLY CO.,DIRECT PURCHASES,1199.95,5/10/2019
LORCHEM TECHNOLOGIES INC,MAINTENANCE & REPAIRS,481.82,6/26/2019
TOMPKINS PRINTING EQUIPMENT CO.,MAINTENANCE & REPAIRS,58.17,6/19/2019
PETER R. MEYERS,LEGAL COSTS,1600.00,7/16/2019
WOMENS BUSINESS & BUYERS MART,GENERAL EXPENSES,2000.00,10/3/2019
"OCCUPATIONAL HEALTH CENTERS OF THE SOUTHWEST, PA. d/b/a CONCENTRA MEDICAL CENTERS",ADMINISTRATION & HR,53509.00,11/5/2019
COOK COUNTY CLERK,GENERAL EXPENSES,10.00,12/3/2019
*SOUTH SUBURBAN PEST CONTROL,MAINTENANCE & REPAIRS,570.00,1/18/2019
JOHNSON PIPE & SUPPLY CO.,DIRECT PURCHASES,6960.88,3/28/2019
PEOPLES GAS,UTILITIES EXPENSE,161023.27,5/17/2019
JOHNSON PIPE & SUPPLY CO.,DIRECT PURCHASES,337.77,5/31/2019
CITY OF CHICAGO-DEPT OF FLEET AND FACILITY  MGMT,MAINTENANCE & REPAIRS,100065.67,6/4/2019
COMMONWEALTH EDISON.,UTILITIES EXPENSE,275291.90,6/19/2019
ZIONS BANK,GENERAL EXPENSES,195093.97,8/20/2019
UNIVERSITY OF ILLINOIS AT CHICAGO,ADVERTISING & PROMOTION,350.00,9/5/2019
"*WILEY'S LAWN CARE, LLC",MAINTENANCE & REPAIRS,24730.00,9/6/2019
"*BOYE JANITORIAL SERVICE, INC.",MAINTENANCE & REPAIRS,18375.00,11/19/2019
"RADICOM, INC.",MAINTENANCE & REPAIRS,18400.00,11/22/2019
JACKSON LEWIS PC,LEGAL COSTS,1120.00,12/27/2019
"CRANE 1 SERVICES, INC.",MAINTENANCE & REPAIRS,2280.01,1/17/2019
"H-O-H-WATER TECHNOLOGY, INC.",MAINTENANCE & REPAIRS,4665.00,2/27/2019
"MCCORKLE LITIGATION SERVICES, INC",LEGAL COSTS,294.72,3/20/2019
GENUINE PARTS COMPANY (NAPA),DIRECT PURCHASES,1444.80,7/2/2019
"ATLAS FIRST ACCESS MATERIAL HANDLING, INC.",MAINTENANCE & REPAIRS,1119.11,9/11/2019
CHICAGO MINORITY BUSINESS,GENERAL EXPENSES,2500.00,10/1/2019
HISPANIC AMERICAN CONSTRUCTION INDUSTRY ASSOCIATION,GENERAL EXPENSES,3500.00,10/3/2019
POSTAL PARTNERS,GENERAL EXPENSES,146.85,11/29/2019
STANDARD EQUIPMENT COMPANY,DIRECT PURCHASES,94.08,1/22/2019
"LUMINATOR MASS TRANSIT, LLC",MAINTENANCE & REPAIRS,44.10,1/8/2019
WAYNE LUSTER,CREDITS,50.00,1/8/2019
GENUINE PARTS COMPANY (NAPA),MAINTENANCE & REPAIRS,354.85,2/22/2019
"Bos Machine Tool Services, Inc.",MAINTENANCE & REPAIRS,2910.00,2/19/2019
JOHNSON PIPE & SUPPLY CO.,DIRECT PURCHASES,2042.87,3/22/2019
"*ANDERSON & SHAH ROOFING, INC.",MAINTENANCE & REPAIRS,1155.25,3/29/2019
LANGUAGE SERVICES ASSOCIATES,CONTRACTUAL SERVICES,153.18,5/28/2019
CITY OF NORTH CHICAGO,GENERAL EXPENSES,100.00,7/16/2019
ZIONS BANK,GENERAL EXPENSES,1225916.67,8/23/2019
HAPPY HANDS CLEANING SERVICE LLC,MAINTENANCE & REPAIRS,1666.67,10/30/2019
ACCOUNTEMPS/DIV. ROBERT HALF,LEGAL COSTS,9861.36,3/21/2019
*GRISKO LLC (PREVIOUSLY CAROLYN GRISKO & ASSOCIATES),CONSULTING,10609.89,5/2/2019
"*WILEY'S LAWN CARE, LLC",MAINTENANCE & REPAIRS,5240.00,9/18/2019
COMTO NATIONAL HEADQUARTERS,GENERAL EXPENSES,125.00,10/29/2019
"LANER, MUCHIN, DOMBROW, BECKER,",TRAVEL & MEETING EXPENSE,479.60,11/7/2019
ACCOUNTING PRINCIPALS INC,CONTRACTUAL SERVICES,1062.40,12/6/2019
"DECISION QUEST, INC",CONSULTING,22000.00,1/17/2019
"NEW MATTESON CURRENCY EXCHANGE, INC",GENERAL EXPENSES,1924.32,2/8/2019
"FRASCO, INC.",LEGAL COSTS,175.00,3/19/2019
ALAM A KHAN M.D.,ADMINISTRATION & HR,500.00,4/26/2019
TOWN OF CICERO,UTILITIES EXPENSE,1102.04,6/19/2019
"ORRINGTON TT, LLC",EQUIPMENT RENTAL,921.30,7/9/2019
"SVANACO, INC.",TECHNOLOGY SERVICES,27975.00,9/17/2019
CIOX HEALTH,ADMINISTRATION & HR,28.44,10/2/2019
NORTH AMERICAN TRANSIT SERVICES ASSOCIATION,GENERAL EXPENSES,40500.00,11/1/2019
GREENBERG TRAURIG LLP,LEGAL COSTS,7804.00,11/13/2019
"AUSTIN VOICE NEWSPAPER, THE",ADVERTISING & PROMOTION,415.00,12/10/2019
ROBIN ROEVER,CONTRACTUAL SERVICES,2150.40,2/21/2019
SIMMONS MACHINE TOOL CORPORATION,MAINTENANCE & REPAIRS,380.00,4/24/2019
MAGNA LEGAL SERVICES,LEGAL COSTS,101.95,2/22/2019
"Elk Grove Graphics, A division of C2 Imaging",ADVERTISING & PROMOTION,641.74,4/18/2019
INFO-TECH RESEARCH GROUP INC.,CONTRACTUAL SERVICES,36755.66,7/23/2019
TAFT STETTINIUS & HOLLISTER LLP,LEGAL COSTS,8230.50,12/27/2019
"ATLAS FIRST ACCESS MATERIAL HANDLING, INC.",MAINTENANCE & REPAIRS,3831.58,1/11/2019
PACER SERVICE CENTER,GENERAL EXPENSES,175.40,1/18/2019
"THE MCS GROUP, INC.",ADMINISTRATION & HR,236.18,1/24/2019
CINTAS CORPORATION,CONTRACTUAL SERVICES,5340.31,3/5/2019
"CANON BUSINESS SOLUTIONS, INC.",MAINTENANCE & REPAIRS,8634.84,2/13/2019
DYNEGY ENERGY SERVICES,UTILITIES EXPENSE,451587.27,4/5/2019
"ATLAS FIRST ACCESS MATERIAL HANDLING, INC.",MAINTENANCE & REPAIRS,2039.79,4/19/2019
"MYERS SERVICE, INC.",LEGAL COSTS,92.00,4/2/2019
"CHICAGO SUN-TIMES, INCORPORATED dba Sun-Times Media Productions, LLC",ADVERTISING & PROMOTION,1432.64,4/26/2019
SERVICE SANITATION INC,MAINTENANCE & REPAIRS,18408.00,4/30/2019
"MANSFIELD OIL COMPANY OF GAINESVILLE, INC.",FUEL EXPENSE,435648.66,5/23/2019
"MYERS SERVICE, INC.",LEGAL COSTS,219.00,5/24/2019
"OER SERVICES, LLC",EQUIPMENT RENTAL,19628.00,5/31/2019
"MID-AMERICA BUSINESS SYSTEMS & EQUPMENT, INC.",MAINTENANCE & REPAIRS,2640.00,6/28/2019
"PROTANIC, INC.",MAINTENANCE & REPAIRS,3765.00,7/25/2019
AGAE / PRO FENCE JOINT VENTURE,MAINTENANCE & REPAIRS,5643.80,6/26/2019
"MANSFIELD OIL COMPANY OF GAINESVILLE, INC.",FUEL EXPENSE,170601.30,6/25/2019
"HERITAGE-CRYSTAL CLEAN, LLC",DIRECT PURCHASES,1600.00,6/25/2019
ACCOUNTING PRINCIPALS INC,CONSULTING,1324.00,7/12/2019
MINE SAFETY APPLIANCES CO. (MSA),CONSULTING,6060.00,7/16/2019
"MARK ANDY, INC.",MAINTENANCE & REPAIRS,302.30,7/25/2019
"JUST ELEVATOR INSPECTION SERVICE, INC.",MAINTENANCE & REPAIRS,2805.00,9/24/2019
"COMCAST OF CHICAGO, IL",EQUIPMENT RENTAL,214.94,7/26/2019
SPECIALTY'S CAFE & BAKERY,TRAVEL & MEETING EXPENSE,712.69,8/1/2019
"THE MCS GROUP, INC.",ADMINISTRATION & HR,4124.41,8/7/2019
ROBERT ANTHONY RAY,CREDITS,20.00,8/16/2019
JAMES DWORKIN,LEGAL COSTS,750.00,8/21/2019
"ATLAS FIRST ACCESS MATERIAL HANDLING, INC.",MAINTENANCE & REPAIRS,5660.26,9/10/2019
"OCCUPATIONAL HEALTH CENTERS OF THE SOUTHWEST, PA. d/b/a CONCENTRA MEDICAL CENTERS",ADMINISTRATION & HR,65719.00,8/30/2019
"WISCO, INC.",DIRECT PURCHASES,594.88,9/19/2019
GENUINE PARTS COMPANY (NAPA),MAINTENANCE & REPAIRS,487.94,10/9/2019
"JUST ELEVATOR INSPECTION SERVICE, INC.",MAINTENANCE & REPAIRS,5175.00,11/21/2019
"AUTOMATIC FIRE CONTROLS, INC.",MAINTENANCE & REPAIRS,3000.00,12/13/2019
"VERITEXT, LLC",LEGAL COSTS,3512.74,11/22/2019
BRIDGES COURT REPORTING,LEGAL COSTS,331.50,11/21/2019
"GENFARE, A DIVISION OF SPX CORPORATION",DIRECT PURCHASES,1178.80,12/20/2019
WILL COUNTY SHERIFF DEPT,LEGAL COSTS,66.00,2/14/2019
VILLAGE OF OAK PARK -1,GENERAL EXPENSES,146.00,2/22/2019
"RI-DEL MFG, INC",DIRECT PURCHASES,5066.55,5/8/2019
GENUINE PARTS COMPANY (NAPA),MAINTENANCE & REPAIRS,6650.58,5/29/2019
CUMMINS INC.,MAINTENANCE & REPAIRS,1930.97,5/16/2019
JORGE FERRER M.D.,ADMINISTRATION & HR,500.00,6/11/2019
"*ANCHOR STAFFING, INC.",TECHNOLOGY SERVICES,1140.72,7/3/2019
JACKSON LEWIS PC,LEGAL COSTS,336.00,8/1/2019
"ULTRA-TECH ENTERPRISES, INC.",MAINTENANCE & REPAIRS,363.37,10/31/2019
"CANON BUSINESS SOLUTIONS, INC.",MAINTENANCE & REPAIRS,9888.23,10/30/2019
COZEN O'CONNOR,CONSULTING,4503.85,12/20/2019
CHICAGO JOBS COUNCIL,TRAVEL & MEETING EXPENSE,500.00,1/18/2019
"MIDWEST ENVIRONMENTAL SALES CO., INC.",DIRECT PURCHASES,8750.00,3/13/2019
LANGUAGE SERVICES ASSOCIATES,CONTRACTUAL SERVICES,175.26,4/26/2019
"MANSFIELD OIL COMPANY OF GAINESVILLE, INC.",FUEL EXPENSE,126113.24,6/17/2019
CUMMINS INC.,MAINTENANCE & REPAIRS,237.22,6/20/2019
MICHAEL BEST & FRIEDRICH-CHGO,LEGAL COSTS,24036.25,7/9/2019
"ATLAS FIRST ACCESS MATERIAL HANDLING, INC.",MAINTENANCE & REPAIRS,1868.04,8/27/2019
TRADEBE TREATMENT & RECYCLING LLC,MAINTENANCE & REPAIRS,40835.60,2/5/2019
"OCCUPATIONAL TRAINING & SUPPLY, INC.",GENERAL EXPENSES,192.00,2/26/2019
"ATLAS FIRST ACCESS MATERIAL HANDLING, INC.",MAINTENANCE & REPAIRS,359.20,6/13/2019
"AT&T MOBILITY NATIONAL ACCOUNTS, LLC",UTILITIES EXPENSE,79397.54,12/5/2019
ONLC TRAINING CENTERS,TRAVEL & MEETING EXPENSE,1495.00,11/26/2019
ANITA M. ROWE,LEGAL COSTS,600.00,11/27/2019
NORTHERN ILLINOIS GAS,UTILITIES EXPENSE,12204.75,3/14/2019
"GARDA CL GREAT LAKES, INC.",FINANCIAL & TREAS SVCS,1547.15,3/18/2019
"TEXTMARKS, INC.",CONTRACTUAL SERVICES,19093.79,4/16/2019
*M. WELLS PRINTING COMPANY,ADVERTISING & PROMOTION,1998.00,6/28/2019
CITY OF CHICAGO-DEPT OF WATER,UTILITIES EXPENSE,79181.24,6/19/2019
GENUINE PARTS COMPANY (NAPA),MAINTENANCE & REPAIRS,372.31,10/2/2019
ZIONS BANK,GENERAL EXPENSES,27900000.00,10/30/2019
BUILDERS CHICAGO CORPORATION,MAINTENANCE & REPAIRS,40604.75,12/17/2019
"ANCHOR STAFFING, INC.",TECHNOLOGY SERVICES,620.80,4/5/2019
*CityEscape Garden & Design,MAINTENANCE & REPAIRS,1146.26,5/30/2019
REVERE ELECTRIC SUPPLY COMPANY,MAINTENANCE & REPAIRS,366.75,9/27/2019
CITATION BOX & PAPER CO.,DIRECT PURCHASES,1019.20,9/25/2019
"MCCORKLE LITIGATION SERVICES, INC",LEGAL COSTS,266.88,9/16/2019
"MYERS SERVICE, INC.",LEGAL COSTS,301.00,10/8/2019
RILEY SAFER HOLMES & CANCILA LLP,LEGAL COSTS,2065.00,10/31/2019
TERESA BOYLE ROGERS CONSULTING,CONSULTING,2786.64,2/7/2019
CONTINENTAL LANGUAGES LLC,CONTRACTUAL SERVICES,225.00,3/12/2019
ZIONS BANK,GENERAL EXPENSES,1751980.61,4/23/2019
"AUTOMATIC MECHANICAL SERVICES, INC, d/b/a CONTROL ENGINEERING CORP.",MAINTENANCE & REPAIRS,5391.00,4/25/2019
"108 NORTH STATE ST. (CHICAGO) OWNER,LLC",FACILITY RENTAL,32200.00,5/2/2019
"STANTON MECHANICAL, INC.",MAINTENANCE & REPAIRS,17928.00,6/18/2019
JACKSON LEWIS PC,LEGAL COSTS,700.00,7/8/2019
"THOMPSON COBURN, LLC",LEGAL COSTS,9115.50,12/27/2019
JACKSON LEWIS PC,LEGAL COSTS,1680.00,1/14/2019
SKILLPATH SEMINARS,TRAVEL & MEETING EXPENSE,199.99,2/15/2019
EVANSTON POLICE DEPARTMENT/CITY OF EVANSTON,PURCHASE OF SECURITY SERVICES,16461.28,2/15/2019
"THE MCS GROUP, INC.",ADMINISTRATION & HR,179.00,5/16/2019
"COMET MESSENGER SERVICE, INC.",GENERAL EXPENSES,170.99,5/31/2019
"BHFX, LLC",MAINTENANCE & REPAIRS,945.00,5/30/2019
NIKKI HALE CONSULTING INC,CONTRACTUAL SERVICES,2100.00,7/19/2019
"VULCAN CONSTRUCTION MATERIALS, LLC",DIRECT PURCHASES,1182.50,10/25/2019
"COMET MESSENGER SERVICE, INC.",CONTRACTUAL SERVICES,6.50,12/13/2019
"ASSOCIATED INDUSTRIAL BRUSH CO, LTD",DIRECT PURCHASES,18268.20,2/5/2019
FOREST PARK POLICE DEPT.,PURCHASE OF SECURITY SERVICES,5297.39,1/15/2019
"CANON BUSINESS SOLUTIONS, INC.",MAINTENANCE & REPAIRS,735.00,1/15/2019
"HIGH PSI, LTD.",MAINTENANCE & REPAIRS,1450.49,2/12/2019
GENUINE PARTS COMPANY (NAPA),CONTRACTUAL SERVICES,94.44,2/8/2019
CITY OF CHICAGO DEPT.OF REVENUE-RED LIGHT,GENERAL EXPENSES,200.00,1/29/2019
GENUINE PARTS COMPANY (NAPA),DIRECT PURCHASES,47935.07,3/27/2019
"ZIPCAR, INC.",EQUIPMENT RENTAL,1227.88,3/4/2019
GENUINE PARTS COMPANY (NAPA),DIRECT PURCHASES,67173.66,4/4/2019
"COMET MESSENGER SERVICE, INC.",GENERAL EXPENSES,150.73,4/5/2019
"CHICAGO ORTHOPAEDICS & SPORTS MEDICINE, S.C.",ADMINISTRATION & HR,800.00,4/23/2019
"GREENLINE ENVIRONMENTAL SOLUTIONS, LLC",MAINTENANCE & REPAIRS,24647.50,5/10/2019
*J.P. SIMONS & COMPANY,DIRECT PURCHASES,783.74,5/21/2019
"ATLAS FIRST ACCESS MATERIAL HANDLING, INC.",MAINTENANCE & REPAIRS,18965.92,5/29/2019
"CAPRICORN COMMUNICATIONS, LLC",CONTRACTUAL SERVICES,6000.00,5/31/2019
"ARAMARK UNIFORM SERVICES, INC.",GENERAL EXPENSES,322.56,7/25/2019
NATIONAL HIGHWAY INSTITUTE,TRAVEL & MEETING EXPENSE,34020.00,6/18/2019
"VERIZON WIRELESS, INC.",UTILITIES EXPENSE,741441.85,6/19/2019
GENUINE PARTS COMPANY (NAPA),DIRECT PURCHASES,66403.54,7/30/2019
89TH ST PROPERTIES LLC,FACILITY RENTAL,27968.92,7/31/2019
GENUINE PARTS COMPANY (NAPA),DIRECT PURCHASES,25074.86,9/20/2019
JOHNSON PIPE & SUPPLY CO.,DIRECT PURCHASES,3535.96,10/4/2019
*J.P. SIMONS & COMPANY,DIRECT PURCHASES,3859.88,10/2/2019
PNC BANK,TRAVEL & MEETING EXPENSE,1548.47,9/17/2019
"OER SERVICES, LLC",EQUIPMENT RENTAL,10038.00,9/11/2019
"HITACHI RAIL STS USA, INC.",DIRECT PURCHASES,8262.50,11/21/2019
AGAE / PRO FENCE JOINT VENTURE,MAINTENANCE & REPAIRS,34862.30,11/19/2019
CHICAGO DEFENDER PUBLISHING CO.,ADVERTISING & PROMOTION,1000.00,12/6/2019
BLAZEN ILLUMINATIONS LLC,CONTRACTUAL SERVICES,500.00,12/4/2019
"MANSFIELD OIL COMPANY OF GAINESVILLE, INC.",FUEL EXPENSE,134725.03,12/17/2019
"CRANE 1 SERVICES, INC.",MAINTENANCE & REPAIRS,2211.00,2/22/2019
"ARAMARK UNIFORM SERVICES, INC.",CONTRACTUAL SERVICES,146.56,2/21/2019
ZIONS BANK,GENERAL EXPENSES,36820.07,3/1/2019
G & O THERMAL SUPPLY COMPANY,DIRECT PURCHASES,407.69,3/29/2019
ACCOUNTING PRINCIPALS INC,CONTRACTUAL SERVICES,1952.00,3/29/2019
"JONES LANG LaSALLE, INCORPORATED",CONSULTING,45067.26,6/5/2019
SERVICE SANITATION INC,MAINTENANCE & REPAIRS,39.04,6/13/2019
CHICAGO URBAN LEAGUE,CONTRACTUAL SERVICES,30000.00,7/2/2019
"*ANZY SUPPLY, INC.",MAINTENANCE & REPAIRS,639.28,7/11/2019
GENUINE PARTS COMPANY (NAPA),CONSULTING,227.91,12/23/2019
ENTERPRISE FLEET SERVICES,EQUIPMENT RENTAL,18640.58,11/4/2019
PEOPLES GAS,UTILITIES EXPENSE,31284.39,12/17/2019
"PROTANIC, INC.",MAINTENANCE & REPAIRS,750.00,12/12/2019
"GMI, LLC",DIRECT PURCHASES,7020.00,12/31/2019
GENUINE PARTS COMPANY (NAPA),DIRECT PURCHASES,21797.95,2/7/2019
HARWOOD HEIGHTS POLICE DEPT.,LEGAL COSTS,5.00,1/29/2019
RUSSELL R. ROGERS,CONTRACTUAL SERVICES,11250.00,3/1/2019
89TH ST PROPERTIES LLC,FACILITY RENTAL,27968.92,3/6/2019
BUILDERS CHICAGO CORPORATION,MAINTENANCE & REPAIRS,483.50,4/4/2019
BRIDGES COURT REPORTING,LEGAL COSTS,190.00,4/9/2019
"MARK ANDY, INC.",MAINTENANCE & REPAIRS,171.46,6/19/2019
"ZIPCAR, INC.",EQUIPMENT RENTAL,192.54,8/13/2019
"GREENLINE ENVIRONMENTAL SOLUTIONS, LLC",MAINTENANCE & REPAIRS,3385.00,9/9/2019
"V.H. BLACKINTON & CO., INC.",DIRECT PURCHASES,527.50,12/13/2019
M.J.T. Incorporated dba Ewert Inc.,DIRECT PURCHASES,1710.00,5/28/2019
PEOPLES GAS,UTILITIES EXPENSE,5487.50,10/31/2019
NOETIX CORPORATION,MAINTENANCE & REPAIRS,21090.00,12/26/2019
VISHNU MENON,CREDITS,20.00,1/8/2019
"JUST ELEVATOR INSPECTION SERVICE, INC.",MAINTENANCE & REPAIRS,4027.50,6/4/2019
"WEST PUBLISHING CORPORATION d/b/a THOMSON WEST, WEST GROUP OR WEST",GENERAL EXPENSES,3105.89,4/2/2019
NORTHERN ILLINOIS UNIVERSITY,TRAVEL & MEETING EXPENSE,850.00,8/20/2019
EVERGREEN PARK RED LIGHT,GENERAL EXPENSES,100.00,8/27/2019
Wensco,ADVERTISING & PROMOTION,1203.71,10/10/2019
HISPANIC ALLIANCE FOR CAREER ENHANCEMENT,ADVERTISING & PROMOTION,6300.00,12/26/2019
ADVOCATE COURT REPORTERS LLC,LEGAL COSTS,275.70,1/4/2019
JACKSON LEWIS PC,LEGAL COSTS,84.00,1/14/2019
"RECORDS DEPOSITION SERVICE, INC.",ADMINISTRATION & HR,17.83,4/16/2019
CSC,MAINTENANCE & REPAIRS,1111.00,5/9/2019
COOK COUNTY SHERIFF DEPARTMENT,MAINTENANCE & REPAIRS,33805.40,6/4/2019
ILLINOIS SECRETARY OF STATE,GENERAL EXPENSES,50.00,6/20/2019
UNIVERSITY OF ILLINOIS (UIC),CONTRACTUAL SERVICES,1000.00,6/21/2019
CITIZEN NEWSPAPER GROUP,CONTRACTUAL SERVICES,467.00,8/13/2019
"T-MOBILE USA, INC.",UTILITIES EXPENSE,16958.93,10/18/2019
FOX VALLEY FIRE & SAFETY COMPANY,MAINTENANCE & REPAIRS,6070.00,10/7/2019
AN EXECUTIVE DECISION,ADVERTISING & PROMOTION,725.00,11/12/2019
LEXITAS,LEGAL COSTS,540.00,11/12/2019
"OER SERVICES, LLC",MAINTENANCE & REPAIRS,588.00,11/15/2019
"GARTNER, INCORPORATED",GENERAL EXPENSES,51325.00,1/29/2019
"GARDA CL GREAT LAKES, INC.",FINANCIAL & TREAS SVCS,32321.18,5/29/2019
VILLAGE OF RIVER GROVE,UTILITIES EXPENSE,177.85,9/5/2019
JACKSON LEWIS PC,LEGAL COSTS,896.00,11/7/2019
CITY OF CHICAGO-DEPT OF WATER,UTILITIES EXPENSE,111991.38,12/17/2019
ANN S. KENIS,LEGAL COSTS,2250.00,12/27/2019
JACKSON LEWIS PC,LEGAL COSTS,10556.00,1/14/2019
MURRAY & TRETTEL INC,GENERAL EXPENSES,416.25,1/31/2019
RUSSELL R. ROGERS,CONTRACTUAL SERVICES,11250.00,3/29/2019
CORPORATE CLEANING SERVICES,MAINTENANCE & REPAIRS,4675.00,7/26/2019
AMERICAN RAILWAY ENGINEERING AND MAINTENANCE OF WAY ASSOCIATION,TRAVEL & MEETING EXPENSE,1940.00,8/15/2019
"INTERSTATE POWER SYSTEMS, INC.",MAINTENANCE & REPAIRS,1053.50,9/27/2019
JOHNSON PIPE & SUPPLY CO.,DIRECT PURCHASES,476.00,10/24/2019
TAB SERVICE COMPANY,GENERAL EXPENSES,1138.83,12/10/2019
"LISA A. KOTRBA & ASSOCIATES, LTD",LEGAL COSTS,459.65,1/16/2019
"AMERICAN BUILDING SERVICES, LLC (M-D BUILDING MATERIALS)",DIRECT PURCHASES,27649.93,2/6/2019
CITY OF CHICAGO DEPT.OF REVENUE-RED LIGHT,GENERAL EXPENSES,400.00,2/19/2019
SAFETY VISION LLC,FINANCIAL & TREAS SVCS,28670.00,3/6/2019
AT & T CORP,UTILITIES EXPENSE,8545.09,3/13/2019
CARRIER RENTAL SYSTEMS,MAINTENANCE & REPAIRS,1748.01,8/7/2019
"WISCO, INC.",DIRECT PURCHASES,211.69,5/7/2019
"SAFETY KLEEN SYSTEMS, INC.",MAINTENANCE & REPAIRS,16740.52,7/9/2019
JESSE WHITE TUMBLERS,TRAVEL & MEETING EXPENSE,850.00,7/2/2019
JAMES DWORKIN,LEGAL COSTS,750.00,7/23/2019
"*BOYE JANITORIAL SERVICE, INC.",MAINTENANCE & REPAIRS,18375.00,7/25/2019
*SHAMROCK CATERING INC.,GENERAL EXPENSES,1505.00,8/8/2019
"THE MCS GROUP, INC.",ADMINISTRATION & HR,599.78,8/14/2019
"ARAMARK UNIFORM SERVICES, INC.",GENERAL EXPENSES,147.84,8/19/2019
GENUINE PARTS COMPANY (NAPA),DIRECT PURCHASES,43516.94,9/27/2019
GENUINE PARTS COMPANY (NAPA),DIRECT PURCHASES,15969.23,10/18/2019
DYNEGY ENERGY SERVICES,UTILITIES EXPENSE,352592.31,10/30/2019
"MANSFIELD OIL COMPANY OF GAINESVILLE, INC.",FUEL EXPENSE,63109.01,10/25/2019
"WISCO, INC.",DIRECT PURCHASES,33.00,11/6/2019
"WISCO, INC.",MAINTENANCE & REPAIRS,647.60,11/20/2019
JOHNSON PIPE & SUPPLY CO.,DIRECT PURCHASES,1750.34,12/27/2019
CITY OF CHICAGO-DEPT OF FLEET AND FACILITY  MGMT,MAINTENANCE & REPAIRS,153431.99,1/18/2019
UNITED PARCEL SERVICE,GENERAL EXPENSES,7.63,1/22/2019
AMERICAN INSURANCE SERVICES GROUP,CONTRACTUAL SERVICES,446.60,3/28/2019
CDW GOVERNMENT LLC,MAINTENANCE & REPAIRS,111768.62,5/8/2019
"PROTANIC, INC.",MAINTENANCE & REPAIRS,1280.00,9/27/2019
HEGENSCHEIDT CORP.,MAINTENANCE & REPAIRS,25556.91,10/28/2019
SIMMONS MACHINE TOOL CORPORATION,DIRECT PURCHASES,2425.00,12/5/2019
89TH ST PROPERTIES LLC,FACILITY RENTAL,27968.92,12/3/2019
"CHICAGO UNITED INDUSTRIES, LTD.",EQUIPMENT RENTAL,4282.45,12/27/2019
"*ANDERSON & SHAH ROOFING, INC.",MAINTENANCE & REPAIRS,7604.40,4/2/2019
"TRANE U.S., INC.",TECHNOLOGY SERVICES,1006.26,3/28/2019
"CORE MECHANICAL, INC.",MAINTENANCE & REPAIRS,4095.00,4/2/2019
ADVANCED SPINE AND PAIN SPECIALISTS,ADMINISTRATION & HR,750.00,4/23/2019
"INTERSTATE POWER SYSTEMS, INC.",MAINTENANCE & REPAIRS,38109.35,6/18/2019
AN EXECUTIVE DECISION,ADVERTISING & PROMOTION,198.73,9/12/2019
"GREENLINE ENVIRONMENTAL SOLUTIONS, LLC",MAINTENANCE & REPAIRS,4889.00,10/11/2019
UNIVERSITY OF ILL OUTPT - OHSI,CONTRACTUAL SERVICES,1000.00,11/6/2019
RIVER POINT LLC,FACILITY RENTAL,52250.27,4/10/2019
"*BOYE JANITORIAL SERVICE, INC.",MAINTENANCE & REPAIRS,18375.00,6/11/2019
"OCCUPATIONAL TRAINING & SUPPLY, INC.",TRAVEL & MEETING EXPENSE,696.00,7/16/2019
ACCOUNTING PRINCIPALS INC,CONTRACTUAL SERVICES,2204.16,8/2/2019
*J.P. SIMONS & COMPANY,DIRECT PURCHASES,913.76,8/28/2019
JACKSON LEWIS PC,LEGAL COSTS,9044.00,10/31/2019
"MANSFIELD OIL COMPANY OF GAINESVILLE, INC.",FUEL EXPENSE,86970.87,12/4/2019
"THOMAS J. WALSH CONSULTING, LLC",CONTRACTUAL SERVICES,6000.00,1/17/2019
GALT HOUSE HOTEL,TRAVEL & MEETING EXPENSE,2952.80,4/12/2019
ENTERPRISE FLEET SERVICES,EQUIPMENT RENTAL,132904.38,5/3/2019
EVERGREEN PARK RED LIGHT,GENERAL EXPENSES,100.00,6/7/2019
XEROX CORPORATION /XEROX CTR,MAINTENANCE & REPAIRS,30839.05,7/24/2019
CUMMINS INC.,MAINTENANCE & REPAIRS,355.82,9/3/2019
PHYSICAL MEASUREMENT TECHNOLOGIES INC,MAINTENANCE & REPAIRS,1140.00,9/5/2019
BEDFORD PARK POLICE DEPARTMENT,GENERAL EXPENSES,100.00,10/29/2019
CLARIVATE ANALYTICS (US) LLC,GENERAL EXPENSES,1204.75,11/19/2019
ACCOUNTING PRINCIPALS INC,CONSULTING,1216.43,11/27/2019
JOHNSON PIPE & SUPPLY CO.,DIRECT PURCHASES,941.28,12/11/2019
"OER SERVICES, LLC",EQUIPMENT RENTAL,644.00,12/20/2019
"ILLINOIS BONE & JOINT INSTITUTE, LLC",ADMINISTRATION & HR,375.00,1/29/2019
"LAICON, INC.",MAINTENANCE & REPAIRS,200.00,3/7/2019
BRIDGES COURT REPORTING,LEGAL COSTS,462.15,2/21/2019
"ARAMARK UNIFORM SERVICES, INC.",CONTRACTUAL SERVICES,73.28,2/27/2019
"GARDA CL GREAT LAKES, INC.",FINANCIAL & TREAS SVCS,14474.03,3/29/2019
JACKSON LEWIS PC,LEGAL COSTS,896.00,3/18/2019
VILLAGE OF RIVER GROVE,UTILITIES EXPENSE,35.17,3/26/2019
"HERITAGE-CRYSTAL CLEAN, LLC",DIRECT PURCHASES,960.00,5/7/2019
"*ANCHOR STAFFING, INC.",TECHNOLOGY SERVICES,991.80,8/30/2019
CUMMINS INC.,MAINTENANCE & REPAIRS,237.22,8/14/2019
PEOPLES GAS,UTILITIES EXPENSE,7422.88,10/9/2019
"CRANE 1 SERVICES, INC.",MAINTENANCE & REPAIRS,3997.00,1/9/2019
CHICAGO TRIBUNE,GENERAL EXPENSES,351.00,1/16/2019
"INSPE ASSOCIATES,LTD.",ADMINISTRATION & HR,5415.00,1/18/2019
"WEST PUBLISHING CORPORATION d/b/a THOMSON WEST, WEST GROUP OR WEST",GENERAL EXPENSES,3105.89,3/5/2019
"ATLAS FIRST ACCESS MATERIAL HANDLING, INC.",MAINTENANCE & REPAIRS,81.00,3/18/2019
PLANET DEPOS LLC,LEGAL COSTS,1227.80,3/20/2019
*NAK-MAN CORPORATION,DIRECT PURCHASES,1270.60,4/25/2019
EVERGREEN PARK RED LIGHT,GENERAL EXPENSES,100.00,5/9/2019
"WINKLER'S TREE SERVICE, INC.",MAINTENANCE & REPAIRS,4096.00,10/16/2019
BUILDERS CHICAGO CORPORATION,MAINTENANCE & REPAIRS,573.60,11/14/2019
"IMPERIAL CRANE SERVICES, INC.",EQUIPMENT RENTAL,3600.00,12/6/2019
BRADLEY MERK MD,ADMINISTRATION & HR,750.00,1/18/2019
"STANTON MECHANICAL, INC.",MAINTENANCE & REPAIRS,1092.42,2/27/2019
JACKSON LEWIS PC,LEGAL COSTS,896.00,3/18/2019
METRA,EQUIPMENT RENTAL,886.00,8/21/2019
ACCOUNTEMPS/DIV. ROBERT HALF,LEGAL COSTS,1372.50,11/14/2019
MIDWEST PROFESSIONAL MEDICAL CARE,ADMINISTRATION & HR,450.00,12/12/2019
"ATLAS FIRST ACCESS MATERIAL HANDLING, INC.",MAINTENANCE & REPAIRS,3679.06,1/8/2019
*J.P. SIMONS & COMPANY,DIRECT PURCHASES,25075.80,1/18/2019
CHICAGO METRO CONSTRUCTION D/B/A ARLINGTON GLASS & MIRROR CO.,MAINTENANCE & REPAIRS,4578.74,2/15/2019
"PROMPT ELECTRIC, INC.",MAINTENANCE & REPAIRS,9540.12,3/12/2019
"Legalink, Inc. d/b/a Epiq Court Reporting",LEGAL COSTS,3428.70,4/16/2019
JOHNSON PIPE & SUPPLY CO.,DIRECT PURCHASES,2448.51,4/17/2019
"ACTION K-9 SECURITY, INC.",PURCHASE OF SECURITY SERVICES,357550.55,4/18/2019
CINTAS CORPORATION,MAINTENANCE & REPAIRS,4224.14,5/2/2019
"LISA A. KOTRBA & ASSOCIATES, LTD",LEGAL COSTS,679.20,5/10/2019
"MANSFIELD OIL COMPANY OF GAINESVILLE, INC.",FUEL EXPENSE,13439.53,5/16/2019
G&T ORTHOPAEDICS,ADMINISTRATION & HR,750.00,5/21/2019
"CONSTELLATION NEW ENERGY GAS DIVISION, LLC",UTILITIES EXPENSE,245245.23,5/30/2019
"*MIDWAY OVERHEAD DOOR, INC.",MAINTENANCE & REPAIRS,27713.60,6/7/2019
"COMCAST OF CHICAGO, IL",EQUIPMENT RENTAL,51.59,6/7/2019
"ZIPCAR, INC.",EQUIPMENT RENTAL,498.31,6/12/2019
GENUINE PARTS COMPANY (NAPA),DIRECT PURCHASES,20766.44,7/11/2019
SIMMONS MACHINE TOOL CORPORATION,MAINTENANCE & REPAIRS,3581.00,7/26/2019
ROOT BROTHERS MFG. & SUPPLY CO.,DIRECT PURCHASES,2223.00,7/23/2019
*J.P. SIMONS & COMPANY,DIRECT PURCHASES,20448.23,8/8/2019
SCARABAEUS LLC,CONTRACTUAL SERVICES,6000.00,9/12/2019
"WISCO, INC.",MAINTENANCE & REPAIRS,680.00,10/10/2019
GENUINE PARTS COMPANY (NAPA),DIRECT PURCHASES,5742.45,11/7/2019
"MANSFIELD OIL COMPANY OF GAINESVILLE, INC.",FUEL EXPENSE,773745.35,10/31/2019
"ATLAS FIRST ACCESS MATERIAL HANDLING, INC.",MAINTENANCE & REPAIRS,3832.91,11/5/2019
SERVICE SANITATION INC,MAINTENANCE & REPAIRS,17753.00,11/8/2019
PNC BANK,TRAVEL & MEETING EXPENSE,4871.05,11/19/2019
TALX CORPORATION,CONTRACTUAL SERVICES,450.00,12/18/2019
"MCCORKLE LITIGATION SERVICES, INC",LEGAL COSTS,847.48,12/31/2019
GENUINE PARTS COMPANY (NAPA),MAINTENANCE & REPAIRS,14.59,1/24/2019
JACKSON LEWIS PC,LEGAL COSTS,4480.00,1/14/2019
"*FYI & ASSOCIATES, INC.",MAINTENANCE & REPAIRS,20537.42,2/1/2019
"MCCORKLE LITIGATION SERVICES, INC",LEGAL COSTS,638.83,3/8/2019
"JONES LANG LaSALLE, INCORPORATED",CONSULTING,38797.22,4/17/2019
"*BOYE JANITORIAL SERVICE, INC.",MAINTENANCE & REPAIRS,18375.00,8/28/2019
"HITACHI RAIL STS USA, INC.",DIRECT PURCHASES,20.16,10/3/2019
PETER R. MEYERS,LEGAL COSTS,800.00,10/8/2019
CINTAS CORPORATION,MAINTENANCE & REPAIRS,28.90,11/20/2019
JOHNSON CONTROLS FIRE PROTECTION LP,MAINTENANCE & REPAIRS,17.50,11/18/2019
"PREMIER STAFFING SOURCE, INC.",GENERAL EXPENSES,8713.97,12/31/2019
"AMERICAN BUILDING SERVICES, LLC (M-D BUILDING MATERIALS)",DIRECT PURCHASES,266.70,1/17/2019
CHICAGO METRO CONSTRUCTION D/B/A ARLINGTON GLASS & MIRROR CO.,MAINTENANCE & REPAIRS,5582.33,1/22/2019
"MARK ANDY, INC.",MAINTENANCE & REPAIRS,128.22,1/10/2019
"OER SERVICES, LLC",EQUIPMENT RENTAL,17164.00,3/28/2019
"*ANCHOR STAFFING, INC.",TECHNOLOGY SERVICES,1035.96,5/3/2019
RAFAT SHONEYE,ADMINISTRATION & HR,62.50,6/4/2019
A.R.D.C.,GENERAL EXPENSES,385.00,9/11/2019
CINTAS CORPORATION,MAINTENANCE & REPAIRS,2204.08,9/26/2019
GENUINE PARTS COMPANY (NAPA),DIRECT PURCHASES,7043.80,12/10/2019
PITNEY BOWES GLOBAL MAILING SYSTEMS,MAINTENANCE & REPAIRS,783.92,11/29/2019
LOHNES+WRIGHT,ADVERTISING & PROMOTION,1420.00,1/24/2019
"BHFX, LLC",MAINTENANCE & REPAIRS,1006.00,2/7/2019
"HERITAGE-CRYSTAL CLEAN, LLC",DIRECT PURCHASES,2240.00,4/12/2019
BENJAMIN GOLDBERG MD,ADMINISTRATION & HR,250.00,4/30/2019
"COMCAST OF CHICAGO, IL",EQUIPMENT RENTAL,41.59,5/7/2019
"STANTON MECHANICAL, INC.",MAINTENANCE & REPAIRS,28350.00,6/13/2019
VILLAGE OF FOREST PARK (WATER ACCOUNT),UTILITIES EXPENSE,2413.73,7/19/2019
"BIDDLE CONSULTING GROUP, INC.",GENERAL EXPENSES,1859.00,7/24/2019
DYNEGY ENERGY SERVICES,UTILITIES EXPENSE,131478.86,3/22/2019
"CONCARE, INC.",MAINTENANCE & REPAIRS,23252.68,3/27/2019
CALIBER PACKAGING LLC,MAINTENANCE & REPAIRS,402.50,5/15/2019
ZIONS BANK,GENERAL EXPENSES,1225916.67,6/24/2019
CORPORATE CONCEPTS INC,MAINTENANCE & REPAIRS,4950.00,8/14/2019
ILLINOIS CHAMBER OF COMMERCE,GENERAL EXPENSES,11782.10,9/17/2019
MCMANUS DIRECT,CONTRACTUAL SERVICES,1975.00,10/23/2019
"COMET MESSENGER SERVICE, INC.",CONTRACTUAL SERVICES,531.18,10/25/2019
"COMET MESSENGER SERVICE, INC.",GENERAL EXPENSES,250.25,11/1/2019
COOK COUNTY SHERIFF DEPARTMENT,LEGAL COSTS,40.00,12/17/2019
RENEE M LaPORTA,LEGAL COSTS,51.20,1/9/2019
BUILDERS CHICAGO CORPORATION,MAINTENANCE & REPAIRS,2324.75,4/24/2019
"GENFARE, A DIVISION OF SPX CORPORATION",DIRECT PURCHASES,3007.10,5/14/2019
CHICAGO URBAN LEAGUE,CONTRACTUAL SERVICES,5000.00,4/30/2019
"WISCO, INC.",DIRECT PURCHASES,702.22,6/19/2019
HERMAN TOROSIAN,LEGAL COSTS,1500.12,8/13/2019
ZIONS BANK,FINANCIAL & TREAS SVCS,4500.00,8/29/2019
BIAS CORPORATION,MAINTENANCE & REPAIRS,1613.68,10/18/2019
NORTHERN ILLINOIS GAS,UTILITIES EXPENSE,9641.00,1/23/2019
"COMCAST OF CHICAGO, IL",EQUIPMENT RENTAL,206.55,7/2/2019
ACCOUNTEMPS/DIV. ROBERT HALF,LEGAL COSTS,3748.50,8/1/2019
EVANSTON POLICE DEPARTMENT/CITY OF EVANSTON,PURCHASE OF SECURITY SERVICES,18350.28,8/20/2019
"*ANCHOR STAFFING, INC.",TECHNOLOGY SERVICES,1008.61,10/11/2019
SEAOI,GENERAL EXPENSES,275.00,10/8/2019
"THE MCS GROUP, INC.",ADMINISTRATION & HR,35.00,12/17/2019
RECORD COPY SERVICES CO.,ADMINISTRATION & HR,39.75,3/14/2019
COOK COUNTY SHERIFF DEPARTMENT,LEGAL COSTS,40.00,4/25/2019
CAIRS,GENERAL EXPENSES,560.00,5/23/2019
"COMET MESSENGER SERVICE, INC.",CONTRACTUAL SERVICES,32.50,5/24/2019
LANGUAGE SERVICES ASSOCIATES,CONTRACTUAL SERVICES,184.92,7/26/2019
MURNANE PAPER CO.,MAINTENANCE & REPAIRS,1504.80,12/24/2019
CINTAS CORPORATION,CONTRACTUAL SERVICES,12724.66,2/26/2019
G & O THERMAL SUPPLY COMPANY,DIRECT PURCHASES,426.05,1/25/2019
"WISCO, INC.",MAINTENANCE & REPAIRS,2410.67,1/29/2019
CITY OF CHICAGO DEPT.OF REVENUE-RED LIGHT,GENERAL EXPENSES,970.00,1/10/2019
"INTERSTATE POWER SYSTEMS, INC.",MAINTENANCE & REPAIRS,2151.75,2/21/2019
"OCCUPATIONAL HEALTH CENTERS OF THE SOUTHWEST, PA. d/b/a CONCENTRA MEDICAL CENTERS",ADMINISTRATION & HR,43207.50,2/1/2019
"OER SERVICES, LLC",MAINTENANCE & REPAIRS,2586.00,3/6/2019
"PATCO INDUSTRIES, INC.",MAINTENANCE & REPAIRS,18750.93,4/12/2019
LAPORT COUNTY SHERIFF,LEGAL COSTS,60.00,2/22/2019
BRE RIVER NORTH POINT OWNER,FACILITY RENTAL,43593.10,2/27/2019
"HIGH PSI, LTD.",MAINTENANCE & REPAIRS,1554.20,3/28/2019
AT & T CORP,UTILITIES EXPENSE,987364.08,3/13/2019
"BHFX, LLC",MAINTENANCE & REPAIRS,945.00,3/28/2019
ARC IMAGING RESOURCES,MAINTENANCE & REPAIRS,264.18,4/9/2019
*J.P. SIMONS & COMPANY,DIRECT PURCHASES,17504.57,5/1/2019
"CAPUS AUTOMATION SERVICES, INC.",MAINTENANCE & REPAIRS,3976.05,4/24/2019
GENUINE PARTS COMPANY (NAPA),DIRECT PURCHASES,7047.46,5/16/2019
*J.P. SIMONS & COMPANY,DIRECT PURCHASES,638.00,5/24/2019
"GREENLINE ENVIRONMENTAL SOLUTIONS, LLC",MAINTENANCE & REPAIRS,16515.00,5/22/2019
CINTAS CORPORATION,MAINTENANCE & REPAIRS,2755.10,8/29/2019
"*ABC HUMANE WILDLIFE CONTROL & PREVENTION, INC.",MAINTENANCE & REPAIRS,474.00,8/30/2019
"TRAPEZE SOFTWARE GROUP, INC",MAINTENANCE & REPAIRS,1705520.00,9/20/2019
CLAREMONT LLC,CONTRACTUAL SERVICES,250.00,9/24/2019
"TRI-ELECTRONICS, INC.",MAINTENANCE & REPAIRS,73823.97,9/25/2019
"WISCO, INC.",DIRECT PURCHASES,452.80,9/27/2019
MARK VEND CO,GENERAL EXPENSES,668.00,10/18/2019
UNITED PARCEL SERVICE,GENERAL EXPENSES,554.29,11/7/2019
"BUCHANAN REPORTING, INC",LEGAL COSTS,159.10,11/14/2019
"Elk Grove Graphics, A division of C2 Imaging",ADVERTISING & PROMOTION,3073.00,1/31/2019
DLT SOLUTIONS LLC,TECHNOLOGY SERVICES,86100.84,2/15/2019
"CRANE 1 SERVICES, INC.",MAINTENANCE & REPAIRS,2687.00,1/29/2019
COOK COUNTY SHERIFF DEPARTMENT,LEGAL COSTS,40.00,3/13/2019
PEOPLES GAS,UTILITIES EXPENSE,16291.60,6/14/2019
APOLLO VIDEO TECHNOLOGY,FINANCIAL & TREAS SVCS,68736.90,5/28/2019
"COMET MESSENGER SERVICE, INC.",CONTRACTUAL SERVICES,52.00,7/12/2019
LORCHEM TECHNOLOGIES INC,MAINTENANCE & REPAIRS,1161.94,8/22/2019
"CARD IMAGING, INC.",DIRECT PURCHASES,368.00,10/17/2019
DYNEGY ENERGY SERVICES,UTILITIES EXPENSE,127641.07,10/15/2019
"CRANE 1 SERVICES, INC.",MAINTENANCE & REPAIRS,590.00,11/4/2019
"*VEI SOLUTIONS, INC.",MAINTENANCE & REPAIRS,24630.16,11/21/2019
"CUBIC TRANSPORTATION SYSTEMS, INC.",DIRECT PURCHASES,463866.39,12/3/2019
FOX VALLEY FIRE & SAFETY COMPANY,MAINTENANCE & REPAIRS,29166.25,11/19/2019
"HIRERIGHT SOLUTIONS, INC.",ADMINISTRATION & HR,13173.24,12/6/2019
VILLAGE OF FOREST PARK.,PURCHASE OF SECURITY SERVICES,7000.12,12/20/2019
"ARAMARK UNIFORM SERVICES, INC.",GENERAL EXPENSES,161.28,1/8/2019
"STANTON MECHANICAL, INC.",MAINTENANCE & REPAIRS,44161.71,3/7/2019
HR SPECIALIST EMPLOYMENT LAW,GENERAL EXPENSES,97.00,3/8/2019
CUMMINS INC.,MAINTENANCE & REPAIRS,641.25,4/2/2019
"LAW BULLETIN PUBLISHING CO, INC.",FINANCIAL & TREAS SVCS,3000.00,4/29/2019
BENJAMIN GOLDBERG MD,ADMINISTRATION & HR,250.00,4/30/2019
Wisconsin Lift Truck Corp. DBA Ellis Systems,DIRECT PURCHASES,9751.36,5/22/2019
EVANSTON POLICE DEPARTMENT/CITY OF EVANSTON,LEGAL COSTS,10.00,8/16/2019
"ATLAS FIRST ACCESS MATERIAL HANDLING, INC.",MAINTENANCE & REPAIRS,2297.27,9/24/2019
"OER SERVICES, LLC",MAINTENANCE & REPAIRS,2672.00,10/31/2019
U.S. BANK/CTA-SALES TAX (2008A) & TRANSFER TAX (2008B),GENERAL EXPENSES,12970091.86,11/22/2019
PNC BANK,GENERAL EXPENSES,3642.50,1/17/2019
IAP CONSTRUCTION INC.,MAINTENANCE & REPAIRS,9130.00,4/23/2019
"RI-DEL MFG, INC",DIRECT PURCHASES,6088.20,6/13/2019
ESQUIRE DEPOSITION SOLUTIONS,LEGAL COSTS,365.26,6/20/2019
"COMET MESSENGER SERVICE, INC.",CONTRACTUAL SERVICES,19.50,7/5/2019
KPMG LLP,CONSULTING,75000.00,7/30/2019
"NIGP, INC.",TRAVEL & MEETING EXPENSE,356.00,8/21/2019
ERIC THOMAS,LEGAL COSTS,75.00,8/27/2019
"*ALLPOINTS SECURITY AND DETECTIVE, INC.",PURCHASE OF SECURITY SERVICES,22589.89,9/20/2019
89TH ST PROPERTIES LLC,FACILITY RENTAL,27968.92,9/30/2019
TOASTMASTERS INTERNATIONAL,GENERAL EXPENSES,50.00,10/9/2019
"MCCORKLE LITIGATION SERVICES, INC",LEGAL COSTS,233.14,11/22/2019
TAFT STETTINIUS & HOLLISTER LLP,ADMINISTRATION & HR,21.00,5/21/2019
ZIONS BANK,GENERAL EXPENSES,40064.34,6/27/2019
AMERICAN TOWERS LLC,EQUIPMENT RENTAL,4362.31,8/22/2019
*CityEscape Garden & Design,MAINTENANCE & REPAIRS,203.40,10/17/2019
ACCOUNTING PRINCIPALS INC,CONTRACTUAL SERVICES,849.92,11/29/2019
"GEISMAR NORTH AMERICA, INC.",MAINTENANCE & REPAIRS,600.00,12/2/2019
MARK BOWEN M.D.,ADMINISTRATION & HR,750.00,12/6/2019
SARAH BUSH LINCOLN HEALTH CENTER,ADMINISTRATION & HR,500.00,1/16/2019
LETTER PUBLICATIONS,GENERAL EXPENSES,325.00,4/4/2019
"ACADEMIC SPINE CONSULTANTS, LLC",ADMINISTRATION & HR,750.00,6/5/2019
"COMET MESSENGER SERVICE, INC.",CONTRACTUAL SERVICES,171.87,8/29/2019
ENTERPRISE FLEET SERVICES,EQUIPMENT RENTAL,132557.37,10/31/2019
"*ANCHOR STAFFING, INC.",TECHNOLOGY SERVICES,1109.46,12/20/2019
"WESTGATE ORTHOPAEDICS, LTD.",ADMINISTRATION & HR,750.00,3/6/2019
AMERICAN RAILWAY ENGINEERING AND MAINTENANCE OF WAY ASSOCIATION,GENERAL EXPENSES,5750.00,4/17/2019
CHARLES ADAMS,LEGAL COSTS,75.00,6/12/2019
ACCOUNTING PRINCIPALS INC,CONTRACTUAL SERVICES,847.80,8/16/2019
"CAPRICORN COMMUNICATIONS, LLC",CONTRACTUAL SERVICES,6000.00,9/3/2019
CITY OF CHICAGO DEPT.OF REVENUE-RED LIGHT,GENERAL EXPENSES,200.00,11/22/2019
"ATLAS FIRST ACCESS MATERIAL HANDLING, INC.",MAINTENANCE & REPAIRS,75.00,12/6/2019
"WINKLER'S TREE SERVICE, INC.",CONTRACTUAL SERVICES,1535.28,1/8/2019
"JONES LANG LaSALLE, INCORPORATED",CONSULTING,1269.66,2/14/2019
BIAS CORPORATION,MAINTENANCE & REPAIRS,1613.68,4/24/2019
CIOX HEALTH,ADMINISTRATION & HR,67.18,5/7/2019
"PROTANIC, INC.",MAINTENANCE & REPAIRS,632.00,7/16/2019
"JULIAN, BETLEY & ASSOCIATES",LEGAL COSTS,208.00,6/11/2019
GRAB MAGAZINE,ADVERTISING & PROMOTION,1600.00,7/16/2019
